﻿Body_Name,Service_Label,Service_Code,Division_Code,Division_Description,Organisational_Unit,Expenditure_Category,Expenditure_Category_Code,Activity_Description,Activity_Code,Date_Paid,Reference,Net_Amount_in_Sterling,Capital_Revenue,Customer_Supplier_Description,Merchant_Category_Description,ObjectId
Tunbridge Wells Borough Council,,,,,,,,,,27/04/2015,,4,,Asda Stores 4776,Grocery Stores and Supermarkets,1
Tunbridge Wells Borough Council,Central Services,102,OV,Overview & Scrutiny,DEMOCRATIC MANAGEMENT,STATIONERY,3160,-,-,01/06/2015,P03_65,41.97,Revenue,OHSOCHERISH,GIFT  CARD  NOVELTY  AND SOUVENIR SHOPS,2
Tunbridge Wells Borough Council,,,,,,,,,,27/04/2015,,188.14,,Bookerecomm,Caterers,3
Tunbridge Wells Borough Council,,,,,,,,,,27/04/2015,,4.98,,Asda Stores 4776,Grocery Stores and Supermarkets,4
Tunbridge Wells Borough Council,,,,,,,,,,27/04/2015,,9,,Asda Stores 4776,Grocery Stores and Supermarkets,5
Tunbridge Wells Borough Council,Cultural and Related Services,104,LE,Leisure & Well-being,A-HALL MANAGEMENT,SUBS TO ORGANISATIONS,3730,-,-,25/05/2015,P03_39,17.33,Revenue,TIMES NEWSPAPER LTD,BOOKS PERIODICALS AND NEWSPAPERS,6
Tunbridge Wells Borough Council,Cultural and Related Services,104,LE,Leisure & Well-being,A-HALL MANAGEMENT,SUBS TO ORGANISATIONS,3730,-,-,25/05/2015,P03_39,17.33,Revenue,TIMES NEWSPAPER LTD,BOOKS PERIODICALS AND NEWSPAPERS,7
Tunbridge Wells Borough Council,Housing Services,108,HO,Housing Services & Health,HOUSING NEEDS SERVICE,CONFERENCES/SEMINARS,205,-,-,26/05/2015,P03_01,45,Revenue,PAYPAL *RURALSERVIC,CIVIC  SOCIAL AND FRATERNAL ASSOCIATIONS,8
Tunbridge Wells Borough Council,Central Services,102,FI,Finance & Local Goverance,REVS & BENS ADMINISTRATION,COURT FEES,3263,-,-,26/05/2015,P03_49,1350,Revenue,HMCOURTS-SERVICE.G,FINES,9
Tunbridge Wells Borough Council,Central Services,102,FI,Finance & Local Goverance,REVS & BENS ADMINISTRATION,COURT FEES,3263,-,-,26/05/2015,P03_51,1359,Revenue,HMCOURTS-SERVICE.G,FINES,10
Tunbridge Wells Borough Council,,,,,,,,,,26/05/2015,,17.33,,Times Newspapers Ltd,"Books, Periodicals and Newspapers",11
Tunbridge Wells Borough Council,,,,,,,,,,26/05/2015,,22.78,,Facebook 4jk668nnh2,Advertising Services,12
Tunbridge Wells Borough Council,,,,,,,,,,26/05/2015,,3.3,,Google *svcsapps_assem,Direct Marketing Continuity Subscription Merchants,13
Tunbridge Wells Borough Council,,,,,,,,,,26/05/2015,,2.22,,Facebook Vgue486ph2,Advertising Services,14
Tunbridge Wells Borough Council,,,,,,,,,,26/05/2015,,10.8,,Towing And Trailers,Towing Services,15
Tunbridge Wells Borough Council,,,,,,,,,,26/05/2015,,279.54,,Www.Gaffertape.Com,Other Industrial Supplies,16
Tunbridge Wells Borough Council,,,,,,,,,,26/05/2015,,19.99,,Chartered Ins Of,Miscellaneous General Merchandise,17
Tunbridge Wells Borough Council,,,,,,,,,,26/05/2015,,20,,Facebook Fnwrv7a6z2,Advertising Services,18
Tunbridge Wells Borough Council,,,,,,,,,,26/05/2015,,99.97,,Maplin Tunbrwells Tn1,Electronic Sales,19
Tunbridge Wells Borough Council,,,,,,,,,,26/05/2015,,489.35,,Sainsburys S/mkt,Grocery Stores and Supermarkets,20
Tunbridge Wells Borough Council,,,,,,,,,,26/05/2015,,121.03,,Mailchimp,Other Business Services,21
Tunbridge Wells Borough Council,,,,,,,,,,26/05/2015,,3.33,,Transaction Fees - Foreign Exchange Fee,-,22
Tunbridge Wells Borough Council,,,,,,,,,,26/05/2015,,20.49,,Facebook 5fmfz7j5z2,Advertising Services,23
Tunbridge Wells Borough Council,,,,,,,,,,26/05/2015,,20.05,,Facebook S8c9r766z2,Advertising Services,24
Tunbridge Wells Borough Council,,,,,,,,,,26/05/2015,,65.99,,Www.Betterlifehealthca,Dental/Laboratory/Medical Equipment & Supplies,25
Tunbridge Wells Borough Council,,,,,,,,,,26/05/2015,,155,,Hpsl/cds,Miscellaneous Publishing and Printing,26
Tunbridge Wells Borough Council,,,,,,,,,,26/05/2015,,40.02,,Facebook Szdsw7a5z2,Advertising Services,27
Tunbridge Wells Borough Council,,,,,,,,,,26/05/2015,,35.88,,Booker Limited Tunbridge,Caterers,28
Tunbridge Wells Borough Council,,,,,,,,,,26/05/2015,,50.27,,Booker Limited Tunbridge,Caterers,29
Tunbridge Wells Borough Council,,,,,,,,,,26/05/2015,,32.69,,Booker Limited Tunbridge,Caterers,30
Tunbridge Wells Borough Council,,,,,,,,,,26/05/2015,,11.5,,Tfl Cc/lez Charge,Bridge/Road Fees & Tolls,31
Tunbridge Wells Borough Council,,,,,,,,,,26/05/2015,,99.3,,Photobox Limited,Miscellaneous Publishing and Printing,32
Tunbridge Wells Borough Council,,,,,,,,,,26/05/2015,,6.04,,Waitrose 110,Grocery Stores and Supermarkets,33
Tunbridge Wells Borough Council,,,,,,,,,,26/05/2015,,4,,W M Morrison Plc,Grocery Stores and Supermarkets,34
Tunbridge Wells Borough Council,,,,,,,,,,26/05/2015,,124.52,,Booker Limited Tunbridge,Caterers,35
Tunbridge Wells Borough Council,,,,,,,,,,26/05/2015,,199.08,,Www.Posturite.Co.Uk,Office and Commercial Furniture,36
Tunbridge Wells Borough Council,,,,,,,,,,26/05/2015,,15.1,,London & South Eas,Passenger Railways,37
Tunbridge Wells Borough Council,,,,,,,,,,26/05/2015,,15.4,,London & South Eas,Passenger Railways,38
Tunbridge Wells Borough Council,,,,,,,,,,26/05/2015,,10,,Three Store,Telecommunication Services,39
Tunbridge Wells Borough Council,,,,,,,,,,26/05/2015,,119.19,,Www.Pret.Com,"Eating Places, Restaurants",40
Tunbridge Wells Borough Council,,,,,,,,,,26/05/2015,,22.5,,Www.Dvla.Gov.Uk,Government Services,41
Tunbridge Wells Borough Council,,,,,,,,,,26/05/2015,,45,,Paypal *appletreela,Womens Ready to Wear Stores,42
Tunbridge Wells Borough Council,,,,,,,,,,26/05/2015,,99.9,,"Amazon Svcs Europe,sar",Book Stores,43
Tunbridge Wells Borough Council,,,,,,,,,,26/05/2015,,675,,Hmcourts-Service.G,Fines,44
Tunbridge Wells Borough Council,,,,,,,,,,26/05/2015,,236.4,,Paypal *healthcours,"Colleges, Universities, Professional Schools",45
Tunbridge Wells Borough Council,,,,,,,,,,26/05/2015,,4.74,,"Amazon Svcs Europe,sar",Book Stores,46
Tunbridge Wells Borough Council,,,,,,,,,,26/05/2015,,35,,Www.Ico.Gov.Uk,Government Services,47
Tunbridge Wells Borough Council,,,,,,,,,,26/05/2015,,29.74,,"Amazon Svcs Europe,sar",Book Stores,48
Tunbridge Wells Borough Council,,,,,,,,,,26/05/2015,,153,,Www.Evaq8.Co.Uk,Sporting Goods Stores,49
Tunbridge Wells Borough Council,,,,,,,,,,26/05/2015,,293.94,,Www.Ukpos.Com,"Office, School Supply, and Stationery Stores",50
Tunbridge Wells Borough Council,,,,,,,,,,26/05/2015,,15.99,,"Amazon Svcs Europe,sar",Book Stores,51
Tunbridge Wells Borough Council,Environmental and regulatory services ,105,EN,Environment & Street Scene,HEAD OF ENVIRONMENT & SS,EXTERNAL TRAINING,204,-,-,01/06/2015,P03_73,75,Revenue,CIEH LIMITED,MEMBERSHIP ORGANIZATIONS NOT ELSEWHERE CLASSIFIED,52
Tunbridge Wells Borough Council,Central Services,102,CO,Communications,COMMUNICATIONS AND ENGAGEMENT,PROJECTS & INITIATIVES,3910,-,-,02/06/2015,P03_59,69.17,Revenue,WWW.INSTANTPRINT.C,QUICK-COPY AND REPRODUCTION SERVICES,53
Tunbridge Wells Borough Council,Central Services,102,CO,Community & Corporate Planning,D OF CHANGE & COMMUNITIES,SUBS TO ORGANISATIONS,3730,-,-,02/06/2015,P03_69,85,Revenue,HAR*HARVARD BUSNS REV,CONTINUITY/SUBSCRIPTION MERCHANTS,54
Tunbridge Wells Borough Council,Central Services,102,CO,Communications,COMMUNICATIONS AND ENGAGEMENT,PROJECTS & INITIATIVES,3910,-,-,02/06/2015,P03_59,69.17,Revenue,WWW.INSTANTPRINT.C,QUICK-COPY AND REPRODUCTION SERVICES,55
Tunbridge Wells Borough Council,Central Services,102,CO,Community & Corporate Planning,D OF CHANGE & COMMUNITIES,SUBS TO ORGANISATIONS,3730,-,-,02/06/2015,P03_69,85,Revenue,HAR*HARVARD BUSNS REV,CONTINUITY/SUBSCRIPTION MERCHANTS,56
Tunbridge Wells Borough Council,Housing Services,108,HO,Housing Services & Health,TN2 COMMUNITY CENTRE,COGS -FOOD,3090,-,-,03/06/2015,P03_12,8.74,Revenue,ASDA STORES 4776,GROCERY STORES  SUPERMARKETS,57
Tunbridge Wells Borough Council,Housing Services,108,HO,Housing Services & Health,TN2 COMMUNITY CENTRE,COGS -FOOD,3090,-,-,03/06/2015,P03_18,52.43,Revenue,ASDA STORES 4776,GROCERY STORES  SUPERMARKETS,58
Tunbridge Wells Borough Council,Housing Services,108,HO,Housing Services & Health,TN2 COMMUNITY CENTRE,PROJECTS & INITIATIVES,3910,-,-,03/06/2015,P03_25,43.66,Revenue,ASDA STORES 4776,GROCERY STORES  SUPERMARKETS,59
Tunbridge Wells Borough Council,Housing Services,108,HO,Housing Services & Health,TN2 COMMUNITY CENTRE,PROJECTS & INITIATIVES,3910,-,-,03/06/2015,P03_27,12.92,Revenue,ASDA STORES 4776,GROCERY STORES  SUPERMARKETS,60
Tunbridge Wells Borough Council,Housing Services,108,HO,Housing Services & Health,TN2 COMMUNITY CENTRE,PROJECTS & INITIATIVES,3910,-,-,03/06/2015,P03_29,28.11,Revenue,ASDA STORES 4776,GROCERY STORES  SUPERMARKETS,61
Tunbridge Wells Borough Council,Environmental and regulatory services ,105,EN,Environment & Street Scene,CLEANER BOROUGH,LICENCES,1050,-,-,03/06/2015,P03_32,227.5,Revenue,WWW.DVLA.GOV.UK,GOVERNMENT SERVICES NOT ELSEWHERE CLASSIFIED,62
Tunbridge Wells Borough Council,Central Services,102,CH,Chief Executive's Office,CHIEF EXECUTIVE,PUBLIC TRANSPORT,1430,-,-,03/06/2015,P03_55,70.6,Revenue,VIRGINTRAINSEC SERVCS,PASSENGER RAILWAYS,63
Tunbridge Wells Borough Council,Housing Services,108,HO,Housing Services & Health,TN2 COMMUNITY CENTRE,COGS -FOOD,3090,-,-,03/06/2015,P03_12,8.74,Revenue,ASDA STORES 4776,GROCERY STORES  SUPERMARKETS,64
Tunbridge Wells Borough Council,Housing Services,108,HO,Housing Services & Health,TN2 COMMUNITY CENTRE,COGS -FOOD,3090,-,-,03/06/2015,P03_18,52.43,Revenue,ASDA STORES 4776,GROCERY STORES  SUPERMARKETS,65
Tunbridge Wells Borough Council,Housing Services,108,HO,Housing Services & Health,TN2 COMMUNITY CENTRE,PROJECTS & INITIATIVES,3910,-,-,03/06/2015,P03_25,43.66,Revenue,ASDA STORES 4776,GROCERY STORES  SUPERMARKETS,66
Tunbridge Wells Borough Council,Housing Services,108,HO,Housing Services & Health,TN2 COMMUNITY CENTRE,PROJECTS & INITIATIVES,3910,-,-,03/06/2015,P03_27,12.92,Revenue,ASDA STORES 4776,GROCERY STORES  SUPERMARKETS,67
Tunbridge Wells Borough Council,Housing Services,108,HO,Housing Services & Health,TN2 COMMUNITY CENTRE,PROJECTS & INITIATIVES,3910,-,-,03/06/2015,P03_29,28.11,Revenue,ASDA STORES 4776,GROCERY STORES  SUPERMARKETS,68
Tunbridge Wells Borough Council,Environmental and regulatory services ,105,EN,Environment & Street Scene,CLEANER BOROUGH,LICENCES,1050,-,-,03/06/2015,P03_32,227.5,Revenue,WWW.DVLA.GOV.UK,GOVERNMENT SERVICES NOT ELSEWHERE CLASSIFIED,69
Tunbridge Wells Borough Council,Central Services,102,CH,Chief Executive's Office,CHIEF EXECUTIVE,PUBLIC TRANSPORT,1430,-,-,03/06/2015,P03_55,70.6,Revenue,VIRGINTRAINSEC SERVCS,PASSENGER RAILWAYS,70
Tunbridge Wells Borough Council,Housing Services,108,HO,Housing Services & Health,TN2 COMMUNITY CENTRE,PROJECTS & INITIATIVES,3910,-,-,05/06/2015,P03_28,29.96,Revenue,99P STORES LTD,GROCERY STORES  SUPERMARKETS,71
Tunbridge Wells Borough Council,Housing Services,108,HO,Housing Services & Health,TN2 COMMUNITY CENTRE,PROJECTS & INITIATIVES,3910,-,-,05/06/2015,P03_28,29.96,Revenue,99P STORES LTD,GROCERY STORES  SUPERMARKETS,72
Tunbridge Wells Borough Council,Planning Services,110,EC,Economic Development & Regeneration,ECONOMIC DEVELOPMENT,PROMOTION,3450,-,-,07/06/2015,P03_53,-9.74,Revenue,HOOTSUITE MEDIA INC.,BUSINESS SERVICES NOT ELSEWHERE CLASSIFIED,73
Tunbridge Wells Borough Council,Planning Services,110,EC,Economic Development & Regeneration,ECONOMIC DEVELOPMENT,PROMOTION,3450,-,-,07/06/2015,P03_53,-9.74,Revenue,HOOTSUITE MEDIA INC.,BUSINESS SERVICES NOT ELSEWHERE CLASSIFIED,74
Tunbridge Wells Borough Council,Central Services,102,CH,Chief Executive's Office,MAYORAL,MAYORAL EXPENSES,3690,MISC MAYORAL EXPEN,EV0123,08/06/2015,P03_63,4.16,Revenue,W M MORRISON PLC,GROCERY STORES  SUPERMARKETS,75
Tunbridge Wells Borough Council,Central Services,102,OV,Overview & Scrutiny,DEMOCRATIC MANAGEMENT,HOSPITALITY,3720,-,-,08/06/2015,P03_67,35,Revenue,FLOWERS AT COCONNADE,FLORISTS,76
Tunbridge Wells Borough Council,Central Services,102,OV,Overview & Scrutiny,DEMOCRATIC MANAGEMENT,HOSPITALITY,3720,-,-,08/06/2015,P03_68,35,Revenue,FLOWERS AT COCONNADE,FLORISTS,77
Tunbridge Wells Borough Council,Central Services,102,CH,Chief Executive's Office,MAYORAL,MAYORAL EXPENSES,3690,MISC MAYORAL EXPEN,EV0123,08/06/2015,P03_63,4.16,Revenue,W M MORRISON PLC,GROCERY STORES  SUPERMARKETS,78
Tunbridge Wells Borough Council,Central Services,102,OV,Overview & Scrutiny,DEMOCRATIC MANAGEMENT,HOSPITALITY,3720,-,-,08/06/2015,P03_67,35,Revenue,FLOWERS AT COCONNADE,FLORISTS,79
Tunbridge Wells Borough Council,Central Services,102,OV,Overview & Scrutiny,DEMOCRATIC MANAGEMENT,HOSPITALITY,3720,-,-,08/06/2015,P03_68,35,Revenue,FLOWERS AT COCONNADE,FLORISTS,80
Tunbridge Wells Borough Council,Central Services,102,FI,Finance & Local Goverance,TW PROPERTY COMPANY,OTHER FEES,3330,-,-,10/06/2015,P03_52,10,Revenue,WWW.UK2.NET,CONTINUITY/SUBSCRIPTION MERCHANTS,81
Tunbridge Wells Borough Council,Central Services,102,FI,Finance & Local Goverance,TW PROPERTY COMPANY,OTHER FEES,3330,-,-,10/06/2015,P03_52,10,Revenue,WWW.UK2.NET,CONTINUITY/SUBSCRIPTION MERCHANTS,82
Tunbridge Wells Borough Council,Housing Services,108,HO,Housing Services & Health,TN2 COMMUNITY CENTRE,PROJECTS & INITIATIVES,3910,-,-,11/06/2015,P03_26,8.75,Revenue,SEVENOAKS DISTRICT,GOVERNMENT SERVICES NOT ELSEWHERE CLASSIFIED,83
Tunbridge Wells Borough Council,Central Services,102,CH,Chief Executive's Office,MAYORAL,MAYORAL EXPENSES,3690,MISC MAYORAL EXPEN,EV0123,11/06/2015,P03_64,3.5,Revenue,WAITROSE 110,GROCERY STORES  SUPERMARKETS,84
Tunbridge Wells Borough Council,Housing Services,108,HO,Housing Services & Health,TN2 COMMUNITY CENTRE,PROJECTS & INITIATIVES,3910,-,-,11/06/2015,P03_26,8.75,Revenue,SEVENOAKS DISTRICT,GOVERNMENT SERVICES NOT ELSEWHERE CLASSIFIED,85
Tunbridge Wells Borough Council,Central Services,102,CH,Chief Executive's Office,MAYORAL,MAYORAL EXPENSES,3690,MISC MAYORAL EXPEN,EV0123,11/06/2015,P03_64,3.5,Revenue,WAITROSE 110,GROCERY STORES  SUPERMARKETS,86
Tunbridge Wells Borough Council,Cultural and Related Services,104,LE,Leisure & Well-being,A-HALL MANAGEMENT,FUEL & OIL,1010,-,-,12/06/2015,P03_36,23.82,Revenue,This data has been redacted under the Data Protection Act,SERVICE STATIONS,87
Tunbridge Wells Borough Council,Cultural and Related Services,104,LE,Leisure & Well-being,A-HALL MANAGEMENT,FUEL & OIL,1010,-,-,12/06/2015,P03_36,23.82,Revenue,This data has been redacted under the Data Protection Act,SERVICE STATIONS,88
Tunbridge Wells Borough Council,Cultural and Related Services,104,LE,Leisure & Well-being,A-HALL MKTG & SALES,PROMOTION,3450,-,-,15/06/2015,P03_42,74.29,Revenue,MAILCHIMP,BUSINESS SERVICES NOT ELSEWHERE CLASSIFIED,89
Tunbridge Wells Borough Council,Cultural and Related Services,104,LE,Leisure & Well-being,A-HALL MKTG & SALES,PROMOTION,3450,-,-,15/06/2015,P03_42,74.29,Revenue,MAILCHIMP,BUSINESS SERVICES NOT ELSEWHERE CLASSIFIED,90
Tunbridge Wells Borough Council,Environmental and regulatory services ,105,EN,Environment & Street Scene,CLEANER BOROUGH,VEHICLE REPAIRS & SUNDRIES,1040,-,-,16/06/2015,P03_31,2.99,Revenue,"AMAZON SVCS EUROPE, SAR",BOOK STORES,91
Tunbridge Wells Borough Council,Cultural and Related Services,104,LE,Leisure & Well-being,A-HALL MKTG & SALES,PROMOTION,3450,-,-,16/06/2015,P03_40,2.04,Revenue,FOREIGN EXCHANGE FEE,0,92
Tunbridge Wells Borough Council,Planning Services,110,EC,Economic Development & Regeneration,ECONOMIC DEVELOPMENT,PROMOTION,3450,-,-,16/06/2015,P03_54,-0.27,Revenue,FOREIGN EXCHANGE FEE,0,93
Tunbridge Wells Borough Council,Central Services,102,GA,Gateway,GATEWAY,EQUIPMENT PURCHASE/MTCE,3000,CALL CENTRE,EV0341,16/06/2015,P03_72,21.45,Revenue,"AMAZON SVCS EUROPE, SAR",BOOK STORES,94
Tunbridge Wells Borough Council,Environmental and regulatory services ,105,EN,Environment & Street Scene,CLEANER BOROUGH,VEHICLE REPAIRS & SUNDRIES,1040,-,-,16/06/2015,P03_31,2.99,Revenue,"AMAZON SVCS EUROPE, SAR",BOOK STORES,95
Tunbridge Wells Borough Council,Cultural and Related Services,104,LE,Leisure & Well-being,A-HALL MKTG & SALES,PROMOTION,3450,-,-,16/06/2015,P03_40,2.04,Revenue,FOREIGN EXCHANGE FEE,0,96
Tunbridge Wells Borough Council,Planning Services,110,EC,Economic Development & Regeneration,ECONOMIC DEVELOPMENT,PROMOTION,3450,-,-,16/06/2015,P03_54,-0.27,Revenue,FOREIGN EXCHANGE FEE,0,97
Tunbridge Wells Borough Council,Central Services,102,GA,Gateway,GATEWAY,EQUIPMENT PURCHASE/MTCE,3000,CALL CENTRE,EV0341,16/06/2015,P03_72,21.45,Revenue,"AMAZON SVCS EUROPE, SAR",BOOK STORES,98
Tunbridge Wells Borough Council,Central Services,102,HR,Human Resources,HUMAN RESOURCES,EXTERNAL TRAINING,204,-,-,17/06/2015,P03_57,-41.5,Revenue,WWW.SOLACE.ORG.UK,MEMBERSHIP ORGANIZATIONS NOT ELSEWHERE CLASSIFIED,99
Tunbridge Wells Borough Council,Central Services,102,HR,Human Resources,HUMAN RESOURCES,EXTERNAL TRAINING,204,-,-,17/06/2015,P03_58,-207.5,Revenue,WWW.SOLACE.ORG.UK,MEMBERSHIP ORGANIZATIONS NOT ELSEWHERE CLASSIFIED,100
Tunbridge Wells Borough Council,,,,,,,,,,26/05/2015,,660,,Pinnacle Response Ltd,Miscellaneous and Specialty Retail Stores,101
Tunbridge Wells Borough Council,,,,,,,,,,26/05/2015,,59.96,,"Amazon Svcs Europe,sar",Book Stores,102
Tunbridge Wells Borough Council,,,,,,,,,,26/05/2015,,327.12,,Biotects Ltd,"Quick Copy, Reproduction, and Blueprinting Service",103
Tunbridge Wells Borough Council,,,,,,,,,,26/05/2015,,65,,Cieh Limited,"Organizations, Membership",104
Tunbridge Wells Borough Council,,,,,,,,,,26/05/2015,,75,,Cieh Limited,"Organizations, Membership",105
Tunbridge Wells Borough Council,,,,,,,,,,26/05/2015,,75,,Cieh Limited,"Organizations, Membership",106
Tunbridge Wells Borough Council,,,,,,,,,,26/05/2015,,273.6,,Victoria & Albert Thea,Motion Picture Theaters,107
Tunbridge Wells Borough Council,,,,,,,,,,26/05/2015,,77.39,,Hootsuite Media Inc.,Other Business Services,108
Tunbridge Wells Borough Council,,,,,,,,,,26/05/2015,,2.13,,Transaction Fees - Foreign Exchange Fee,-,109
Tunbridge Wells Borough Council,,,,,,,,,,26/05/2015,,60,,Paypal *htf,Professional Services,110
Tunbridge Wells Borough Council,,,,,,,,,,26/05/2015,,61.95,,Avangate*movavi.Com,Computer Software Stores,111
Tunbridge Wells Borough Council,,,,,,,,,,26/05/2015,,231.09,,Bookerecomm,Caterers,112
Tunbridge Wells Borough Council,,,,,,,,,,26/05/2015,,34.07,,Glen Dimplex Home Appl,Household Appliance Stores,113
Tunbridge Wells Borough Council,,,,,,,,,,26/05/2015,,20.19,,B & Q,Lumber & Building Materials Stores,114
Tunbridge Wells Borough Council,,,,,,,,,,26/05/2015,,165.11,,Bookerecomm,Caterers,115
Tunbridge Wells Borough Council,,,,,,,,,,26/05/2015,,24.69,,Asda Stores 4776,Grocery Stores and Supermarkets,116
Tunbridge Wells Borough Council,,,,,,,,,,26/05/2015,,112.25,,Bookerecomm,Caterers,117
Tunbridge Wells Borough Council,,,,,,,,,,26/05/2015,,15.19,,Asda Stores 4776,Grocery Stores and Supermarkets,118
Tunbridge Wells Borough Council,,,,,,,,,,26/05/2015,,62.01,,B & Q,Lumber & Building Materials Stores,119
Tunbridge Wells Borough Council,,,,,,,,,,26/05/2015,,200.35,,Bookerecomm,Caterers,120
Tunbridge Wells Borough Council,,,,,,,,,,26/05/2015,,18.45,,Asda Stores 4776,Grocery Stores and Supermarkets,121
Tunbridge Wells Borough Council,,,,,,,,,,26/05/2015,,46.23,,Booker Limited Tunbridge,Caterers,122
Tunbridge Wells Borough Council,,,,,,,,,,26/05/2015,,160.92,,Bookerecomm,Caterers,123
Tunbridge Wells Borough Council,Housing Services,108,HO,Housing Services & Health,HOUSING NEEDS SERVICE,CONFERENCES/SEMINARS,205,-,-,26/05/2015,P03_01,45,Revenue,PAYPAL *RURALSERVIC,CIVIC  SOCIAL AND FRATERNAL ASSOCIATIONS,124
Tunbridge Wells Borough Council,Central Services,102,FI,Finance & Local Goverance,REVS & BENS ADMINISTRATION,COURT FEES,3263,-,-,26/05/2015,P03_49,1350,Revenue,HMCOURTS-SERVICE.G,FINES,125
Tunbridge Wells Borough Council,Central Services,102,FI,Finance & Local Goverance,REVS & BENS ADMINISTRATION,COURT FEES,3263,-,-,26/05/2015,P03_51,1359,Revenue,HMCOURTS-SERVICE.G,FINES,126
Tunbridge Wells Borough Council,Housing Services,108,HO,Housing Services & Health,HOUSING NEEDS SERVICE,HOMELESSNESS EXPENSES,3912,-,-,27/05/2015,P03_02,15,Revenue,TESCO STORES 3304,GROCERY STORES  SUPERMARKETS,127
Tunbridge Wells Borough Council,Housing Services,108,HO,Housing Services & Health,HOUSING NEEDS SERVICE,HOMELESSNESS EXPENSES,3912,-,-,27/05/2015,P03_03,3.83,Revenue,TESCO STORES 3304,GROCERY STORES  SUPERMARKETS,128
Tunbridge Wells Borough Council,Housing Services,108,HO,Housing Services & Health,TN2 COMMUNITY CENTRE,CONSUMABLES & MATERIALS,3060,-,-,27/05/2015,P03_09,18.49,Revenue,BOOKER LIMITED TUNBRIDGE,CATERERS,129
Tunbridge Wells Borough Council,Housing Services,108,HO,Housing Services & Health,TN2 COMMUNITY CENTRE,CONSUMABLES & MATERIALS,3060,-,-,27/05/2015,P03_10,16.98,Revenue,BOOKER LIMITED TUNBRIDGE,CATERERS,130
Tunbridge Wells Borough Council,Housing Services,108,HO,Housing Services & Health,TN2 COMMUNITY CENTRE,COGS -FOOD,3090,-,-,27/05/2015,P03_15,64.92,Revenue,BOOKER LIMITED TUNBRIDGE,CATERERS,131
Tunbridge Wells Borough Council,Housing Services,108,HO,Housing Services & Health,TN2 COMMUNITY CENTRE,COGS - DRINK,3091,-,-,27/05/2015,P03_20,16.58,Revenue,BOOKER LIMITED TUNBRIDGE,CATERERS,132
Tunbridge Wells Borough Council,Cultural and Related Services,104,LE,Leisure & Well-being,A-HALL COUNCIL SHOWS,PROMOTION,3450,150601-06 AVENUE Q,A15F01,27/05/2015,P03_43,102.27,Revenue,BOOKER LIMITED TUNBRIDGE,CATERERS,133
Tunbridge Wells Borough Council,Cultural and Related Services,104,LE,Leisure & Well-being,A-HALL FRONT OF HOUSE,COGS - DRINK,3091,-,-,27/05/2015,P03_47,5.18,Revenue,BOOKER LIMITED TUNBRIDGE,CATERERS,134
Tunbridge Wells Borough Council,Cultural and Related Services,104,LE,Leisure & Well-being,A-HALL FRONT OF HOUSE,COGS - DRINK,3091,-,-,27/05/2015,P03_48,46.92,Revenue,BOOKER LIMITED TUNBRIDGE,CATERERS,135
Tunbridge Wells Borough Council,Central Services,102,CH,Chief Executive's Office,MAYORAL,MAYORAL EXPENSES,3690,MAYOR MAKING,EV0100,27/05/2015,P03_60,-29.99,Revenue,BOOKER LIMITED TUNBRIDGE,CATERERS,136
Tunbridge Wells Borough Council,Central Services,102,CH,Chief Executive's Office,MAYORAL,MAYORAL EXPENSES,3690,MAYOR MAKING,EV0100,27/05/2015,P03_61,9,Revenue,BOOKER LIMITED TUNBRIDGE,CATERERS,137
Tunbridge Wells Borough Council,Housing Services,108,HO,Housing Services & Health,HOUSING NEEDS SERVICE,HOMELESSNESS EXPENSES,3912,-,-,27/05/2015,P03_02,15,Revenue,TESCO STORES 3304,GROCERY STORES  SUPERMARKETS,138
Tunbridge Wells Borough Council,Housing Services,108,HO,Housing Services & Health,HOUSING NEEDS SERVICE,HOMELESSNESS EXPENSES,3912,-,-,27/05/2015,P03_03,3.83,Revenue,TESCO STORES 3304,GROCERY STORES  SUPERMARKETS,139
Tunbridge Wells Borough Council,Housing Services,108,HO,Housing Services & Health,TN2 COMMUNITY CENTRE,CONSUMABLES & MATERIALS,3060,-,-,27/05/2015,P03_09,18.49,Revenue,BOOKER LIMITED TUNBRIDGE,CATERERS,140
Tunbridge Wells Borough Council,Housing Services,108,HO,Housing Services & Health,TN2 COMMUNITY CENTRE,CONSUMABLES & MATERIALS,3060,-,-,27/05/2015,P03_10,16.98,Revenue,BOOKER LIMITED TUNBRIDGE,CATERERS,141
Tunbridge Wells Borough Council,Housing Services,108,HO,Housing Services & Health,TN2 COMMUNITY CENTRE,COGS -FOOD,3090,-,-,27/05/2015,P03_15,64.92,Revenue,BOOKER LIMITED TUNBRIDGE,CATERERS,142
Tunbridge Wells Borough Council,Housing Services,108,HO,Housing Services & Health,TN2 COMMUNITY CENTRE,COGS - DRINK,3091,-,-,27/05/2015,P03_20,16.58,Revenue,BOOKER LIMITED TUNBRIDGE,CATERERS,143
Tunbridge Wells Borough Council,Cultural and Related Services,104,LE,Leisure & Well-being,A-HALL COUNCIL SHOWS,PROMOTION,3450,150601-06 AVENUE Q,A15F01,27/05/2015,P03_43,102.27,Revenue,BOOKER LIMITED TUNBRIDGE,CATERERS,144
Tunbridge Wells Borough Council,Cultural and Related Services,104,LE,Leisure & Well-being,A-HALL FRONT OF HOUSE,COGS - DRINK,3091,-,-,27/05/2015,P03_47,5.18,Revenue,BOOKER LIMITED TUNBRIDGE,CATERERS,145
Tunbridge Wells Borough Council,Cultural and Related Services,104,LE,Leisure & Well-being,A-HALL FRONT OF HOUSE,COGS - DRINK,3091,-,-,27/05/2015,P03_48,46.92,Revenue,BOOKER LIMITED TUNBRIDGE,CATERERS,146
Tunbridge Wells Borough Council,Central Services,102,CH,Chief Executive's Office,MAYORAL,MAYORAL EXPENSES,3690,MAYOR MAKING,EV0100,27/05/2015,P03_60,-29.99,Revenue,BOOKER LIMITED TUNBRIDGE,CATERERS,147
Tunbridge Wells Borough Council,Central Services,102,CH,Chief Executive's Office,MAYORAL,MAYORAL EXPENSES,3690,MAYOR MAKING,EV0100,27/05/2015,P03_61,9,Revenue,BOOKER LIMITED TUNBRIDGE,CATERERS,148
Tunbridge Wells Borough Council,Environmental and regulatory services ,105,EN,Environment & Street Scene,ENVIRONMENTAL PROTECTION,EQUIPMENT PURCHASE/MTCE,3000,-,-,29/05/2015,P03_30,74.98,Revenue,AMAZON UK RETAIL,ALL OTHER DIRECT MARKETERS,149
Tunbridge Wells Borough Council,Cultural and Related Services,104,LE,Leisure & Well-being,A-HALL COUNCIL SHOWS,PROMOTION,3450,150728 - 010815 CALAMITY JANE,A15G01,29/05/2015,P03_46,17.7,Revenue,AMAZON UK RETAIL,ALL OTHER DIRECT MARKETERS,150
Tunbridge Wells Borough Council,Central Services,102,GA,Gateway,GATEWAY,FIRE & SECURITY COSTS,2080,GATEWAY,EV0340,29/05/2015,P03_70,181,Revenue,PAXTON ACCESS,COMPUTER NETWORK/INFORMATION SERVICES,151
Tunbridge Wells Borough Council,Environmental and regulatory services ,105,EN,Environment & Street Scene,ENVIRONMENTAL PROTECTION,EQUIPMENT PURCHASE/MTCE,3000,-,-,29/05/2015,P03_30,74.98,Revenue,AMAZON UK RETAIL,ALL OTHER DIRECT MARKETERS,152
Tunbridge Wells Borough Council,Cultural and Related Services,104,LE,Leisure & Well-being,A-HALL COUNCIL SHOWS,PROMOTION,3450,150728 - 010815 CALAMITY JANE,A15G01,29/05/2015,P03_46,17.7,Revenue,AMAZON UK RETAIL,ALL OTHER DIRECT MARKETERS,153
Tunbridge Wells Borough Council,Central Services,102,GA,Gateway,GATEWAY,FIRE & SECURITY COSTS,2080,GATEWAY,EV0340,29/05/2015,P03_70,181,Revenue,PAXTON ACCESS,COMPUTER NETWORK/INFORMATION SERVICES,154
Tunbridge Wells Borough Council,Cultural and Related Services,104,LE,Leisure & Well-being,A-HALL COUNCIL SHOWS,PROMOTION,3450,150601-06 AVENUE Q,A15F01,31/05/2015,P03_45,47.05,Revenue,FACEBOOK ELWL28N5Z2,ADVERTISING SERVICES,155
Tunbridge Wells Borough Council,Cultural and Related Services,104,LE,Leisure & Well-being,A-HALL COUNCIL SHOWS,PROMOTION,3450,150601-06 AVENUE Q,A15F01,31/05/2015,P03_45,47.05,Revenue,FACEBOOK ELWL28N5Z2,ADVERTISING SERVICES,156
Tunbridge Wells Borough Council,Housing Services,108,HO,Housing Services & Health,TN2 COMMUNITY CENTRE,CLEANING SUPPLIES,2500,-,-,01/06/2015,P03_04,7.49,Revenue,BOOKERECOMM,CATERERS,157
Tunbridge Wells Borough Council,Housing Services,108,HO,Housing Services & Health,TN2 COMMUNITY CENTRE,CLEANING SUPPLIES,2500,-,-,01/06/2015,P03_05,14.27,Revenue,BOOKERECOMM,CATERERS,158
Tunbridge Wells Borough Council,Housing Services,108,HO,Housing Services & Health,TN2 COMMUNITY CENTRE,CONSUMABLES & MATERIALS,3060,-,-,01/06/2015,P03_06,19.97,Revenue,BOOKERECOMM,CATERERS,159
Tunbridge Wells Borough Council,Highways and Transport Services,107,EN,Environment & Street Scene,PARKING ADMIN & ENFORCEMENT,FUEL & OIL,1010,-,-,06/07/2015,P04_14,10,Revenue,DANIELS SILVERMAN,MISCELLANEOUS PERSONAL SERVICES,160
Tunbridge Wells Borough Council,Housing Services,108,HO,Housing Services & Health,TN2 COMMUNITY CENTRE,CONSUMABLES & MATERIALS,3060,-,-,01/06/2015,P03_07,2.99,Revenue,BOOKERECOMM,CATERERS,161
Tunbridge Wells Borough Council,Housing Services,108,HO,Housing Services & Health,TN2 COMMUNITY CENTRE,CONSUMABLES & MATERIALS,3060,-,-,01/06/2015,P03_08,7.99,Revenue,BOOKERECOMM,CATERERS,162
Tunbridge Wells Borough Council,Housing Services,108,HO,Housing Services & Health,TN2 COMMUNITY CENTRE,CONSUMABLES & MATERIALS,3060,-,-,01/06/2015,P03_11,22.97,Revenue,BOOKERECOMM,CATERERS,163
Tunbridge Wells Borough Council,Housing Services,108,HO,Housing Services & Health,TN2 COMMUNITY CENTRE,COGS -FOOD,3090,-,-,01/06/2015,P03_13,113.02,Revenue,BOOKERECOMM,CATERERS,164
Tunbridge Wells Borough Council,Housing Services,108,HO,Housing Services & Health,TN2 COMMUNITY CENTRE,COGS -FOOD,3090,-,-,01/06/2015,P03_14,208.41,Revenue,BOOKERECOMM,CATERERS,165
Tunbridge Wells Borough Council,Housing Services,108,HO,Housing Services & Health,TN2 COMMUNITY CENTRE,COGS -FOOD,3090,-,-,01/06/2015,P03_16,139.38,Revenue,BOOKERECOMM,CATERERS,166
Tunbridge Wells Borough Council,Housing Services,108,HO,Housing Services & Health,TN2 COMMUNITY CENTRE,COGS -FOOD,3090,-,-,01/06/2015,P03_17,196.72,Revenue,BOOKERECOMM,CATERERS,167
Tunbridge Wells Borough Council,Housing Services,108,HO,Housing Services & Health,TN2 COMMUNITY CENTRE,COGS -FOOD,3090,-,-,01/06/2015,P03_19,10.17,Revenue,BOOKERECOMM,CATERERS,168
Tunbridge Wells Borough Council,Housing Services,108,HO,Housing Services & Health,TN2 COMMUNITY CENTRE,COGS - DRINK,3091,-,-,01/06/2015,P03_21,16.47,Revenue,BOOKERECOMM,CATERERS,169
Tunbridge Wells Borough Council,Housing Services,108,HO,Housing Services & Health,TN2 COMMUNITY CENTRE,COGS - DRINK,3091,-,-,01/06/2015,P03_22,48.32,Revenue,BOOKERECOMM,CATERERS,170
Tunbridge Wells Borough Council,Housing Services,108,HO,Housing Services & Health,TN2 COMMUNITY CENTRE,COGS - DRINK,3091,-,-,01/06/2015,P03_23,20.26,Revenue,BOOKERECOMM,CATERERS,171
Tunbridge Wells Borough Council,Housing Services,108,HO,Housing Services & Health,TN2 COMMUNITY CENTRE,COGS - DRINK,3091,-,-,01/06/2015,P03_24,8.29,Revenue,BOOKERECOMM,CATERERS,172
Tunbridge Wells Borough Council,Cultural and Related Services,104,LE,Leisure & Well-being,A-HALL MANAGEMENT,CONFERENCES/SEMINARS,205,-,-,01/06/2015,P03_34,49.21,Revenue,TRAINLINE.COM,PASSENGER RAILWAYS,173
Tunbridge Wells Borough Council,Cultural and Related Services,104,LE,Leisure & Well-being,A-HALL MANAGEMENT,CONFERENCES/SEMINARS,205,-,-,01/06/2015,P03_35,25,Revenue,WWW.CIM.CO.UK,PROFESSIONAL SERVICES NOT ELSEWHERE CLASSIFIED,174
Tunbridge Wells Borough Council,Cultural and Related Services,104,LE,Leisure & Well-being,A-HALL MANAGEMENT,HOSPITALITY,3720,-,-,01/06/2015,P03_38,3.33,Revenue,SACAT MARKS&SPENCER,GROCERY STORES  SUPERMARKETS,175
Tunbridge Wells Borough Council,Cultural and Related Services,104,LE,Leisure & Well-being,A-HALL MKTG & SALES,PROMOTION,3450,-,-,01/06/2015,P03_41,3.3,Revenue,GOOGLE *SVCSAPPS_ASSEM,CONTINUITY/SUBSCRIPTION MERCHANTS,176
Tunbridge Wells Borough Council,Cultural and Related Services,104,LE,Leisure & Well-being,A-HALL COUNCIL SHOWS,PROMOTION,3450,150601-06 AVENUE Q,A15F01,01/06/2015,P03_44,24.58,Revenue,WM MORRISONS STORE,GROCERY STORES  SUPERMARKETS,177
Tunbridge Wells Borough Council,Central Services,102,CH,Chief Executive's Office,CHIEF EXECUTIVE,SUBS TO ORGANISATIONS,3730,-,-,01/06/2015,P03_56,199,Revenue,EMAP LTD-SUBSCRIPTIONS,MISCELLANEOUS PUBLISHING & PRINTING,178
Tunbridge Wells Borough Council,Central Services,102,OV,Overview & Scrutiny,DEMOCRATIC MANAGEMENT,STATIONERY,3160,-,-,01/06/2015,P03_65,41.97,Revenue,OHSOCHERISH,GIFT  CARD  NOVELTY  AND SOUVENIR SHOPS,179
Tunbridge Wells Borough Council,Environmental and regulatory services ,105,EN,Environment & Street Scene,HEAD OF ENVIRONMENT & SS,EXTERNAL TRAINING,204,-,-,01/06/2015,P03_73,75,Revenue,CIEH LIMITED,MEMBERSHIP ORGANIZATIONS NOT ELSEWHERE CLASSIFIED,180
Tunbridge Wells Borough Council,Housing Services,108,HO,Housing Services & Health,TN2 COMMUNITY CENTRE,CLEANING SUPPLIES,2500,-,-,01/06/2015,P03_04,7.49,Revenue,BOOKERECOMM,CATERERS,181
Tunbridge Wells Borough Council,Housing Services,108,HO,Housing Services & Health,TN2 COMMUNITY CENTRE,CLEANING SUPPLIES,2500,-,-,01/06/2015,P03_05,14.27,Revenue,BOOKERECOMM,CATERERS,182
Tunbridge Wells Borough Council,Housing Services,108,HO,Housing Services & Health,TN2 COMMUNITY CENTRE,CONSUMABLES & MATERIALS,3060,-,-,01/06/2015,P03_06,19.97,Revenue,BOOKERECOMM,CATERERS,183
Tunbridge Wells Borough Council,Housing Services,108,HO,Housing Services & Health,TN2 COMMUNITY CENTRE,CONSUMABLES & MATERIALS,3060,-,-,01/06/2015,P03_07,2.99,Revenue,BOOKERECOMM,CATERERS,184
Tunbridge Wells Borough Council,Housing Services,108,HO,Housing Services & Health,TN2 COMMUNITY CENTRE,CONSUMABLES & MATERIALS,3060,-,-,01/06/2015,P03_08,7.99,Revenue,BOOKERECOMM,CATERERS,185
Tunbridge Wells Borough Council,Housing Services,108,HO,Housing Services & Health,TN2 COMMUNITY CENTRE,CONSUMABLES & MATERIALS,3060,-,-,01/06/2015,P03_11,22.97,Revenue,BOOKERECOMM,CATERERS,186
Tunbridge Wells Borough Council,Housing Services,108,HO,Housing Services & Health,TN2 COMMUNITY CENTRE,COGS -FOOD,3090,-,-,01/06/2015,P03_13,113.02,Revenue,BOOKERECOMM,CATERERS,187
Tunbridge Wells Borough Council,Housing Services,108,HO,Housing Services & Health,TN2 COMMUNITY CENTRE,COGS -FOOD,3090,-,-,01/06/2015,P03_14,208.41,Revenue,BOOKERECOMM,CATERERS,188
Tunbridge Wells Borough Council,Housing Services,108,HO,Housing Services & Health,TN2 COMMUNITY CENTRE,COGS -FOOD,3090,-,-,01/06/2015,P03_16,139.38,Revenue,BOOKERECOMM,CATERERS,189
Tunbridge Wells Borough Council,Housing Services,108,HO,Housing Services & Health,TN2 COMMUNITY CENTRE,COGS -FOOD,3090,-,-,01/06/2015,P03_17,196.72,Revenue,BOOKERECOMM,CATERERS,190
Tunbridge Wells Borough Council,Housing Services,108,HO,Housing Services & Health,TN2 COMMUNITY CENTRE,COGS -FOOD,3090,-,-,01/06/2015,P03_19,10.17,Revenue,BOOKERECOMM,CATERERS,191
Tunbridge Wells Borough Council,Housing Services,108,HO,Housing Services & Health,TN2 COMMUNITY CENTRE,COGS - DRINK,3091,-,-,01/06/2015,P03_21,16.47,Revenue,BOOKERECOMM,CATERERS,192
Tunbridge Wells Borough Council,Housing Services,108,HO,Housing Services & Health,TN2 COMMUNITY CENTRE,COGS - DRINK,3091,-,-,01/06/2015,P03_22,48.32,Revenue,BOOKERECOMM,CATERERS,193
Tunbridge Wells Borough Council,Housing Services,108,HO,Housing Services & Health,TN2 COMMUNITY CENTRE,COGS - DRINK,3091,-,-,01/06/2015,P03_23,20.26,Revenue,BOOKERECOMM,CATERERS,194
Tunbridge Wells Borough Council,Housing Services,108,HO,Housing Services & Health,TN2 COMMUNITY CENTRE,COGS - DRINK,3091,-,-,01/06/2015,P03_24,8.29,Revenue,BOOKERECOMM,CATERERS,195
Tunbridge Wells Borough Council,Cultural and Related Services,104,LE,Leisure & Well-being,A-HALL MANAGEMENT,CONFERENCES/SEMINARS,205,-,-,01/06/2015,P03_34,49.21,Revenue,TRAINLINE.COM,PASSENGER RAILWAYS,196
Tunbridge Wells Borough Council,Cultural and Related Services,104,LE,Leisure & Well-being,A-HALL MANAGEMENT,CONFERENCES/SEMINARS,205,-,-,01/06/2015,P03_35,25,Revenue,WWW.CIM.CO.UK,PROFESSIONAL SERVICES NOT ELSEWHERE CLASSIFIED,197
Tunbridge Wells Borough Council,Cultural and Related Services,104,LE,Leisure & Well-being,A-HALL MANAGEMENT,HOSPITALITY,3720,-,-,01/06/2015,P03_38,3.33,Revenue,SACAT MARKS&SPENCER,GROCERY STORES  SUPERMARKETS,198
Tunbridge Wells Borough Council,Cultural and Related Services,104,LE,Leisure & Well-being,A-HALL MKTG & SALES,PROMOTION,3450,-,-,01/06/2015,P03_41,3.3,Revenue,GOOGLE *SVCSAPPS_ASSEM,CONTINUITY/SUBSCRIPTION MERCHANTS,199
Tunbridge Wells Borough Council,Cultural and Related Services,104,LE,Leisure & Well-being,A-HALL COUNCIL SHOWS,PROMOTION,3450,150601-06 AVENUE Q,A15F01,01/06/2015,P03_44,24.58,Revenue,WM MORRISONS STORE,GROCERY STORES  SUPERMARKETS,200
Tunbridge Wells Borough Council,Central Services,102,CH,Chief Executive's Office,CHIEF EXECUTIVE,SUBS TO ORGANISATIONS,3730,-,-,01/06/2015,P03_56,199,Revenue,EMAP LTD-SUBSCRIPTIONS,MISCELLANEOUS PUBLISHING & PRINTING,201
Tunbridge Wells Borough Council,Central Services,102,GA,Gateway,GATEWAY,EQUIPMENT PURCHASE/MTCE,3000,CALL CENTRE,EV0341,17/06/2015,P03_71,19.12,Revenue,AMAZON UK MARKETPLACE,MISCELLANEOUS AND RETAIL STORES,202
Tunbridge Wells Borough Council,Highways and Transport Services,107,EN,Environment & Street Scene,PARKING ADMIN & ENFORCEMENT,FUEL & OIL,1010,-,-,06/07/2015,P04_15,47.78,Revenue,DANIELS SILVERMAN,MISCELLANEOUS PERSONAL SERVICES,203
Tunbridge Wells Borough Council,Environmental and regulatory services ,105,HO,Housing Services & Health,CHOOSING HEALTH,PROJECTS & INITIATIVES,3910,CHSG HEALTH OUTDOOR GYM,EV0955,06/07/2015,P04_18,39.99,Revenue,INSURE 4 SPORT,MEMBERSHIP CLUBS (SPORTS RECREATION ATHLETIC COUNTRY PRIV.GOLF,204
Tunbridge Wells Borough Council,Cultural and Related Services,104,CO,Community & Corporate Planning,HOODWINK PROJECT,PROJECTS & INITIATIVES,3910,-,-,06/07/2015,P04_58,292.43,Revenue,RYANAIR,RYANAIR,205
Tunbridge Wells Borough Council,Cultural and Related Services,104,CO,Community & Corporate Planning,HOODWINK PROJECT,PROJECTS & INITIATIVES,3910,-,-,06/07/2015,P04_59,22.98,Revenue,RYANAIR,RYANAIR,206
Tunbridge Wells Borough Council,Cultural and Related Services,104,CO,Community & Corporate Planning,HOODWINK PROJECT,PROJECTS & INITIATIVES,3910,-,-,06/07/2015,P04_60,11.38,Revenue,RYANAIR,RYANAIR,207
Tunbridge Wells Borough Council,Cultural and Related Services,104,CO,Community & Corporate Planning,HOODWINK PROJECT,PROJECTS & INITIATIVES,3910,-,-,06/07/2015,P04_61,186.84,Revenue,RYANAIR,RYANAIR,208
Tunbridge Wells Borough Council,Cultural and Related Services,104,CO,Community & Corporate Planning,HOODWINK PROJECT,PROJECTS & INITIATIVES,3910,-,-,06/07/2015,P04_62,186.84,Revenue,RYANAIR,RYANAIR,209
Tunbridge Wells Borough Council,Central Services,102,HR,Human Resources,STAFF WELFARE,OTHER FEES,3330,Social Society Club,EV1006,07/07/2015,P04_19,75,Revenue,HIGH STREET VOUCHE,GIFT  CARD  NOVELTY  AND SOUVENIR SHOPS,210
Tunbridge Wells Borough Council,Cultural and Related Services,104,LE,Leisure & Well-being,A-HALL COUNCIL SHOWS,PROMOTION,3450,150728 - 010815 CALAMITY JANE,A15G01,08/07/2015,P04_09,14.48,Revenue,AMAZON UK RETAIL,ALL OTHER DIRECT MARKETERS,211
Tunbridge Wells Borough Council,Central Services,102,FI,Finance & Local Goverance,EXCHEQUER SERVICES,STATIONERY,3160,-,-,08/07/2015,P04_17,13.4,Revenue,AMAZON UK RETAIL,ALL OTHER DIRECT MARKETERS,212
Tunbridge Wells Borough Council,Central Services,102,GA,Gateway,GATEWAY,FURNITURE COSTS,3020,GATEWAY IMPROVEMENTS,EV0345,08/07/2015,P04_25,65.83,Revenue,AMAZON UK RETAIL,ALL OTHER DIRECT MARKETERS,213
Tunbridge Wells Borough Council,Cultural and Related Services,104,CO,Community & Corporate Planning,MUSEUM & ART GALLERY,PROFESSIONAL SUBSCRIPTIONS,120,-,-,08/07/2015,P04_55,14.35,Revenue,MUSEUMSASSC,CHARITABLE AND SOCIAL SERVICE ORGANIZATIONS,214
Tunbridge Wells Borough Council,Cultural and Related Services,104,CO,Community & Corporate Planning,MUSEUM & ART GALLERY,PROFESSIONAL SUBSCRIPTIONS,120,-,-,08/07/2015,P04_56,89.79,Revenue,MUSEUMSASSC,CHARITABLE AND SOCIAL SERVICE ORGANIZATIONS,215
Tunbridge Wells Borough Council,Cultural and Related Services,104,CO,Community & Corporate Planning,MUSEUM & ART GALLERY,PROFESSIONAL SUBSCRIPTIONS,120,-,-,08/07/2015,P04_57,15.99,Revenue,MUSEUMSASSC,CHARITABLE AND SOCIAL SERVICE ORGANIZATIONS,216
Tunbridge Wells Borough Council,Central Services,102,OV,Overview & Scrutiny,DEMOCRATIC MANAGEMENT,MEMBER DEVELOPMENT,203,-,-,09/07/2015,P04_22,125,Revenue,PAYPAL *LOCALINFORM,CHARITABLE AND SOCIAL SERVICE ORGANIZATIONS,217
Tunbridge Wells Borough Council,Cultural and Related Services,104,LE,Leisure & Well-being,A-HALL MANAGEMENT,EXTERNAL TRAINING,204,-,-,10/07/2015,P04_63,54.17,Revenue,SMART AND SIMPLE HOTEL,LODGING  HOTELS  MOTELS  RESORTS,218
Tunbridge Wells Borough Council,Housing Services,108,HO,Housing Services & Health,TN2 COMMUNITY CENTRE,PROJECTS & INITIATIVES,3910,-,-,13/07/2015,P04_54,137.83,Revenue,NOVELTY IMPORTS,MISCELLANEOUS AND RETAIL STORES,219
Tunbridge Wells Borough Council,Central Services,102,FI,Finance & Local Goverance,REVS & BENS ADMINISTRATION,COURT FEES,3263,-,-,14/07/2015,P04_16,1254,Revenue,HMCOURTS-SERVICE.G,FINES,220
Tunbridge Wells Borough Council,Cultural and Related Services,104,LE,Leisure & Well-being,A-HALL MKTG & SALES,PROMOTION,3450,-,-,15/07/2015,P04_04,48.22,Revenue,MAILCHIMP,BUSINESS SERVICES NOT ELSEWHERE CLASSIFIED,221
Tunbridge Wells Borough Council,Cultural and Related Services,104,LE,Leisure & Well-being,A-HALL MKTG & SALES,PROMOTION,3450,-,-,16/07/2015,P04_03,1.33,Revenue,FOREIGN EXCHANGE FEE,-,222
Tunbridge Wells Borough Council,Central Services,102,CH,Chief Executive's Office,MAYORAL,EQUIPMENT PURCHASE/MTCE,3000,-,-,16/07/2015,P04_20,12.46,Revenue,Comfoot & Keys,SHOE REPAIR SHOPS  SHOE SHINE PARLORS & HAT CLEANING SHOPS,223
Tunbridge Wells Borough Council,Housing Services,108,HO,Housing Services & Health,HOUSING NEEDS SERVICE,HOMELESSNESS EXPENSES,3912,-,-,19/07/2015,P04_27,67.5,Revenue,PREMIER INN44521445,PREMIER INN,224
Tunbridge Wells Borough Council,Housing Services,108,HO,Housing Services & Health,HOUSING NEEDS SERVICE,PROJECTS & INITIATIVES,3910,RELOCATION OF AFGHAN FAMILIES,EV0585,21/07/2015,P04_26,200,Revenue,HOMEBASE LTD 071,LUMBER AND BUILDING MATERIALS STORES,225
Tunbridge Wells Borough Council,Cultural and Related Services,104,LE,Leisure & Well-being,A-HALL MANAGEMENT,CONFERENCES/SEMINARS,205,-,-,22/07/2015,P04_01,-55.2,Revenue,TRAINLINE.COM,PASSENGER RAILWAYS,226
Tunbridge Wells Borough Council,Central Services,102,CU,Customer Access,TOWN HALL,PLANNED MAINTENANCE BUILDINGS,2000,PROPERTY RECEPTION,PH0601,22/07/2015,P04_23,395.63,Revenue,WWW.TUBDIRECT.CO.UK,FURNITURE  HOME FURNISHINGS AND EQUIPMENT STORES,227
Tunbridge Wells Borough Council,Cultural and Related Services,104,LE,Leisure & Well-being,A-HALL MANAGEMENT,SUBS TO ORGANISATIONS,3730,-,-,25/07/2015,P05_43,17.33,Revenue,TIMES NEWSPAPERS LTD,BOOKS PERIODICALS AND NEWSPAPERS,228
Tunbridge Wells Borough Council,Central Services,102,GA,Gateway,GATEWAY,FURNITURE COSTS,3020,GATEWAY IMPROVEMENTS,EV0345,26/07/2015,P04_24,333.17,Revenue,AMAZON SVCS EUROPE SAR,BOOK STORES,229
Tunbridge Wells Borough Council,Housing Services,108,HO,Housing Services & Health,TN2 COMMUNITY CENTRE,CONSUMABLES & MATERIALS,3060,-,-,27/07/2015,P05_35,13.97,Revenue,BOOKERECOMM,CATERERS,230
Tunbridge Wells Borough Council,Housing Services,108,HO,Housing Services & Health,TN2 COMMUNITY CENTRE,CONSUMABLES & MATERIALS,3060,-,-,27/07/2015,P05_37,14.48,Revenue,BOOKERECOMM,CATERERS,231
Tunbridge Wells Borough Council,Housing Services,108,HO,Housing Services & Health,TN2 COMMUNITY CENTRE,COGS - DRINK,3091,-,-,27/07/2015,P05_45,24.26,Revenue,BOOKERECOMM,CATERERS,232
Tunbridge Wells Borough Council,Housing Services,108,HO,Housing Services & Health,TN2 COMMUNITY CENTRE,COGS -FOOD,3090,-,-,27/07/2015,P05_67,109.43,Revenue,BOOKERECOMM,CATERERS,233
Tunbridge Wells Borough Council,Housing Services,108,HO,Housing Services & Health,TN2 COMMUNITY CENTRE,COGS -FOOD,3090,-,-,27/07/2015,P05_71,141.39,Revenue,BOOKERECOMM,CATERERS,234
Tunbridge Wells Borough Council,Cultural and Related Services,104,LE,Leisure & Well-being,A-HALL FRONT OF HOUSE,COGS - DRINK,3091,-,-,28/07/2015,P05_10,2.08,Revenue,WM MORRISONS STORE,GROCERY STORES  SUPERMARKETS,235
Tunbridge Wells Borough Council,Cultural and Related Services,104,LE,Leisure & Well-being,A-HALL FRONT OF HOUSE,COGS - DRINK,3091,-,-,28/07/2015,P05_19,3.47,Revenue,WM MORRISONS STORE,GROCERY STORES  SUPERMARKETS,236
Tunbridge Wells Borough Council,Cultural and Related Services,104,LE,Leisure & Well-being,A-HALL COUNCIL SHOWS,PROMOTION,3450,150728 - 010815 CALAMITY JANE,A15G01,28/07/2015,P05_42,16.67,Revenue,WM MORRISONS STORE,GROCERY STORES  SUPERMARKETS,237
Tunbridge Wells Borough Council,Cultural and Related Services,104,CO,Community & Corporate Planning,MUSEUM & ART GALLERY,MUSEUM EXHIBITS - MAINTENANCE,3041,-,-,29/07/2015,P05_03,1.1,Revenue,AMAZON SVCS EUROPE SAR,BOOK STORES,238
Tunbridge Wells Borough Council,Cultural and Related Services,104,CO,Community & Corporate Planning,MUSEUM & ART GALLERY,MUSEUM EXHIBITS - MAINTENANCE,3041,-,-,29/07/2015,P05_04,1.25,Revenue,AMAZON UK MARKETPLACE,BOOK STORES,239
Tunbridge Wells Borough Council,Cultural and Related Services,104,CO,Community & Corporate Planning,MUSEUM & ART GALLERY,MUSEUM EXHIBITS - MAINTENANCE,3041,-,-,29/07/2015,P05_06,1.58,Revenue,AMAZON UK MARKETPLACE,BOOK STORES,240
Tunbridge Wells Borough Council,Cultural and Related Services,104,CO,Community & Corporate Planning,MUSEUM & ART GALLERY,MUSEUM EXHIBITS - MAINTENANCE,3041,-,-,29/07/2015,P05_07,1.58,Revenue,AMAZON UK MARKETPLACE,BOOK STORES,241
Tunbridge Wells Borough Council,Cultural and Related Services,104,CO,Community & Corporate Planning,MUSEUM & ART GALLERY,MUSEUM EXHIBITS - MAINTENANCE,3041,-,-,29/07/2015,P05_08,1.75,Revenue,AMAZON UK MARKETPLACE,BOOK STORES,242
Tunbridge Wells Borough Council,Cultural and Related Services,104,CO,Community & Corporate Planning,MUSEUM & ART GALLERY,MUSEUM EXHIBITS - MAINTENANCE,3041,-,-,29/07/2015,P05_13,2.67,Revenue,AMAZON SVCS EUROPE SAR,BOOK STORES,243
Tunbridge Wells Borough Council,Cultural and Related Services,104,CO,Community & Corporate Planning,MUSEUM & ART GALLERY,MUSEUM EXHIBITS - MAINTENANCE,3041,-,-,29/07/2015,P05_14,2.69,Revenue,AMAZON UK MARKETPLACE,BOOK STORES,244
Tunbridge Wells Borough Council,Cultural and Related Services,104,CO,Community & Corporate Planning,MUSEUM & ART GALLERY,MUSEUM EXHIBITS - MAINTENANCE,3041,-,-,29/07/2015,P05_15,2.83,Revenue,AMAZON SVCS EUROPE SAR,BOOK STORES,245
Tunbridge Wells Borough Council,Cultural and Related Services,104,CO,Community & Corporate Planning,MUSEUM & ART GALLERY,MUSEUM EXHIBITS - MAINTENANCE,3041,-,-,29/07/2015,P05_16,2.91,Revenue,AMAZON SVCS EUROPE SAR,BOOK STORES,246
Tunbridge Wells Borough Council,Cultural and Related Services,104,CO,Community & Corporate Planning,MUSEUM & ART GALLERY,MUSEUM EXHIBITS - MAINTENANCE,3041,-,-,29/07/2015,P05_21,4,Revenue,AMAZON UK MARKETPLACE,BOOK STORES,247
Tunbridge Wells Borough Council,Cultural and Related Services,104,CO,Community & Corporate Planning,MUSEUM & ART GALLERY,MUSEUM EXHIBITS - MAINTENANCE,3041,-,-,29/07/2015,P05_23,4.23,Revenue,AMAZON UK MARKETPLACE,BOOK STORES,248
Tunbridge Wells Borough Council,Cultural and Related Services,104,CO,Community & Corporate Planning,MUSEUM & ART GALLERY,MUSEUM EXHIBITS - MAINTENANCE,3041,-,-,29/07/2015,P05_24,4.73,Revenue,AMAZON SVCS EUROPE SAR,BOOK STORES,249
Tunbridge Wells Borough Council,Cultural and Related Services,104,CO,Community & Corporate Planning,MUSEUM & ART GALLERY,MUSEUM EXHIBITS - MAINTENANCE,3041,-,-,29/07/2015,P05_28,6.96,Revenue,AMAZON SVCS EUROPE SAR,BOOK STORES,250
Tunbridge Wells Borough Council,Cultural and Related Services,104,CO,Community & Corporate Planning,MUSEUM & ART GALLERY,MUSEUM EXHIBITS - MAINTENANCE,3041,-,-,29/07/2015,P05_38,15.36,Revenue,AMAZON UK MARKETPLACE,BOOK STORES,251
Tunbridge Wells Borough Council,Cultural and Related Services,104,CO,Community & Corporate Planning,MUSEUM & ART GALLERY,MUSEUM EXHIBITS - MAINTENANCE,3041,-,-,29/07/2015,P05_47,29.07,Revenue,AMAZON UK MARKETPLACE,BOOK STORES,252
Tunbridge Wells Borough Council,Central Services,102,HR,Human Resources,HUMAN RESOURCES,EXTERNAL TRAINING,204,-,-,17/06/2015,P03_57,-41.5,Revenue,WWW.SOLACE.ORG.UK,MEMBERSHIP ORGANIZATIONS NOT ELSEWHERE CLASSIFIED,253
Tunbridge Wells Borough Council,Cultural and Related Services,104,CO,Community & Corporate Planning,MUSEUM & ART GALLERY,MUSEUM EXHIBITS - MAINTENANCE,3041,-,-,29/07/2015,P05_50,29.97,Revenue,AMAZON UK MARKETPLACE,BOOK STORES,254
Tunbridge Wells Borough Council,Central Services,102,HR,Human Resources,HUMAN RESOURCES,EQUIPMENT PURCHASE/MTCE,3000,-,-,29/07/2015,P05_75,249.58,Revenue,AMAZON SVCS EUROPE SAR,BOOK STORES,255
Tunbridge Wells Borough Council,Cultural and Related Services,104,LE,Leisure & Well-being,A-HALL COUNCIL SHOWS,PROMOTION,3450,150705 BASIL BRUSH,A15G02,31/07/2015,P05_12,2.64,Revenue,FACEBOOK ME97C8J5Z2,ADVERTISING SERVICES,256
Tunbridge Wells Borough Council,Housing Services,108,HO,Housing Services & Health,TEMPORARY ACCOMMODATION,ELECTRICITY,2140,-,-,31/07/2015,P05_36,14.29,Revenue,ONE STOP 1399,GROCERY STORES  SUPERMARKETS,257
Tunbridge Wells Borough Council,Central Services,102,HR,Human Resources,HUMAN RESOURCES,EXTERNAL TRAINING,204,-,-,17/06/2015,P03_58,-207.5,Revenue,WWW.SOLACE.ORG.UK,MEMBERSHIP ORGANIZATIONS NOT ELSEWHERE CLASSIFIED,258
Tunbridge Wells Borough Council,Cultural and Related Services,104,LE,Leisure & Well-being,A-HALL COUNCIL SHOWS,PROMOTION,3450,150728 - 010815 CALAMITY JANE,A15G01,31/07/2015,P05_54,39.98,Revenue,FACEBOOK LULNG86PH2,ADVERTISING SERVICES,259
Tunbridge Wells Borough Council,Central Services,102,GA,Gateway,GATEWAY,EQUIPMENT PURCHASE/MTCE,3000,CALL CENTRE,EV0341,17/06/2015,P03_71,19.12,Revenue,AMAZON UK MARKETPLACE,MISCELLANEOUS AND RETAIL STORES,260
Tunbridge Wells Borough Council,Housing Services,108,HO,Housing Services & Health,TN2 COMMUNITY CENTRE,COGS - DRINK,3091,-,-,02/08/2015,P05_11,2.58,Revenue,BOOKER LIMITED TUNBRIDGE,CATERERS,261
Tunbridge Wells Borough Council,Environmental and regulatory services ,105,EN,Environment & Street Scene,CLEANER BOROUGH,EQUIPMENT PURCHASE/MTCE,3000,-,-,18/06/2015,P03_33,62.71,Revenue,This data has been redacted under the Data Protection Act,VARIETY STORES,262
Tunbridge Wells Borough Council,Cultural and Related Services,104,CO,Community & Corporate Planning,MUSEUM & ART GALLERY,MUSEUM EXHIBITS - MAINTENANCE,3041,-,-,02/08/2015,P05_17,2.94,Revenue,AMAZON UK RETAIL,ALL OTHER DIRECT MARKETERS,263
Tunbridge Wells Borough Council,Central Services,102,OV,Overview & Scrutiny,DEMOCRATIC MANAGEMENT,MEMBERS TRAVEL,3660,-,-,18/06/2015,P03_66,90,Revenue,EXPRESS CABS AND COURIERS,TAXICABS/LIMOUSINES,264
Tunbridge Wells Borough Council,Cultural and Related Services,104,LE,Leisure & Well-being,A-HALL MKTG & SALES,PROMOTION,3450,-,-,02/08/2015,P05_18,3.3,Revenue,GOOGLE *SVCSAPPS_ASSEM,CONTINUITY/SUBSCRIPTION MERCHANTS,265
Tunbridge Wells Borough Council,Environmental and regulatory services ,105,EN,Environment & Street Scene,CLEANER BOROUGH,EQUIPMENT PURCHASE/MTCE,3000,-,-,18/06/2015,P03_33,62.71,Revenue,This data has been redacted under the Data Protection Act,VARIETY STORES,266
Tunbridge Wells Borough Council,Housing Services,108,HO,Housing Services & Health,TN2 COMMUNITY CENTRE,CONSUMABLES & MATERIALS,3060,-,-,02/08/2015,P05_20,3.98,Revenue,BOOKER LIMITED TUNBRIDGE,CATERERS,267
Tunbridge Wells Borough Council,Central Services,102,OV,Overview & Scrutiny,DEMOCRATIC MANAGEMENT,MEMBERS TRAVEL,3660,-,-,18/06/2015,P03_66,90,Revenue,EXPRESS CABS AND COURIERS,TAXICABS/LIMOUSINES,268
Tunbridge Wells Borough Council,Housing Services,108,HO,Housing Services & Health,TN2 COMMUNITY CENTRE,CLEANING SUPPLIES,2500,-,-,02/08/2015,P05_25,5.18,Revenue,BOOKER LIMITED TUNBRIDGE,CATERERS,269
Tunbridge Wells Borough Council,Central Services,102,CH,Chief Executive's Office,MAYORAL,MAYORAL EXPENSES,3690,MISC MAYORAL EXPEN,EV0123,20/06/2015,P03_62,62.88,Revenue,TOMTOM,MISCELLANEOUS AND RETAIL STORES,270
Tunbridge Wells Borough Council,Central Services,102,CH,Chief Executive's Office,MAYORAL,MAYORAL EXPENSES,3690,MISC MAYORAL EXPEN,EV0123,20/06/2015,P03_62,62.88,Revenue,TOMTOM,MISCELLANEOUS AND RETAIL STORES,271
Tunbridge Wells Borough Council,Central Services,102,FI,Finance & Local Goverance,REVS & BENS ADMINISTRATION,COURT FEES,3263,-,-,23/06/2015,P03_50,100,Revenue,COUNTY COURT,FINES,272
Tunbridge Wells Borough Council,Central Services,102,FI,Finance & Local Goverance,REVS & BENS ADMINISTRATION,COURT FEES,3263,-,-,23/06/2015,P03_50,100,Revenue,COUNTY COURT,FINES,273
Tunbridge Wells Borough Council,Cultural and Related Services,104,LE,Leisure & Well-being,A-HALL MANAGEMENT,VEHICLE REPAIRS & SUNDRIES,1040,-,-,24/06/2015,P03_37,232.06,Revenue,AA MEMBERSHIP R/T,CONTINUITY/SUBSCRIPTION MERCHANTS,274
Tunbridge Wells Borough Council,Cultural and Related Services,104,LE,Leisure & Well-being,A-HALL MANAGEMENT,VEHICLE REPAIRS & SUNDRIES,1040,-,-,24/06/2015,P03_37,232.06,Revenue,AA MEMBERSHIP R/T,CONTINUITY/SUBSCRIPTION MERCHANTS,275
Tunbridge Wells Borough Council,Cultural and Related Services,104,LE,Leisure & Well-being,A-HALL MANAGEMENT,SUBS TO ORGANISATIONS,3730,-,-,25/06/2015,P04_02,17.33,Revenue,TIMES NEWSPAPER LTD,BOOKS PERIODICALS AND NEWSPAPERS,276
Tunbridge Wells Borough Council,Cultural and Related Services,104,LE,Leisure & Well-being,A-HALL COUNCIL SHOWS,PROMOTION,3450,150728 - 010815 CALAMITY JANE,A15G01,26/06/2015,P04_07,20.81,Revenue,AMAZON UK MARKETPLACE,MISCELLANEOUS AND RETAIL STORES,277
Tunbridge Wells Borough Council,Cultural and Related Services,104,LE,Leisure & Well-being,A-HALL COUNCIL SHOWS,PROMOTION,3450,150728 - 010815 CALAMITY JANE,A15G01,26/06/2015,P04_08,6.93,Revenue,AMAZON UK MARKETPLACE,MISCELLANEOUS AND RETAIL STORES,278
Tunbridge Wells Borough Council,Cultural and Related Services,104,LE,Leisure & Well-being,A-HALL COUNCIL SHOWS,PROMOTION,3450,150728 - 010815 CALAMITY JANE,A15G01,26/06/2015,P04_10,9.13,Revenue,AMAZON UK MARKETPLACE,MISCELLANEOUS AND RETAIL STORES,279
Tunbridge Wells Borough Council,Housing Services,108,HO,Housing Services & Health,TN2 COMMUNITY CENTRE,CONSUMABLES & MATERIALS,3060,-,-,26/06/2015,P04_37,21.17,Revenue,ASDA STORES 4776,GROCERY STORES  SUPERMARKETS,280
Tunbridge Wells Borough Council,Housing Services,108,HO,Housing Services & Health,TN2 COMMUNITY CENTRE,CONSUMABLES & MATERIALS,3060,-,-,26/06/2015,P04_39,11.9,Revenue,ASDA STORES 4776,GROCERY STORES  SUPERMARKETS,281
Tunbridge Wells Borough Council,Housing Services,108,HO,Housing Services & Health,TN2 COMMUNITY CENTRE,COGS -FOOD,3090,-,-,26/06/2015,P04_40,23.92,Revenue,ASDA STORES 4776,GROCERY STORES  SUPERMARKETS,282
Tunbridge Wells Borough Council,Housing Services,108,HO,Housing Services & Health,TN2 COMMUNITY CENTRE,COGS -FOOD,3090,-,-,26/06/2015,P04_41,7.97,Revenue,ASDA STORES 4776,GROCERY STORES  SUPERMARKETS,283
Tunbridge Wells Borough Council,Housing Services,108,HO,Housing Services & Health,TN2 COMMUNITY CENTRE,COGS -FOOD,3090,-,-,26/06/2015,P04_42,1.25,Revenue,ASDA STORES 4776,GROCERY STORES  SUPERMARKETS,284
Tunbridge Wells Borough Council,Housing Services,108,HO,Housing Services & Health,TN2 COMMUNITY CENTRE,COGS -FOOD,3090,-,-,26/06/2015,P04_44,1.2,Revenue,ASDA STORES 4776,GROCERY STORES  SUPERMARKETS,285
Tunbridge Wells Borough Council,Housing Services,108,HO,Housing Services & Health,TN2 COMMUNITY CENTRE,COGS -FOOD,3090,-,-,26/06/2015,P04_48,5.83,Revenue,ASDA STORES 4776,GROCERY STORES  SUPERMARKETS,286
Tunbridge Wells Borough Council,Housing Services,108,HO,Housing Services & Health,TN2 COMMUNITY CENTRE,COGS -FOOD,3090,-,-,26/06/2015,P04_49,1.5,Revenue,ASDA STORES 4776,GROCERY STORES  SUPERMARKETS,287
Tunbridge Wells Borough Council,Housing Services,108,HO,Housing Services & Health,TN2 COMMUNITY CENTRE,COGS -FOOD,3090,-,-,26/06/2015,P04_50,15.19,Revenue,ASDA STORES 4776,GROCERY STORES  SUPERMARKETS,288
Tunbridge Wells Borough Council,Housing Services,108,HO,Housing Services & Health,TN2 COMMUNITY CENTRE,PROJECTS & INITIATIVES,3910,-,-,26/06/2015,P04_53,2.5,Revenue,ASDA STORES 4776,GROCERY STORES  SUPERMARKETS,289
Tunbridge Wells Borough Council,Central Services,102,CH,Chief Executive's Office,MAYORAL,MAYORAL EXPENSES,3690,MISC MAYORAL EXPEN,EV0123,29/06/2015,P04_21,5,Revenue,W M MORRISON PLC,GROCERY STORES  SUPERMARKETS,290
Tunbridge Wells Borough Council,Housing Services,108,HO,Housing Services & Health,TN2 COMMUNITY CENTRE,CLEANING SUPPLIES,2500,-,-,29/06/2015,P04_28,8.38,Revenue,BOOKERECOMM,CATERERS,291
Tunbridge Wells Borough Council,Housing Services,108,HO,Housing Services & Health,TN2 COMMUNITY CENTRE,CLEANING SUPPLIES,2500,-,-,29/06/2015,P04_29,7.99,Revenue,BOOKERECOMM,CATERERS,292
Tunbridge Wells Borough Council,Housing Services,108,HO,Housing Services & Health,TN2 COMMUNITY CENTRE,CLEANING SUPPLIES,2500,-,-,29/06/2015,P04_30,8.7,Revenue,BOOKERECOMM,CATERERS,293
Tunbridge Wells Borough Council,Housing Services,108,HO,Housing Services & Health,TN2 COMMUNITY CENTRE,CONSUMABLES & MATERIALS,3060,-,-,29/06/2015,P04_31,122.24,Revenue,BOOKERECOMM,CATERERS,294
Tunbridge Wells Borough Council,Housing Services,108,HO,Housing Services & Health,TN2 COMMUNITY CENTRE,CONSUMABLES & MATERIALS,3060,-,-,29/06/2015,P04_32,15.37,Revenue,BOOKERECOMM,CATERERS,295
Tunbridge Wells Borough Council,Housing Services,108,HO,Housing Services & Health,TN2 COMMUNITY CENTRE,CONSUMABLES & MATERIALS,3060,-,-,29/06/2015,P04_34,21.48,Revenue,BOOKERECOMM,CATERERS,296
Tunbridge Wells Borough Council,Housing Services,108,HO,Housing Services & Health,TN2 COMMUNITY CENTRE,CONSUMABLES & MATERIALS,3060,-,-,29/06/2015,P04_35,133.52,Revenue,BOOKERECOMM,CATERERS,297
Tunbridge Wells Borough Council,Housing Services,108,HO,Housing Services & Health,TN2 COMMUNITY CENTRE,CONSUMABLES & MATERIALS,3060,-,-,29/06/2015,P04_36,7.99,Revenue,BOOKERECOMM,CATERERS,298
Tunbridge Wells Borough Council,Housing Services,108,HO,Housing Services & Health,TN2 COMMUNITY CENTRE,CONSUMABLES & MATERIALS,3060,-,-,29/06/2015,P04_38,181.66,Revenue,BOOKERECOMM,CATERERS,299
Tunbridge Wells Borough Council,Housing Services,108,HO,Housing Services & Health,TN2 COMMUNITY CENTRE,COGS -FOOD,3090,-,-,29/06/2015,P04_43,10.17,Revenue,BOOKERECOMM,CATERERS,300
Tunbridge Wells Borough Council,Housing Services,108,HO,Housing Services & Health,TN2 COMMUNITY CENTRE,COGS -FOOD,3090,-,-,29/06/2015,P04_45,152.98,Revenue,BOOKERECOMM,CATERERS,301
Tunbridge Wells Borough Council,Housing Services,108,HO,Housing Services & Health,TN2 COMMUNITY CENTRE,COGS -FOOD,3090,-,-,29/06/2015,P04_47,10.17,Revenue,BOOKERECOMM,CATERERS,302
Tunbridge Wells Borough Council,Housing Services,108,HO,Housing Services & Health,TN2 COMMUNITY CENTRE,COGS - DRINK,3091,-,-,29/06/2015,P04_51,8.29,Revenue,BOOKERECOMM,CATERERS,303
Tunbridge Wells Borough Council,Housing Services,108,HO,Housing Services & Health,TN2 COMMUNITY CENTRE,COGS - DRINK,3091,-,-,29/06/2015,P04_52,48.02,Revenue,BOOKERECOMM,CATERERS,304
Tunbridge Wells Borough Council,Cultural and Related Services,104,LE,Leisure & Well-being,A-HALL COUNCIL SHOWS,PROMOTION,3450,150601-06 AVENUE Q,A15F01,30/06/2015,P04_06,20,Revenue,FACEBOOK,ADVERTISING SERVICES,305
Tunbridge Wells Borough Council,Cultural and Related Services,104,LE,Leisure & Well-being,A-HALL COUNCIL SHOWS,PROMOTION,3450,150728 - 010815 CALAMITY JANE,A15G01,30/06/2015,P04_11,22.02,Revenue,FACEBOOK,ADVERTISING SERVICES,306
Tunbridge Wells Borough Council,Cultural and Related Services,104,LE,Leisure & Well-being,A-HALL COUNCIL SHOWS,PROMOTION,3450,150705 BASIL BRUSH,A15G02,30/06/2015,P04_12,20,Revenue,FACEBOOK,ADVERTISING SERVICES,307
Tunbridge Wells Borough Council,Cultural and Related Services,104,LE,Leisure & Well-being,A-HALL COUNCIL SHOWS,PROMOTION,3450,151113 NOEL FIELDING,A15L02,30/06/2015,P04_13,20.21,Revenue,FACEBOOK,ADVERTISING SERVICES,308
Tunbridge Wells Borough Council,Cultural and Related Services,104,LE,Leisure & Well-being,A-HALL MKTG & SALES,PROMOTION,3450,-,-,02/07/2015,P04_05,3.3,Revenue,GOOGLE *SVCSAPPS_ASSEM,CONTINUITY/SUBSCRIPTION MERCHANTS,309
Tunbridge Wells Borough Council,Housing Services,108,HO,Housing Services & Health,TN2 COMMUNITY CENTRE,CONSUMABLES & MATERIALS,3060,-,-,03/07/2015,P04_33,2.99,Revenue,BOOKER LIMITED TUNBRIDGE,CATERERS,310
Tunbridge Wells Borough Council,Housing Services,108,HO,Housing Services & Health,TN2 COMMUNITY CENTRE,COGS -FOOD,3090,-,-,03/07/2015,P04_46,16.15,Revenue,BOOKER LIMITED TUNBRIDGE,CATERERS,311
Tunbridge Wells Borough Council,Housing Services,108,HO,Housing Services & Health,TN2 COMMUNITY CENTRE,CONSUMABLES & MATERIALS,3060,-,-,02/08/2015,P05_26,5.98,Revenue,BOOKER LIMITED TUNBRIDGE,CATERERS,312
Tunbridge Wells Borough Council,Housing Services,108,HO,Housing Services & Health,TN2 COMMUNITY CENTRE,CONSUMABLES & MATERIALS,3060,-,-,02/08/2015,P05_27,6.48,Revenue,BOOKER LIMITED TUNBRIDGE,CATERERS,313
Tunbridge Wells Borough Council,Housing Services,108,HO,Housing Services & Health,TN2 COMMUNITY CENTRE,COGS -FOOD,3090,-,-,02/08/2015,P05_33,12.32,Revenue,BOOKER LIMITED TUNBRIDGE,CATERERS,314
Tunbridge Wells Borough Council,Housing Services,108,HO,Housing Services & Health,TN2 COMMUNITY CENTRE,COGS - DRINK,3091,-,-,02/08/2015,P05_39,16.58,Revenue,BOOKER LIMITED TUNBRIDGE,CATERERS,315
Tunbridge Wells Borough Council,Housing Services,108,HO,Housing Services & Health,TN2 COMMUNITY CENTRE,COGS -FOOD,3090,-,-,02/08/2015,P05_56,55.71,Revenue,BOOKER LIMITED TUNBRIDGE,CATERERS,316
Tunbridge Wells Borough Council,Housing Services,108,HO,Housing Services & Health,TN2 COMMUNITY CENTRE,CLEANING SUPPLIES,2500,-,-,02/08/2015,P05_60,63.57,Revenue,BOOKER LIMITED TUNBRIDGE,CATERERS,317
Tunbridge Wells Borough Council,Housing Services,108,HO,Housing Services & Health,TN2 COMMUNITY CENTRE,COGS -FOOD,3090,-,-,02/08/2015,P05_66,105.95,Revenue,BOOKER LIMITED TUNBRIDGE,CATERERS,318
Tunbridge Wells Borough Council,Housing Services,108,HO,Housing Services & Health,TEMPORARY ACCOMMODATION,GAS,2120,-,-,03/08/2015,P05_29,7.62,Revenue,MARTIN MCCOLL,MISC FOOD STORES-SPECIALITY CONVENIENCE MARKETS VENDING MACHINES,319
Tunbridge Wells Borough Council,Housing Services,108,HO,Housing Services & Health,TEMPORARY ACCOMMODATION,ELECTRICITY,2140,-,-,03/08/2015,P05_30,7.62,Revenue,MARTIN MCCOLL,MISC FOOD STORES-SPECIALITY CONVENIENCE MARKETS VENDING MACHINES,320
Tunbridge Wells Borough Council,Housing Services,108,HO,Housing Services & Health,HOUSING NEEDS SERVICE,PROJECTS & INITIATIVES,3910,RELOCATION OF AFGHAN FAMILIES,EV0585,03/08/2015,P05_40,16.6,Revenue,C & H FABRICS,WINDOW COVERING  UPHOLSTERY AND DRAPERY STORES,321
Tunbridge Wells Borough Council,Housing Services,108,HO,Housing Services & Health,HOUSING NEEDS SERVICE,PROJECTS & INITIATIVES,3910,RELOCATION OF AFGHAN FAMILIES,EV0585,03/08/2015,P05_59,58.56,Revenue,HOMEBASE LTD 071,LUMBER AND BUILDING MATERIALS STORES,322
Tunbridge Wells Borough Council,Central Services,102,FI,Finance & Local Goverance,REVS & BENS ADMINISTRATION,COURT FEES,3263,-,-,04/08/2015,P05_72,150,Revenue,HMCOURTS-SERVICE.G,FINES,323
Tunbridge Wells Borough Council,Central Services,102,FI,Finance & Local Goverance,REVS & BENS ADMINISTRATION,COURT FEES,3263,-,-,04/08/2015,P05_82,1314,Revenue,HMCOURTS-SERVICE.G,FINES,324
Tunbridge Wells Borough Council,Housing Services,108,HO,Housing Services & Health,TN2 COMMUNITY CENTRE,COGS -FOOD,3090,-,-,05/08/2015,P05_32,11.15,Revenue,ASDA STORES 4776,GROCERY STORES  SUPERMARKETS,325
Tunbridge Wells Borough Council,Central Services,102,CO,Communications,COMMUNICATIONS AND ENGAGEMENT,PROJECTS & INITIATIVES,3910,-,-,05/08/2015,P05_44,18.5,Revenue,M&S E COMMERCE,GROCERY STORES  SUPERMARKETS,326
Tunbridge Wells Borough Council,Cultural and Related Services,104,LE,Leisure & Well-being,ASSEMBLY HALL IMPROVEMENTS,AQUISITION,8305,-,-,06/08/2015,P05_53,38.25,Capital,TIMPSON LTD,SHOE REPAIR SHOPS  SHOE SHINE PARLORS & HAT CLEANING SHOPS,327
Tunbridge Wells Borough Council,Cultural and Related Services,104,LE,Leisure & Well-being,ASSEMBLY HALL IMPROVEMENTS,AQUISITION,8305,-,-,10/08/2015,P05_80,570,Capital,WEALD WASTE,EQUIP RENTALS & LEASING SERVICES  TOOL RENTAL  FURNITURE RENTAL,328
Tunbridge Wells Borough Council,Planning Services,110,EC,Economic Development & Regeneration,ECONOMIC DEVELOPMENT,PROMOTION,3450,-,-,11/08/2015,P05_01,-21.05,Revenue,WWW.TOOLSTATION.COM,HARDWARE STORES,329
Tunbridge Wells Borough Council,Planning Services,110,EC,Economic Development & Regeneration,FARMERS MARKET,PROMOTION,3450,-,-,11/08/2015,P05_02,-21.05,Revenue,WWW.TOOLSTATION.COM,HARDWARE STORES,330
Tunbridge Wells Borough Council,Cultural and Related Services,104,LE,Leisure & Well-being,TW ICE RINK,PROMOTION,3450,-,-,11/08/2015,P05_31,10.99,Revenue,FASTHOSTS INTERNET,COMPUTER NETWORK/INFORMATION SERVICES,331
Tunbridge Wells Borough Council,Planning Services,110,EC,Economic Development & Regeneration,ECONOMIC DEVELOPMENT,PROMOTION,3450,-,-,11/08/2015,P05_46,24.99,Revenue,EASILY LTD,MANAGEMENT  CONSULTING AND PUBLIC RELATIONS SERVICES,332
Tunbridge Wells Borough Council,Planning Services,110,EC,Economic Development & Regeneration,ECONOMIC DEVELOPMENT,PROMOTION,3450,-,-,11/08/2015,P05_48,29.34,Revenue,WWW.TOOLSTATION.COM,HARDWARE STORES,333
Tunbridge Wells Borough Council,Planning Services,110,EC,Economic Development & Regeneration,FARMERS MARKET,PROMOTION,3450,-,-,11/08/2015,P05_49,29.34,Revenue,WWW.TOOLSTATION.COM,HARDWARE STORES,334
Tunbridge Wells Borough Council,Cultural and Related Services,104,LE,Leisure & Well-being,A-HALL TECH OPS,EQUIPMENT PURCHASE/MTCE,3000,-,-,11/08/2015,P05_62,83.11,Revenue,ARGOS LTD,DISCOUNT STORES,335
Tunbridge Wells Borough Council,Cultural and Related Services,104,CO,Community & Corporate Planning,ARTS DEVELOPMENT,PROJECTS & INITIATIVES,3910,-,-,12/08/2015,P05_22,4,Revenue,EUROSTAR INTERNET,PASSENGER RAILWAYS,336
Tunbridge Wells Borough Council,Central Services,102,PE,Performance & Improvement,PARTNERSHIPS & ENGAGE MANAGER,PUBLIC TRANSPORT,1430,-,-,12/08/2015,P05_57,58,Revenue,VIRGINTRAINS.CO.UK,PASSENGER RAILWAYS,337
Tunbridge Wells Borough Council,Cultural and Related Services,104,LE,Leisure & Well-being,A-HALL TECH OPS,EQUIPMENT PURCHASE/MTCE,3000,-,-,12/08/2015,P05_69,130.72,Revenue,MUSTANG COMMS LTD,ALL OTHER DIRECT MARKETERS,338
Tunbridge Wells Borough Council,Cultural and Related Services,104,CO,Community & Corporate Planning,ARTS DEVELOPMENT,PROJECTS & INITIATIVES,3910,-,-,12/08/2015,P05_73,166,Revenue,EUROSTAR INTERNET,PASSENGER RAILWAYS,339
Tunbridge Wells Borough Council,Central Services,102,CU,Customer Access,TOWN HALL,FURNITURE COSTS,3020,PROPERTY ACCOMMODATION,PH0602,14/08/2015,P05_70,134.55,Revenue,WWW.TUBDIRECT.CO.UK,FURNITURE  HOME FURNISHINGS AND EQUIPMENT STORES,340
Tunbridge Wells Borough Council,Cultural and Related Services,104,LE,Leisure & Well-being,A-HALL MKTG & SALES,PROMOTION,3450,-,-,15/08/2015,P05_55,48.14,Revenue,MAILCHIMP,BUSINESS SERVICES NOT ELSEWHERE CLASSIFIED,341
Tunbridge Wells Borough Council,Cultural and Related Services,104,LE,Leisure & Well-being,A-HALL MKTG & SALES,PROMOTION,3450,-,-,17/08/2015,P05_05,1.32,Revenue,FOREIGN EXCHANGE FEE,0,342
Tunbridge Wells Borough Council,Cultural and Related Services,104,LE,Leisure & Well-being,TW ICE RINK,PROMOTION,3450,-,-,17/08/2015,P05_09,1.76,Revenue,FOREIGN EXCHANGE FEE,0,343
Tunbridge Wells Borough Council,Central Services,102,HR,Human Resources,HUMAN RESOURCES,STAFF CONFERENCES,208,-,-,17/08/2015,P05_64,93.2,Revenue,PAYPAL *IMPACTPROMO,SPORTING GOODS STORES,344
Tunbridge Wells Borough Council,Housing Services,108,HO,Housing Services & Health,HOUSING NEEDS SERVICE,RENT GUARANTEE SCHEME,3911,-,-,17/08/2015,P05_65,100,Revenue,OAKFIELD PROPERTY,BUSINESS SERVICES NOT ELSEWHERE CLASSIFIED,345
Tunbridge Wells Borough Council,Central Services,102,HR,Human Resources,HUMAN RESOURCES,STAFF CONFERENCES,208,-,-,17/08/2015,P05_74,247.91,Revenue,FAVOUR FAIRY,CANDY  NUT CONFECTIONERY STORES,346
Tunbridge Wells Borough Council,Housing Services,108,HO,Housing Services & Health,HOUSING NEEDS SERVICE,RENT GUARANTEE SCHEME,3911,-,-,17/08/2015,P05_77,343.33,Revenue,OAKFIELD PROPERTY,BUSINESS SERVICES NOT ELSEWHERE CLASSIFIED,347
Tunbridge Wells Borough Council,Cultural and Related Services,104,LE,Leisure & Well-being,A-HALL FRONT OF HOUSE,UNIFORMS & PROTECTIVE CLOTHING,3100,-,-,19/08/2015,P05_58,58.17,Revenue,PAYPAL *TEXTILECENT,DISCOUNT STORES,348
Tunbridge Wells Borough Council,Cultural and Related Services,104,LE,Leisure & Well-being,ASSEMBLY HALL IMPROVEMENTS,FURNITURE AND EQUIPMENT,8326,-,-,19/08/2015,P05_76,331.39,Capital,WWW.DRINKSTUFF.COM,MISCELLANEOUS AND RETAIL STORES,349
Tunbridge Wells Borough Council,Housing Services,108,HO,Housing Services & Health,HOUSING NEEDS SERVICE,HOMELESSNESS EXPENSES,3912,-,-,19/08/2015,P05_79,391.57,Revenue,BIG YELLOW BOX & LOCK,PUBLIC WAREHOUSING-FARM PROD REFRIGERATE,350
Tunbridge Wells Borough Council,,,,,,,,,,27/04/2015,,17.33,,Times Newspapers Ltd,"Books, Periodicals and Newspapers",351
Tunbridge Wells Borough Council,,,,,,,,,,27/04/2015,,20,,Three Store,Telecommunication Services,352
Tunbridge Wells Borough Council,,,,,,,,,,27/04/2015,,130.9,,Maplin Tunbrwells Tn1,Electronic Sales,353
Tunbridge Wells Borough Council,,,,,,,,,,27/04/2015,,28,,Mrs Florist London,Florists,354
Tunbridge Wells Borough Council,,,,,,,,,,27/04/2015,,97,,Mrs Florist London,Florists,355
Tunbridge Wells Borough Council,,,,,,,,,,27/04/2015,,3.3,,Google *svcsapps_assem,Direct Marketing Continuity Subscription Merchants,356
Tunbridge Wells Borough Council,,,,,,,,,,27/04/2015,,27.08,,Facebook 3le5r7a6z2,Advertising Services,357
Tunbridge Wells Borough Council,,,,,,,,,,27/04/2015,,19.72,,Facebook D779t765z2,Advertising Services,358
Tunbridge Wells Borough Council,,,,,,,,,,27/04/2015,,91.8,,Autopa Ltd,Miscellaneous General Merchandise,359
Tunbridge Wells Borough Council,,,,,,,,,,27/04/2015,,64.63,,Mailchimp,Other Business Services,360
Tunbridge Wells Borough Council,,,,,,,,,,27/04/2015,,1.78,,Transaction Fees - Foreign Exchange Fee,-,361
Tunbridge Wells Borough Council,,,,,,,,,,27/04/2015,,13.2,,Facebook 96y2l766z2,Advertising Services,362
Tunbridge Wells Borough Council,,,,,,,,,,27/04/2015,,63,,The Stage Newspaper,Miscellaneous Publishing and Printing,363
Tunbridge Wells Borough Council,,,,,,,,,,27/04/2015,,41.85,,Uk Theatre Association Lt,"Theatrical Producers, Tic",364
Tunbridge Wells Borough Council,,,,,,,,,,27/04/2015,,432,,Uk Theatre Association Lt,"Theatrical Producers, Tic",365
Tunbridge Wells Borough Council,,,,,,,,,,27/04/2015,,2,,Marks & Spencer,Grocery Stores and Supermarkets,366
Tunbridge Wells Borough Council,,,,,,,,,,27/04/2015,,6.2,,Johnson Cleaners,Dry Cleaners,367
Tunbridge Wells Borough Council,,,,,,,,,,27/04/2015,,1.2,,Paybyphone Parking,Automobile Parking Lots and Garages,368
Tunbridge Wells Borough Council,,,,,,,,,,27/04/2015,,199,,Moss - 229,Mens and Boys Clothing and Furnishings Store,369
Tunbridge Wells Borough Council,,,,,,,,,,27/04/2015,,56,,Ask Tunbridge Well,"Eating Places, Restaurants",370
Tunbridge Wells Borough Council,,,,,,,,,,27/04/2015,,15.4,,London & South Eas,Passenger Railways,371
Tunbridge Wells Borough Council,,,,,,,,,,27/04/2015,,10,,Martin Mccoll,Miscellaneous Food Stores & Convenience Stores,372
Tunbridge Wells Borough Council,,,,,,,,,,27/04/2015,,13,,Call A Cab,Taxi Services,373
Tunbridge Wells Borough Council,,,,,,,,,,27/04/2015,,25,,Martin Mccoll,Miscellaneous Food Stores & Convenience Stores,374
Tunbridge Wells Borough Council,,,,,,,,,,27/04/2015,,339.9,,Sunflower Lettings,Real Estate Managers - Rentals,375
Tunbridge Wells Borough Council,,,,,,,,,,27/04/2015,,148.99,,Amazon UK Retail,Other Direct Marketing-Other Direct Marketers,376
Tunbridge Wells Borough Council,,,,,,,,,,27/04/2015,,15.02,,Paypal *envato Mkpl En,Miscellaneous and Specialty Retail Stores,377
Tunbridge Wells Borough Council,,,,,,,,,,27/04/2015,,29.99,,Easily Ltd,"Consulting, Management, and PR Services",378
Tunbridge Wells Borough Council,,,,,,,,,,27/04/2015,,1050,,Hmcourts-Service.G,Fines,379
Tunbridge Wells Borough Council,,,,,,,,,,27/04/2015,,20,,"Amazon Svcs Europe,sar",Book Stores,380
Tunbridge Wells Borough Council,,,,,,,,,,27/04/2015,,112.56,,Www.Evaq8.Co.Uk,Sporting Goods Stores,381
Tunbridge Wells Borough Council,,,,,,,,,,27/04/2015,,246.12,,Www.Ukpos.Com,"Office, School Supply, and Stationery Stores",382
Tunbridge Wells Borough Council,,,,,,,,,,27/04/2015,,162,,Ascertiva Group Lt,Book Stores,383
Tunbridge Wells Borough Council,,,,,,,,,,27/04/2015,,42.8,,"Amazon Svcs Europe,sar",Book Stores,384
Tunbridge Wells Borough Council,,,,,,,,,,27/04/2015,,60.99,,"Amazon Svcs Europe,sar",Book Stores,385
Tunbridge Wells Borough Council,,,,,,,,,,27/04/2015,,9.98,,"Amazon Svcs Europe,sar",Book Stores,386
Tunbridge Wells Borough Council,,,,,,,,,,27/04/2015,,10,,Gov.Uk/dart-Charge,Bridge/Road Fees & Tolls,387
Tunbridge Wells Borough Council,,,,,,,,,,27/04/2015,,594,,Solace Ltd,"Organizations, Membership",388
Tunbridge Wells Borough Council,,,,,,,,,,27/04/2015,,249,,Www.Solace.Org.Uk,"Organizations, Membership",389
Tunbridge Wells Borough Council,,,,,,,,,,27/04/2015,,49.8,,Www.Solace.Org.Uk,"Organizations, Membership",390
Tunbridge Wells Borough Council,,,,,,,,,,27/04/2015,,10.45,,Asda Stores 4776,Grocery Stores and Supermarkets,391
Tunbridge Wells Borough Council,,,,,,,,,,27/04/2015,,296.57,,Bookerecomm,Caterers,392
Tunbridge Wells Borough Council,,,,,,,,,,27/04/2015,,14.08,,Glen Dimplex Home Appl,Household Appliance Stores,393
Tunbridge Wells Borough Council,,,,,,,,,,27/04/2015,,123.97,,Www.Bakerross.Co.Uk,"Artist Supply Stores, Craft Shops",394
Tunbridge Wells Borough Council,,,,,,,,,,27/04/2015,,8,,Asda Stores 4776,Grocery Stores and Supermarkets,395
Tunbridge Wells Borough Council,,,,,,,,,,27/04/2015,,56.37,,Asda Stores 4776,Grocery Stores and Supermarkets,396
Tunbridge Wells Borough Council,,,,,,,,,,27/04/2015,,31.7,,99p Stores Ltd,Grocery Stores and Supermarkets,397
Tunbridge Wells Borough Council,,,,,,,,,,27/04/2015,,141.69,,Booker Limited Tunbridge,Caterers,398
Tunbridge Wells Borough Council,,,,,,,,,,27/04/2015,,223.36,,Bookerecomm,Caterers,399
Tunbridge Wells Borough Council,,,,,,,,,,27/04/2015,,16.5,,Asda Stores 4776,Grocery Stores and Supermarkets,400
Tunbridge Wells Borough Council,Housing Services,108,HO,Housing Services & Health,TN2 COMMUNITY CENTRE,COGS - DRINK,3091,-,-,07/09/2015,P06_23,30.05,Revenue,BOOKERECOMM,CATERERS,401
Tunbridge Wells Borough Council,Cultural and Related Services,104,LE,Leisure & Well-being,A-HALL MANAGEMENT,EQUIPMENT PURCHASE/MTCE,3000,-,-,07/09/2015,P06_41,43.3,Revenue,WWW.DRINKSTUFF.COM,MISCELLANEOUS AND RETAIL STORES,402
Tunbridge Wells Borough Council,Central Services,102,CH,Chief Executive's Office,CHIEF EXECUTIVE,HOSPITALITY,3720,-,-,07/09/2015,P06_65,156,Revenue,M&S E COMMERCE,GROCERY STORES  SUPERMARKETS,403
Tunbridge Wells Borough Council,Housing Services,108,HO,Housing Services & Health,TN2 COMMUNITY CENTRE,COGS -FOOD,3090,-,-,08/09/2015,P06_20,3.56,Revenue,BOOKER LIMITED TUNBRIDGE,CATERERS,404
Tunbridge Wells Borough Council,Housing Services,108,HO,Housing Services & Health,TN2 COMMUNITY CENTRE,PROJECTS & INITIATIVES,3910,-,-,08/09/2015,P06_26,14.58,Revenue,BOOKER LIMITED TUNBRIDGE,CATERERS,405
Tunbridge Wells Borough Council,Environmental and regulatory services ,105,EN,Environment & Street Scene,CLEANER BOROUGH,EQUIPMENT PURCHASE/MTCE,3000,SHERWOOD KINGDOM,EV0467,08/09/2015,P06_35,95.82,Revenue,ARGOS RETAIL GROUP,DISCOUNT STORES,406
Tunbridge Wells Borough Council,Cultural and Related Services,104,LE,Leisure & Well-being,A-HALL MANAGEMENT,EQUIPMENT PURCHASE/MTCE,3000,-,-,08/09/2015,P06_50,57.36,Revenue,WWW.PARTYDELIGHTS.CO.U,GIFT  CARD  NOVELTY  AND SOUVENIR SHOPS,407
Tunbridge Wells Borough Council,Cultural and Related Services,104,LE,Leisure & Well-being,ASSEMBLY HALL IMPROVEMENTS,AQUISITION,8305,-,-,08/09/2015,P06_79,34.45,Capital,TP TUNBRIDGE WELLS,LUMBER AND BUILDING MATERIALS STORES,408
Tunbridge Wells Borough Council,Cultural and Related Services,104,LE,Leisure & Well-being,ASSEMBLY HALL IMPROVEMENTS,AQUISITION,8305,-,-,08/09/2015,P06_83,42.91,Capital,TP TUNBRIDGE WELLS,LUMBER AND BUILDING MATERIALS STORES,409
Tunbridge Wells Borough Council,Housing Services,108,HO,Housing Services & Health,TEMPORARY ACCOMMODATION,FURNITURE COSTS,3020,-,-,09/09/2015,P06_15,133.33,Revenue,WWW.COOPELECTRICAL,HOUSEHOLD APPLIANCE STORES,410
Tunbridge Wells Borough Council,Cultural and Related Services,104,LE,Leisure & Well-being,A-HALL MANAGEMENT,EQUIPMENT PURCHASE/MTCE,3000,-,-,09/09/2015,P06_45,11.29,Revenue,LAKELAND LIMITED,MISCELLANEOUS GENERAL MERCHANDISE STORES,411
Tunbridge Wells Borough Council,Cultural and Related Services,104,LE,Leisure & Well-being,A-HALL MANAGEMENT,EQUIPMENT PURCHASE/MTCE,3000,-,-,09/09/2015,P06_46,154.05,Revenue,THE EDGE,BUSINESS SERVICES NOT ELSEWHERE CLASSIFIED,412
Tunbridge Wells Borough Council,Cultural and Related Services,104,LE,Leisure & Well-being,A-HALL MANAGEMENT,EQUIPMENT PURCHASE/MTCE,3000,-,-,09/09/2015,P06_47,69.5,Revenue,WWW.RYMAN.CO.UK,STATIONARY  OFFICE AND SCHOOL SUPPLY STORES,413
Tunbridge Wells Borough Council,Central Services,102,FI,Finance & Local Goverance,REVS & BENS ADMINISTRATION,COURT FEES,3263,-,-,02/12/2015,P09_83,150,Revenue,COUNTY COURT,FINES,414
Tunbridge Wells Borough Council,Cultural and Related Services,104,LE,Leisure & Well-being,A-HALL MANAGEMENT,EQUIPMENT PURCHASE/MTCE,3000,-,-,09/09/2015,P06_48,78.76,Revenue,LAKELAND LIMITED,MISCELLANEOUS GENERAL MERCHANDISE STORES,415
Tunbridge Wells Borough Council,Cultural and Related Services,104,LE,Leisure & Well-being,A-HALL MANAGEMENT,EQUIPMENT PURCHASE/MTCE,3000,-,-,09/09/2015,P06_49,34.95,Revenue,JEREMY'S HOME STORE,MISCELLANEOUS AND RETAIL STORES,416
Tunbridge Wells Borough Council,Cultural and Related Services,104,LE,Leisure & Well-being,A-HALL TECH OPS,EQUIPMENT PURCHASE/MTCE,3000,-,-,09/09/2015,P06_52,7.49,Revenue,JEREMY'S HOME STORE,MISCELLANEOUS AND RETAIL STORES,417
Tunbridge Wells Borough Council,Central Services,102,FI,Finance & Local Goverance,REVS & BENS ADMINISTRATION,COURT FEES,3263,-,-,02/12/2015,P09_84,50,Revenue,COUNTY COURT,FINES,418
Tunbridge Wells Borough Council,Cultural and Related Services,104,FI,Finance & Local Goverance,ASSEMBLY HALL ICT,COMPUTER HARDWARE,8329,-,-,09/09/2015,P06_75,10,Capital,CARPHONE WAREHOUSE,TELECOMMUNICATION EQUIPMENT INCLUDING TELEPHONE SALES,419
Tunbridge Wells Borough Council,Central Services,102,FI,Finance & Local Goverance,REVS & BENS ADMINISTRATION,COURT FEES,3263,-,-,02/12/2015,P09_85,50,Revenue,COMBINED COURT,FINES,420
Tunbridge Wells Borough Council,Cultural and Related Services,104,FI,Finance & Local Goverance,ASSEMBLY HALL ICT,COMPUTER HARDWARE,8329,-,-,09/09/2015,P06_76,70.83,Capital,CARPHONE WAREHOUSE,TELECOMMUNICATION EQUIPMENT INCLUDING TELEPHONE SALES,421
Tunbridge Wells Borough Council,Cultural and Related Services,104,LE,Leisure & Well-being,A-HALL MKTG & SALES,PROMOTION,3450,-,-,03/12/2015,P09_60,3.3,Revenue,GOOGLE *SVCSAPPS_ASSEM,CONTINUITY/SUBSCRIPTION MERCHANTS,422
Tunbridge Wells Borough Council,Cultural and Related Services,104,LE,Leisure & Well-being,A-HALL MANAGEMENT,EQUIPMENT PURCHASE/MTCE,3000,-,-,10/09/2015,P06_42,47.67,Revenue,B & Q,LUMBER AND BUILDING MATERIALS STORES,423
Tunbridge Wells Borough Council,Housing Services,108,HO,Housing Services & Health,HOUSING NEEDS SERVICE,HOMELESSNESS EXPENSES,3912,-,-,04/12/2015,P09_15,58.32,Revenue,TON HIRE,CAR RENTAL AGENCIES NOT ELSEWHERE CLASSIFIED,424
Tunbridge Wells Borough Council,Cultural and Related Services,104,LE,Leisure & Well-being,A-HALL MANAGEMENT,EQUIPMENT PURCHASE/MTCE,3000,-,-,10/09/2015,P06_43,191.25,Revenue,JOHNSON CLEANERS,DRY CLEANERS,425
Tunbridge Wells Borough Council,Cultural and Related Services,104,LE,Leisure & Well-being,TW ICE RINK,EQUIPMENT PURCHASE/MTCE,3000,-,-,16/11/2015,P08_33,124.99,Revenue,ARGOS LTD,DISCOUNT STORES,426
Tunbridge Wells Borough Council,Housing Services,108,HO,Housing Services & Health,HOUSING NEEDS SERVICE,HOMELESSNESS EXPENSES,3912,-,-,04/12/2015,P09_19,-100,Revenue,TON HIRE,CAR RENTAL AGENCIES NOT ELSEWHERE CLASSIFIED,427
Tunbridge Wells Borough Council,Housing Services,108,HO,Housing Services & Health,HOUSING NEEDS SERVICE,HOMELESSNESS EXPENSES,3912,-,-,04/12/2015,P09_20,113.5,Revenue,TON HIRE,CAR RENTAL AGENCIES NOT ELSEWHERE CLASSIFIED,428
Tunbridge Wells Borough Council,Environmental and regulatory services ,105,EN,Environment & Street Scene,CONTRACTS MANAGEMENT,MOBILE PHONE COSTS,3520,-,-,04/12/2015,P09_46,47.92,Revenue,AMAZON UK MARKETPLACE,MISCELLANEOUS AND RETAIL STORES,429
Tunbridge Wells Borough Council,Cultural and Related Services,104,CO,Community & Corporate Planning,MUSEUM & ART GALLERY,PROJECTS & INITIATIVES,3910,MUSEUM IN SCHOOLS,EV0061,04/12/2015,P09_51,11.38,Revenue,AMAZON UK MARKETPLACE,MISCELLANEOUS AND RETAIL STORES,430
Tunbridge Wells Borough Council,Cultural and Related Services,104,LE,Leisure & Well-being,A-HALL FRONT OF HOUSE,CONSUMABLES & MATERIALS,3060,-,-,04/12/2015,P09_64,48.38,Revenue,WWW.CICSLIMITED.CO.UK,CLEANING AND MAINTENANCE  JANITORIAL SERVICES,431
Tunbridge Wells Borough Council,Central Services,102,HR,Human Resources,HUMAN RESOURCES,EQUIPMENT PURCHASE/MTCE,3000,-,-,04/12/2015,P09_87,18.7,Revenue,AMAZON UK MARKETPLACE,MISCELLANEOUS AND RETAIL STORES,432
Tunbridge Wells Borough Council,Central Services,102,HR,Human Resources,STAFF WELFARE,OTHER FEES,3330,Social Society Club,EV1006,04/12/2015,P09_88,2.58,Revenue,AMAZON UK MARKETPLACE,MISCELLANEOUS AND RETAIL STORES,433
Tunbridge Wells Borough Council,Central Services,102,CU,Customer Access,TOWN HALL,STATIONERY,3160,PROPERTY ACCOMMODATION,PH0602,04/12/2015,P09_94,13.29,Revenue,AMAZON UK MARKETPLACE,MISCELLANEOUS AND RETAIL STORES,434
Tunbridge Wells Borough Council,Housing Services,108,HO,Housing Services & Health,HOUSING NEEDS SERVICE,PROJECTS & INITIATIVES,3910,SYRIAN REFUGESS,EV0587,08/12/2015,P09_07,114.71,Revenue,HOMEBASE LTD 071,LUMBER AND BUILDING MATERIALS STORES,435
Tunbridge Wells Borough Council,Housing Services,108,HO,Housing Services & Health,HOUSING NEEDS SERVICE,HOMELESSNESS EXPENSES,3912,-,-,08/12/2015,P09_12,12.75,Revenue,COUNTRYWIDE RESIDENTIA,PROFESSIONAL SERVICES NOT ELSEWHERE CLASSIFIED,436
Tunbridge Wells Borough Council,Housing Services,108,HO,Housing Services & Health,HOUSING NEEDS SERVICE,HOMELESSNESS EXPENSES,3912,-,-,08/12/2015,P09_18,425,Revenue,COUNTRYWIDE RESIDENTIA,PROFESSIONAL SERVICES NOT ELSEWHERE CLASSIFIED,437
Tunbridge Wells Borough Council,Housing Services,108,HO,Housing Services & Health,TEMPORARY ACCOMMODATION,GAS,2120,SYRIAN REFUGESS,EV0587,08/12/2015,P09_24,19.05,Revenue,MARTIN MCCOLL,MISC FOOD STORES-SPECIALITY CONVENIENCE MARKETS VENDING MACHINES,438
Tunbridge Wells Borough Council,Housing Services,108,HO,Housing Services & Health,TEMPORARY ACCOMMODATION,GAS,2120,-,-,08/12/2015,P09_26,9.52,Revenue,MARTIN MCCOLL,MISC FOOD STORES-SPECIALITY CONVENIENCE MARKETS VENDING MACHINES,439
Tunbridge Wells Borough Council,Housing Services,108,HO,Housing Services & Health,TEMPORARY ACCOMMODATION,ELECTRICITY,2140,SYRIAN REFUGESS,EV0587,08/12/2015,P09_27,19.05,Revenue,MARTIN MCCOLL,MISC FOOD STORES-SPECIALITY CONVENIENCE MARKETS VENDING MACHINES,440
Tunbridge Wells Borough Council,Housing Services,108,HO,Housing Services & Health,TEMPORARY ACCOMMODATION,ELECTRICITY,2140,SYRIAN REFUGESS,EV0587,08/12/2015,P09_28,9.52,Revenue,MARTIN MCCOLL,MISC FOOD STORES-SPECIALITY CONVENIENCE MARKETS VENDING MACHINES,441
Tunbridge Wells Borough Council,Housing Services,108,HO,Housing Services & Health,TEMPORARY ACCOMMODATION,ELECTRICITY,2140,SYRIAN REFUGESS,EV0587,08/12/2015,P09_29,19.05,Revenue,MARTIN MCCOLL,MISC FOOD STORES-SPECIALITY CONVENIENCE MARKETS VENDING MACHINES,442
Tunbridge Wells Borough Council,Cultural and Related Services,104,LE,Leisure & Well-being,A-HALL MKTG & SALES,PROMOTION,3450,-,-,20/08/2015,P05_34,12.47,Revenue,RYMAN 1206,STATIONARY  OFFICE AND SCHOOL SUPPLY STORES,443
Tunbridge Wells Borough Council,Housing Services,108,HO,Housing Services & Health,TEMPORARY ACCOMMODATION,ELECTRICITY,2140,-,-,08/12/2015,P09_31,9.52,Revenue,MARTIN MCCOLL,MISC FOOD STORES-SPECIALITY CONVENIENCE MARKETS VENDING MACHINES,444
Tunbridge Wells Borough Council,Cultural and Related Services,104,LE,Leisure & Well-being,A-HALL FRONT OF HOUSE,COGS - CONFECTIONERY,3094,-,-,08/12/2015,P09_70,107.39,Revenue,UK SWEETS LTD,CANDY  NUT CONFECTIONERY STORES,445
Tunbridge Wells Borough Council,Housing Services,108,HO,Housing Services & Health,HOUSING NEEDS SERVICE,PROJECTS & INITIATIVES,3910,SYRIAN REFUGESS,EV0587,09/12/2015,P09_05,24.98,Revenue,ARGOS LTD,DISCOUNT STORES,446
Tunbridge Wells Borough Council,Housing Services,108,HO,Housing Services & Health,HOUSING NEEDS SERVICE,PROJECTS & INITIATIVES,3910,SYRIAN REFUGESS,EV0587,09/12/2015,P09_06,94.98,Revenue,ARGOS LTD,DISCOUNT STORES,447
Tunbridge Wells Borough Council,Housing Services,108,HO,Housing Services & Health,HOUSING NEEDS SERVICE,HOMELESSNESS EXPENSES,3912,-,-,09/12/2015,P09_11,13.1,Revenue,LONDON & SOUTH EAS,PASSENGER RAILWAYS,448
Tunbridge Wells Borough Council,Housing Services,108,HO,Housing Services & Health,TN2 COMMUNITY CENTRE,EQUIPMENT PURCHASE/MTCE,3000,-,-,09/12/2015,P09_34,174.87,Revenue,ARGOS LTD,DISCOUNT STORES,449
Tunbridge Wells Borough Council,Planning Services,110,PL,Planning Services,PLANNING MANAGEMENT & SUPPORT,BOOKS & PUBLICATIONS,3190,-,-,09/12/2015,P09_74,112,Revenue,IHBC.ORG.UK,MEMBERSHIP ORGANIZATIONS NOT ELSEWHERE CLASSIFIED,450
Tunbridge Wells Borough Council,Planning Services,110,PL,Planning Services,PLANNING MANAGEMENT & SUPPORT,BOOKS & PUBLICATIONS,3190,-,-,09/12/2015,P09_75,9.67,Revenue,IHBC.ORG.UK,MEMBERSHIP ORGANIZATIONS NOT ELSEWHERE CLASSIFIED,451
Tunbridge Wells Borough Council,Planning Services,110,PL,Planning Services,DEVELOPMENT MANAGEMENT,EQUIPMENT PURCHASE/MTCE,3000,-,-,09/12/2015,P09_76,114.88,Revenue,WWW.TOOLED-UP.COM,HARDWARE STORES,452
Tunbridge Wells Borough Council,Cultural and Related Services,104,CO,Community & Corporate Planning,MUSEUM & ART GALLERY,PROJECTS & INITIATIVES,3910,-,-,11/12/2015,P09_52,28.28,Revenue,ARGOS RETAIL GROUP,DISCOUNT STORES,453
Tunbridge Wells Borough Council,Cultural and Related Services,104,CO,Community & Corporate Planning,MUSEUM & ART GALLERY,PROJECTS & INITIATIVES,3910,-,-,11/12/2015,P09_53,194.93,Revenue,WEX PHOTOGRAPHIC,CAMERA AND PHOTOGRAPHIC SUPPLY STORES,454
Tunbridge Wells Borough Council,Housing Services,108,HO,Housing Services & Health,TN2 COMMUNITY CENTRE,EQUIPMENT PURCHASE/MTCE,3000,-,-,12/12/2015,P09_33,24.99,Revenue,MAPLIN TUNBRWELLS TN1,ELECTRONIC SALES,455
Tunbridge Wells Borough Council,Housing Services,108,HO,Housing Services & Health,TN2 COMMUNITY CENTRE,COGS -FOOD,3090,-,-,12/12/2015,P09_43,41.22,Revenue,MAPLIN TUNBRWELLS TN1,ELECTRONIC SALES,456
Tunbridge Wells Borough Council,Housing Services,108,HO,Housing Services & Health,HOUSING NEEDS SERVICE,BOOKS & PUBLICATIONS,3190,-,-,14/12/2015,P09_01,45.75,Revenue,DOVETAIL LTD GBP,MISCELLANEOUS AND RETAIL STORES,457
Tunbridge Wells Borough Council,Housing Services,108,HO,Housing Services & Health,HOUSING NEEDS SERVICE,BOOKS & PUBLICATIONS,3190,-,-,14/12/2015,P09_02,103.25,Revenue,DOVETAIL LTD GBP,MISCELLANEOUS AND RETAIL STORES,458
Tunbridge Wells Borough Council,Housing Services,108,HO,Housing Services & Health,PRIVATE SECTOR HOUSING,HOSPITALITY,3720,-,-,14/12/2015,P09_21,16.67,Revenue,MARKS & SPENCER,GROCERY STORES  SUPERMARKETS,459
Tunbridge Wells Borough Council,Housing Services,108,HO,Housing Services & Health,TEMPORARY ACCOMMODATION,RESPONSIVE REPAIRS BUILDINGS,2020,SYRIAN REFUGESS,EV0587,14/12/2015,P09_22,20.83,Revenue,TIMPSON LTD,SHOE REPAIR SHOPS  SHOE SHINE PARLORS & HAT CLEANING SHOPS,460
Tunbridge Wells Borough Council,Housing Services,108,HO,Housing Services & Health,TEMPORARY ACCOMMODATION,RESPONSIVE REPAIRS BUILDINGS,2020,-,-,14/12/2015,P09_23,5,Revenue,TIMPSON LTD,SHOE REPAIR SHOPS  SHOE SHINE PARLORS & HAT CLEANING SHOPS,461
Tunbridge Wells Borough Council,Central Services,102,FI,Finance & Local Goverance,REVS & BENS ADMINISTRATION,COURT FEES,3263,-,-,14/12/2015,P09_80,768,Revenue,HMCOURTS-SERVICE.G,FINES,462
Tunbridge Wells Borough Council,Central Services,102,CH,Chief Executive's Office,MAYORAL,MAYORAL EXPENSES,3690,DRINKS,EV0127,14/12/2015,P09_91,18.75,Revenue,MARKS & SPENCER,GROCERY STORES  SUPERMARKETS,463
Tunbridge Wells Borough Council,Housing Services,108,HO,Housing Services & Health,HOUSING NEEDS SERVICE,PROJECTS & INITIATIVES,3910,SYRIAN REFUGESS,EV0587,15/12/2015,P09_03,30.42,Revenue,TESCO STORE 2857,GROCERY STORES  SUPERMARKETS,464
Tunbridge Wells Borough Council,Housing Services,108,HO,Housing Services & Health,HOUSING NEEDS SERVICE,PROJECTS & INITIATIVES,3910,SYRIAN REFUGESS,EV0587,15/12/2015,P09_04,14.13,Revenue,C & H FABRICS,WINDOW COVERING  UPHOLSTERY AND DRAPERY STORES,465
Tunbridge Wells Borough Council,Housing Services,108,HO,Housing Services & Health,HOUSING NEEDS SERVICE,PROJECTS & INITIATIVES,3910,SYRIAN REFUGESS,EV0587,15/12/2015,P09_08,5.48,Revenue,RYMAN 1206,STATIONARY  OFFICE AND SCHOOL SUPPLY STORES,466
Tunbridge Wells Borough Council,Housing Services,108,HO,Housing Services & Health,HOUSING NEEDS SERVICE,PROJECTS & INITIATIVES,3910,SYRIAN REFUGESS,EV0587,15/12/2015,P09_10,64.26,Revenue,C & H FABRICS,WINDOW COVERING  UPHOLSTERY AND DRAPERY STORES,467
Tunbridge Wells Borough Council,Cultural and Related Services,104,LE,Leisure & Well-being,A-HALL MKTG & SALES,PROMOTION,3450,-,-,15/12/2015,P09_59,49.63,Revenue,MAILCHIMP,BUSINESS SERVICES NOT ELSEWHERE CLASSIFIED,468
Tunbridge Wells Borough Council,Housing Services,108,HO,Housing Services & Health,HOUSING NEEDS SERVICE,HOMELESSNESS EXPENSES,3912,-,-,16/12/2015,P09_14,45,Revenue,BBSC TONBRIDGE LTD,PUBLIC WAREHOUSING-FARM PROD REFRIGERATE,469
Tunbridge Wells Borough Council,Housing Services,108,HO,Housing Services & Health,HOUSING NEEDS SERVICE,HOMELESSNESS EXPENSES,3912,-,-,16/12/2015,P09_17,89.53,Revenue,BBSC TONBRIDGE LTD,PUBLIC WAREHOUSING-FARM PROD REFRIGERATE,470
Tunbridge Wells Borough Council,Cultural and Related Services,104,LE,Leisure & Well-being,TW ICE RINK,PROMOTION,3450,-,-,16/12/2015,P09_50,1.85,Revenue,FOREIGN EXCHANGE FEE,0,471
Tunbridge Wells Borough Council,Cultural and Related Services,104,LE,Leisure & Well-being,A-HALL MKTG & SALES,PROMOTION,3450,-,-,16/12/2015,P09_58,1.36,Revenue,FOREIGN EXCHANGE FEE,0,472
Tunbridge Wells Borough Council,Cultural and Related Services,104,LE,Leisure & Well-being,TW ICE RINK,PROMOTION,3450,-,-,16/11/2015,P08_37,17.31,Revenue,RYMAN 1206,STATIONARY  OFFICE AND SCHOOL SUPPLY STORES,473
Tunbridge Wells Borough Council,Cultural and Related Services,104,LE,Leisure & Well-being,TW ICE RINK,PROMOTION,3450,-,-,16/11/2015,P08_41,1.81,Revenue,FOREIGN EXCHANGE FEE,0,474
Tunbridge Wells Borough Council,Cultural and Related Services,104,LE,Leisure & Well-being,A-HALL MKTG & SALES,PROMOTION,3450,-,-,16/11/2015,P08_51,2.54,Revenue,FOREIGN EXCHANGE FEE,0,475
Tunbridge Wells Borough Council,Cultural and Related Services,104,LE,Leisure & Well-being,A-HALL MANAGEMENT,EQUIPMENT PURCHASE/MTCE,3000,-,-,10/09/2015,P06_44,13.32,Revenue,RYMAN 1206,STATIONARY  OFFICE AND SCHOOL SUPPLY STORES,476
Tunbridge Wells Borough Council,Cultural and Related Services,104,LE,Leisure & Well-being,A-HALL FRONT OF HOUSE,COGS - CONFECTIONERY,3094,-,-,16/11/2015,P08_59,92.47,Revenue,UK SWEETS LTD,CANDY  NUT CONFECTIONERY STORES,477
Tunbridge Wells Borough Council,Cultural and Related Services,104,LE,Leisure & Well-being,ASSEMBLY HALL IMPROVEMENTS,AQUISITION,8305,-,-,10/09/2015,P06_80,159.98,Capital,JOHNSTONES DEC CENTRE,GLASS  PAINT  WALLPAPER STORES,478
Tunbridge Wells Borough Council,Cultural and Related Services,104,LE,Leisure & Well-being,TW ICE RINK,EQUIPMENT PURCHASE/MTCE,3000,-,-,17/11/2015,P08_30,19.02,Revenue,WM MORRISONS STORE,GROCERY STORES  SUPERMARKETS,479
Tunbridge Wells Borough Council,Cultural and Related Services,104,LE,Leisure & Well-being,TW ICE RINK,EQUIPMENT PURCHASE/MTCE,3000,-,-,17/11/2015,P08_31,290.79,Revenue,RICHER SOUNDS,ELECTRONIC SALES,480
Tunbridge Wells Borough Council,Cultural and Related Services,104,LE,Leisure & Well-being,TW ICE RINK,PROMOTION,3450,-,-,17/11/2015,P08_39,8.42,Revenue,WM MORRISONS STORE,GROCERY STORES  SUPERMARKETS,481
Tunbridge Wells Borough Council,Cultural and Related Services,104,LE,Leisure & Well-being,A-HALL TECH OPS,LICENCES (INC PRS/PPL),3390,-,-,17/11/2015,P08_48,145.5,Revenue,TVLICENSING.CO.UK,MANAGEMENT  CONSULTING AND PUBLIC RELATIONS SERVICES,482
Tunbridge Wells Borough Council,Cultural and Related Services,104,LE,Leisure & Well-being,TW ICE RINK,EQUIPMENT PURCHASE/MTCE,3000,-,-,19/11/2015,P08_26,328.57,Revenue,HOMEBASE LTD 071,LUMBER AND BUILDING MATERIALS STORES,483
Tunbridge Wells Borough Council,Cultural and Related Services,104,LE,Leisure & Well-being,TW ICE RINK,EQUIPMENT PURCHASE/MTCE,3000,-,-,19/11/2015,P08_28,9,Revenue,MARKS & SPENCER,GROCERY STORES  SUPERMARKETS,484
Tunbridge Wells Borough Council,Cultural and Related Services,104,LE,Leisure & Well-being,TW ICE RINK,EQUIPMENT PURCHASE/MTCE,3000,-,-,19/11/2015,P08_29,21.3,Revenue,MARKS & SPENCER,GROCERY STORES  SUPERMARKETS,485
Tunbridge Wells Borough Council,Planning Services,110,EC,Economic Development & Regeneration,ECONOMIC DEVELOPMENT,PROMOTION,3450,-,-,19/11/2015,P08_62,42.92,Revenue,1&1 INTERNET LIMITED,COMPUTER NETWORK/INFORMATION SERVICES,486
Tunbridge Wells Borough Council,Cultural and Related Services,104,LE,Leisure & Well-being,TW ICE RINK,PROMOTION,3450,-,-,21/11/2015,P08_36,65.65,Revenue,TINT - TINTUP.COM,COMPUTER AND DATA PROCESSING SERVICES,487
Tunbridge Wells Borough Council,Cultural and Related Services,104,LE,Leisure & Well-being,A-HALL MANAGEMENT,PROJECTS & INITIATIVES,3910,-,-,21/11/2015,P08_45,44.52,Revenue,THE RANGE,DEPARTMENT STORES,488
Tunbridge Wells Borough Council,Cultural and Related Services,104,LE,Leisure & Well-being,A-HALL MANAGEMENT,PROJECTS & INITIATIVES,3910,-,-,22/11/2015,P08_46,29.12,Revenue,WWW.CHRISTMASTIMEUK.CO,GIFT  CARD  NOVELTY  AND SOUVENIR SHOPS,489
Tunbridge Wells Borough Council,Housing Services,108,HO,Housing Services & Health,TEMPORARY ACCOMMODATION,GAS,2120,-,-,23/11/2015,P08_12,9.52,Revenue,CO-OP GROUP 540071,GROCERY STORES  SUPERMARKETS,490
Tunbridge Wells Borough Council,Housing Services,108,HO,Housing Services & Health,TEMPORARY ACCOMMODATION,ELECTRICITY,2140,-,-,23/11/2015,P08_15,19.05,Revenue,CO-OP GROUP 540071,GROCERY STORES  SUPERMARKETS,491
Tunbridge Wells Borough Council,Housing Services,108,HO,Housing Services & Health,TEMPORARY ACCOMMODATION,ELECTRICITY,2140,-,-,23/11/2015,P08_19,14.29,Revenue,CO-OP GROUP 540071,GROCERY STORES  SUPERMARKETS,492
Tunbridge Wells Borough Council,Housing Services,108,HO,Housing Services & Health,TEMPORARY ACCOMMODATION,ELECTRICITY,2140,-,-,23/11/2015,P08_20,9.52,Revenue,CO-OP GROUP 540071,GROCERY STORES  SUPERMARKETS,493
Tunbridge Wells Borough Council,Housing Services,108,HO,Housing Services & Health,TEMPORARY ACCOMMODATION,GAS,2120,-,-,24/11/2015,P08_11,39.05,Revenue,CALVERLY FOOD AND WINE,GROCERY STORES  SUPERMARKETS,494
Tunbridge Wells Borough Council,Cultural and Related Services,104,LE,Leisure & Well-being,A-HALL MANAGEMENT,SUBS TO ORGANISATIONS,3730,-,-,25/11/2015,P09_55,17.33,Revenue,TIMES NEWSPAPERS LTD,BOOKS PERIODICALS AND NEWSPAPERS,495
Tunbridge Wells Borough Council,Housing Services,108,HO,Housing Services & Health,TN2 COMMUNITY CENTRE,CONSUMABLES & MATERIALS,3060,-,-,27/11/2015,P09_36,43.64,Revenue,BOOKER LIMITED TUNBRIDGE,CATERERS,496
Tunbridge Wells Borough Council,Housing Services,108,HO,Housing Services & Health,TN2 COMMUNITY CENTRE,COGS -FOOD,3090,-,-,27/11/2015,P09_39,61.4,Revenue,BOOKER LIMITED TUNBRIDGE,CATERERS,497
Tunbridge Wells Borough Council,Cultural and Related Services,104,LE,Leisure & Well-being,A-HALL MANAGEMENT,PROJECTS & INITIATIVES,3910,-,-,27/11/2015,P09_56,145.83,Revenue,SCAYNES NURSEY,NURSERIES  LAWN AND GARDEN SUPPLY STORES,498
Tunbridge Wells Borough Council,Cultural and Related Services,104,LE,Leisure & Well-being,A-HALL FRONT OF HOUSE,CONSUMABLES & MATERIALS,3060,-,-,27/11/2015,P09_65,12.02,Revenue,BOOKER LIMITED TUNBRIDGE,CATERERS,499
Tunbridge Wells Borough Council,Cultural and Related Services,104,LE,Leisure & Well-being,A-HALL FRONT OF HOUSE,COGS - DRINK,3091,-,-,27/11/2015,P09_66,131.18,Revenue,BOOKER LIMITED TUNBRIDGE,CATERERS,500
Tunbridge Wells Borough Council,Cultural and Related Services,104,LE,Leisure & Well-being,A-HALL FRONT OF HOUSE,COGS - DRINK,3091,-,-,27/11/2015,P09_67,88.04,Revenue,BOOKER LIMITED TUNBRIDGE,CATERERS,501
Tunbridge Wells Borough Council,Cultural and Related Services,104,LE,Leisure & Well-being,A-HALL FRONT OF HOUSE,COGS - DRINK,3091,-,-,27/11/2015,P09_68,120.85,Revenue,BOOKER LIMITED TUNBRIDGE,CATERERS,502
Tunbridge Wells Borough Council,Cultural and Related Services,104,LE,Leisure & Well-being,A-HALL FRONT OF HOUSE,COGS - DRINK,3091,-,-,27/11/2015,P09_69,335.04,Revenue,BOOKER LIMITED TUNBRIDGE,CATERERS,503
Tunbridge Wells Borough Council,Cultural and Related Services,104,LE,Leisure & Well-being,A-HALL FRONT OF HOUSE,COGS - CONFECTIONERY,3094,-,-,27/11/2015,P09_71,81.16,Revenue,BOOKER LIMITED TUNBRIDGE,CATERERS,504
Tunbridge Wells Borough Council,Cultural and Related Services,104,LE,Leisure & Well-being,A-HALL FRONT OF HOUSE,COGS - CONFECTIONERY,3094,-,-,27/11/2015,P09_72,70.97,Revenue,BOOKER LIMITED TUNBRIDGE,CATERERS,505
Tunbridge Wells Borough Council,Cultural and Related Services,104,LE,Leisure & Well-being,A-HALL FRONT OF HOUSE,COGS - CONFECTIONERY,3094,-,-,27/11/2015,P09_73,296.76,Revenue,BOOKER LIMITED TUNBRIDGE,CATERERS,506
Tunbridge Wells Borough Council,Highways and Transport Services,107,EN,Environment & Street Scene,PARKING ADMIN & ENFORCEMENT,EQUIPMENT PURCHASE/MTCE,3000,-,-,27/11/2015,P09_79,157.74,Revenue,BOOKER LIMITED TUNBRIDGE,CATERERS,507
Tunbridge Wells Borough Council,Housing Services,108,HO,Housing Services & Health,TN2 COMMUNITY CENTRE,COGS -FOOD,3090,-,-,28/11/2015,P09_37,30.45,Revenue,ASDA STORES 4776,GROCERY STORES  SUPERMARKETS,508
Tunbridge Wells Borough Council,Housing Services,108,HO,Housing Services & Health,TN2 COMMUNITY CENTRE,COGS -FOOD,3090,-,-,28/11/2015,P09_40,5,Revenue,ASDA STORES 4776,GROCERY STORES  SUPERMARKETS,509
Tunbridge Wells Borough Council,Housing Services,108,HO,Housing Services & Health,TN2 COMMUNITY CENTRE,COGS -FOOD,3090,-,-,28/11/2015,P09_41,25.35,Revenue,ASDA STORES 4776,GROCERY STORES  SUPERMARKETS,510
Tunbridge Wells Borough Council,Housing Services,108,HO,Housing Services & Health,TN2 COMMUNITY CENTRE,COGS -FOOD,3090,-,-,28/11/2015,P09_42,23.55,Revenue,ASDA STORES 4776,GROCERY STORES  SUPERMARKETS,511
Tunbridge Wells Borough Council,Housing Services,108,HO,Housing Services & Health,TN2 COMMUNITY CENTRE,COGS -FOOD,3090,-,-,28/11/2015,P09_44,32.95,Revenue,ASDA STORES 4776,GROCERY STORES  SUPERMARKETS,512
Tunbridge Wells Borough Council,Housing Services,108,HO,Housing Services & Health,TN2 COMMUNITY CENTRE,CLEANING SUPPLIES,2500,-,-,30/11/2015,P09_32,14.48,Revenue,BOOKERECOMM,CATERERS,513
Tunbridge Wells Borough Council,Cultural and Related Services,104,LE,Leisure & Well-being,TW ICE RINK,PROMOTION,3450,-,-,21/08/2015,P05_61,63.92,Revenue,TINT - TINTUP.COM,COMPUTER AND DATA PROCESSING SERVICES,514
Tunbridge Wells Borough Council,Housing Services,108,HO,Housing Services & Health,HOUSING NEEDS SERVICE,HOMELESSNESS EXPENSES,3912,-,-,15/01/2016,P10_02,139.67,Revenue,EASISTORE (TUNBRIDGE),"Public Warehousing, Farm, & Household Goods",515
Tunbridge Wells Borough Council,Housing Services,108,HO,Housing Services & Health,TEMPORARY ACCOMMODATION,GAS,2120,-,-,01/10/2015,P07_05,19.05,Revenue,CO-OP GROUP 540071,GROCERY STORES  SUPERMARKETS,516
Tunbridge Wells Borough Council,Housing Services,108,HO,Housing Services & Health,TN2 COMMUNITY CENTRE,CONSUMABLES & MATERIALS,3060,-,-,30/11/2015,P09_35,26.14,Revenue,BOOKERECOMM,CATERERS,517
Tunbridge Wells Borough Council,Housing Services,108,HO,Housing Services & Health,TN2 COMMUNITY CENTRE,COGS -FOOD,3090,-,-,30/11/2015,P09_38,251.57,Revenue,BOOKERECOMM,CATERERS,518
Tunbridge Wells Borough Council,Housing Services,108,HO,Housing Services & Health,TN2 COMMUNITY CENTRE,COGS - DRINK,3091,-,-,30/11/2015,P09_45,47.92,Revenue,BOOKERECOMM,CATERERS,519
Tunbridge Wells Borough Council,Cultural and Related Services,104,LE,Leisure & Well-being,A-HALL COUNCIL SHOWS,PROMOTION,3450,160301-05 ANNIE,A16C03,30/11/2015,P09_61,15,Revenue,FACEBOOK HYD4X8ENH2,ADVERTISING SERVICES,520
Tunbridge Wells Borough Council,Cultural and Related Services,104,LE,Leisure & Well-being,A-HALL HIRE SHOWS,PROMOTION,3450,151129 SAS BAND,A15Y04,30/11/2015,P09_62,30,Revenue,FACEBOOK TMURT826Z2,ADVERTISING SERVICES,521
Tunbridge Wells Borough Council,Cultural and Related Services,104,LE,Leisure & Well-being,A-HALL HIRE SHOWS,PROMOTION,3450,151115 RTW CHORAL,A15Y05,30/11/2015,P09_63,20,Revenue,FACEBOOK TMURT826Z2,ADVERTISING SERVICES,522
Tunbridge Wells Borough Council,Environmental and regulatory services ,105,EN,Environment & Street Scene,CLEANER BOROUGH,UNIFORMS & PROTECTIVE CLOTHING,3100,-,-,01/12/2015,P09_47,349.98,Revenue,CURRYS,ELECTRONIC SALES,523
Tunbridge Wells Borough Council,Cultural and Related Services,104,LE,Leisure & Well-being,TW ICE RINK,EQUIPMENT PURCHASE/MTCE,3000,-,-,02/12/2015,P09_48,53,Revenue,PAYPAL *WINDSOCKCO,BUSINESS SERVICES NOT ELSEWHERE CLASSIFIED,524
Tunbridge Wells Borough Council,Central Services,102,FI,Finance & Local Goverance,REVS & BENS ADMINISTRATION,COURT FEES,3263,-,-,02/12/2015,P09_81,50,Revenue,COUNTY COURT,FINES,525
Tunbridge Wells Borough Council,Central Services,102,FI,Finance & Local Goverance,REVS & BENS ADMINISTRATION,COURT FEES,3263,-,-,02/12/2015,P09_82,50,Revenue,COUNTY COURT,FINES,526
Tunbridge Wells Borough Council,Housing Services,108,HO,Housing Services & Health,HOUSING NEEDS SERVICE,EQUIPMENT PURCHASE/MTCE,3000,-,-,11/09/2015,P06_01,9.09,Revenue,HOMEBASE LTD 071,LUMBER AND BUILDING MATERIALS STORES,527
Tunbridge Wells Borough Council,Housing Services,108,HO,Housing Services & Health,TEMPORARY ACCOMMODATION,GAS,2120,-,-,01/10/2015,P07_06,14.29,Revenue,CO-OP GROUP 540071,GROCERY STORES  SUPERMARKETS,528
Tunbridge Wells Borough Council,Housing Services,108,HO,Housing Services & Health,HOUSING NEEDS SERVICE,HOMELESSNESS EXPENSES,3912,-,-,15/01/2016,P10_04,10,Revenue,EASISTORE (TUNBRIDGE),"Public Warehousing, Farm, & Household Goods",529
Tunbridge Wells Borough Council,Housing Services,108,HO,Housing Services & Health,TN2 COMMUNITY CENTRE,PROJECTS & INITIATIVES,3910,-,-,11/09/2015,P06_27,3.95,Revenue,HOMEBASE LTD 071,LUMBER AND BUILDING MATERIALS STORES,530
Tunbridge Wells Borough Council,Cultural and Related Services,104,LE,Leisure & Well-being,TW ICE RINK,PROMOTION,3450,-,-,01/10/2015,P07_17,1.78,Revenue,FOREIGN EXCHANGE FEE,0,531
Tunbridge Wells Borough Council,Housing Services,108,HO,Housing Services & Health,HOUSING NEEDS SERVICE,HOMELESSNESS EXPENSES,3912,-,-,15/01/2016,P10_08,198,Revenue,EASISTORE (TUNBRIDGE),"Public Warehousing, Farm, & Household Goods",532
Tunbridge Wells Borough Council,Cultural and Related Services,104,LE,Leisure & Well-being,A-HALL TECH OPS,EQUIPMENT PURCHASE/MTCE,3000,-,-,11/09/2015,P06_54,4.75,Revenue,HOMEBASE LTD 071,LUMBER AND BUILDING MATERIALS STORES,533
Tunbridge Wells Borough Council,Cultural and Related Services,104,LE,Leisure & Well-being,A-HALL TECH OPS,EQUIPMENT PURCHASE/MTCE,3000,-,-,01/10/2015,P07_19,10.82,Revenue,FOREIGN EXCHANGE FEE,0,534
Tunbridge Wells Borough Council,Housing Services,108,HO,Housing Services & Health,HOUSING NEEDS SERVICE,HOMELESSNESS EXPENSES,3912,-,-,26/10/2015,P08_05,22.2,Revenue,BBSC TONBRIDGE LTD,PUBLIC WAREHOUSING-FARM PROD REFRIGERATE,535
Tunbridge Wells Borough Council,Cultural and Related Services,104,LE,Leisure & Well-being,A-HALL MARKETING,PROMOTION,3450,-,-,15/01/2016,P10_29,104.73,Revenue,MAILCHIMP,Other Business Services,536
Tunbridge Wells Borough Council,Housing Services,108,HO,Housing Services & Health,HOUSING NEEDS SERVICE,HOMELESSNESS EXPENSES,3912,-,-,18/01/2016,P10_01,22.2,Revenue,BBSC TON LIMITED,"Public Warehousing, Farm, & Household Goods",537
Tunbridge Wells Borough Council,Housing Services,108,HO,Housing Services & Health,HOUSING NEEDS SERVICE,HOMELESSNESS EXPENSES,3912,-,-,18/01/2016,P10_06,130.9,Revenue,BBSC TON LIMITED,"Public Warehousing, Farm, & Household Goods",538
Tunbridge Wells Borough Council,Cultural and Related Services,104,LE,Leisure & Well-being,A-HALL MARKETING,PROMOTION,3450,-,-,18/01/2016,P10_28,2.88,Revenue,FOREIGN EXCHANGE FEE,0,539
Tunbridge Wells Borough Council,Cultural and Related Services,104,LE,Leisure & Well-being,A-HALL FRONT OF HOUSE,EQUIPMENT PURCHASE/MTCE,3000,-,-,18/01/2016,P10_32,32.5,Revenue,WILKO.COM,Household Appliance Stores,540
Tunbridge Wells Borough Council,Cultural and Related Services,104,LE,Leisure & Well-being,TW ICE RINK,EQUIPMENT PURCHASE/MTCE,3000,-,-,19/01/2016,P10_17,4.78,Revenue,BOOKER LIMITED TUNBRIDGE,Caterers,541
Tunbridge Wells Borough Council,Cultural and Related Services,104,LE,Leisure & Well-being,A-HALL FRONT OF HOUSE,CONSUMABLES & MATERIALS,3060,-,-,19/01/2016,P10_33,2.19,Revenue,BOOKER LIMITED TUNBRIDGE,Caterers,542
Tunbridge Wells Borough Council,Cultural and Related Services,104,LE,Leisure & Well-being,A-HALL FRONT OF HOUSE,COGS -FOOD,3090,-,-,19/01/2016,P10_34,7.12,Revenue,BOOKER LIMITED TUNBRIDGE,Caterers,543
Tunbridge Wells Borough Council,Cultural and Related Services,104,LE,Leisure & Well-being,A-HALL FRONT OF HOUSE,COGS - DRINK,3091,-,-,19/01/2016,P10_35,56.69,Revenue,BOOKER LIMITED TUNBRIDGE,Caterers,544
Tunbridge Wells Borough Council,Cultural and Related Services,104,LE,Leisure & Well-being,A-HALL FRONT OF HOUSE,COGS - DRINK,3091,-,-,19/01/2016,P10_36,41.1,Revenue,BOOKER LIMITED TUNBRIDGE,Caterers,545
Tunbridge Wells Borough Council,Cultural and Related Services,104,LE,Leisure & Well-being,A-HALL FRONT OF HOUSE,COGS - DRINK,3091,-,-,19/01/2016,P10_37,155.43,Revenue,BOOKER LIMITED TUNBRIDGE,Caterers,546
Tunbridge Wells Borough Council,Cultural and Related Services,104,LE,Leisure & Well-being,A-HALL FRONT OF HOUSE,COGS - CONFECTIONERY,3094,-,-,19/01/2016,P10_38,41.22,Revenue,BOOKER LIMITED TUNBRIDGE,Caterers,547
Tunbridge Wells Borough Council,Cultural and Related Services,104,LE,Leisure & Well-being,A-HALL FRONT OF HOUSE,COGS - CONFECTIONERY,3094,-,-,19/01/2016,P10_39,47.74,Revenue,BOOKER LIMITED TUNBRIDGE,Caterers,548
Tunbridge Wells Borough Council,Central Services,102,CH,Chief Executive's Office,MAYORAL,MAYORAL EXPENSES,3690,MISC MAYORAL EXPEN,EV0123,19/01/2016,P10_54,89.56,Revenue,BOOKER LIMITED TUNBRIDGE,Caterers,549
Tunbridge Wells Borough Council,Cultural and Related Services,104,LE,Leisure & Well-being,ASSEMBLY HALL IMPROVEMENTS,"CONSTRUCTION, RENOVATION, ETC",8311,-,-,19/01/2016,P10_63,279.95,Capital,JOHNSTONES DEC CENTRE,"Glass, Paint and Wallpaper Stores",550
Tunbridge Wells Borough Council,Cultural and Related Services,104,LE,Leisure & Well-being,ASSEMBLY HALL IMPROVEMENTS,"CONSTRUCTION, RENOVATION, ETC",8311,-,-,19/01/2016,P10_64,6.86,Capital,JOHNSTONES DEC CENTRE,"Glass, Paint and Wallpaper Stores",551
Tunbridge Wells Borough Council,Housing Services,108,HO,Housing Services & Health,HOUSING NEEDS SERVICE,HOMELESSNESS EXPENSES,3912,-,-,20/01/2016,P10_07,15.2,Revenue,LONDON & SOUTH EAS,Passenger Railways,552
Tunbridge Wells Borough Council,Highways and Transport Services,107,EN,Environment & Street Scene,PARKING ADMIN & ENFORCEMENT,VEHICLE REPAIRS & SUNDRIES,1040,-,-,20/01/2016,P10_43,32.5,Revenue,WWW.DVLA.GOV.UK,Government Services,553
Tunbridge Wells Borough Council,Environmental and regulatory services ,105,EN,Environment & Street Scene,CLEANER BOROUGH,OTHER FEES,3330,-,-,24/08/2015,P05_52,34.56,Revenue,ARGOS RETAIL GROUP,DISCOUNT STORES,554
Tunbridge Wells Borough Council,Housing Services,108,HO,Housing Services & Health,HOUSING NEEDS SERVICE,HOMELESSNESS EXPENSES,3912,-,-,21/01/2016,P10_05,345,Revenue,BELVOIR LETTINGS TUNBR,Real Estate Managers - Rentals,555
Tunbridge Wells Borough Council,Central Services,102,CO,Communications,COMMUNICATIONS AND ENGAGEMENT,PROMOTION,3450,-,-,21/01/2016,P10_47,110,Revenue,WWW.GAK.CO.UK,Music Stores & Musical Instruments,556
Tunbridge Wells Borough Council,Central Services,102,CO,Communications,COMMUNICATIONS AND ENGAGEMENT,PROMOTION,3450,-,-,21/01/2016,P10_48,459.98,Revenue,EGLOBALCENTRAL.UK,Household Appliance Stores,557
Tunbridge Wells Borough Council,Central Services,102,PL,Planning Services,D OF PLANNING & DEVELOPMENT,HOSPITALITY,3720,-,-,21/01/2016,P10_56,31,Revenue,M&S E COMMERCE,Grocery Stores and Supermarkets,558
Tunbridge Wells Borough Council,Cultural and Related Services,104,LE,Leisure & Well-being,A-HALL MANAGEMENT,EXTERNAL TRAINING,204,-,-,22/01/2016,P10_23,62.5,Revenue,EGYPT MILL HOTEL,"Hotels, Motels, Resorts",559
Tunbridge Wells Borough Council,Central Services,102,CH,Chief Executive's Office,MAYORAL,MAYORAL EXPENSES,3690,MISC MAYORAL EXPEN,EV0123,22/01/2016,P10_55,20,Revenue,W M MORRISON PLC,Grocery Stores and Supermarkets,560
Tunbridge Wells Borough Council,Cultural and Related Services,104,LE,Leisure & Well-being,A-HALL MARKETING,PROMOTION,3450,-,-,24/01/2016,P10_27,26.97,Revenue,FASTHOSTS INTERNET,Computer Network/Information Services,561
Tunbridge Wells Borough Council,Housing Services,108,HO,Housing Services & Health,HOUSING NEEDS SERVICE,HOMELESSNESS EXPENSES,3912,-,-,25/01/2016,P11_08,12.33,Revenue,ALLPAY MOTO (CALLPAY/IVR,"Organizations, Charitable and Social Service",562
Tunbridge Wells Borough Council,Housing Services,108,HO,Housing Services & Health,HOUSING NEEDS SERVICE,HOMELESSNESS EXPENSES,3912,-,-,26/01/2016,P11_03,3.75,Revenue,MALTBYS,Real Estate Managers - Rentals,563
Tunbridge Wells Borough Council,Housing Services,108,HO,Housing Services & Health,HOUSING NEEDS SERVICE,HOMELESSNESS EXPENSES,3912,-,-,26/01/2016,P11_07,125,Revenue,MALTBYS,Real Estate Managers - Rentals,564
Tunbridge Wells Borough Council,Housing Services,108,HO,Housing Services & Health,PRIVATE SECTOR HOUSING,HOSPITALITY,3720,-,-,26/01/2016,P11_16,14.41,Revenue,MARKS & SPENCER,Grocery Stores and Supermarkets,565
Tunbridge Wells Borough Council,Cultural and Related Services,104,LE,Leisure & Well-being,A-HALL HIRE SHOWS,PROMOTION,3450,160127 TWBC LAUNCH TOGETHER,A16N05,26/01/2016,P11_40,8,Revenue,MARKS & SPENCER,Grocery Stores and Supermarkets,566
Tunbridge Wells Borough Council,Central Services,102,CH,Chief Executive's Office,MAYORAL,MAYORAL EXPENSES,3690,MISC MAYORAL EXPEN,EV0123,26/01/2016,P11_61,23.3,Revenue,J W PLANT & CO LIMITED,Other Business Services,567
Tunbridge Wells Borough Council,Central Services,102,CO,Communications,PUBLICATIONS,STATIONERY,3160,-,-,26/01/2016,P11_67,-8.49,Revenue,MEDISAVE,Dental/Laboratory/Medical Equipment & Supplies,568
Tunbridge Wells Borough Council,Environmental and regulatory services ,105,EN,Environment & Street Scene,FOOD & COMMERCIAL,EQUIPMENT PURCHASE/MTCE,3000,-,-,27/01/2016,P11_22,48.9,Revenue,AMAZON UK RETAIL,Other Direct Marketing-Other Direct Marketers,569
Tunbridge Wells Borough Council,Environmental and regulatory services ,105,EN,Environment & Street Scene,FOOD & COMMERCIAL,EQUIPMENT PURCHASE/MTCE,3000,-,-,27/01/2016,P11_23,54.97,Revenue,AMAZON UK RETAIL,Other Direct Marketing-Other Direct Marketers,570
Tunbridge Wells Borough Council,Planning Services,110,EC,Economic Development & Regeneration,ECONOMIC DEVELOPMENT,PROJECTS & INITIATIVES,3910,-,-,27/01/2016,P11_57,60.82,Revenue,WWW.INSTANTPRINT.C,"Quick Copy, Reproduction, and Blueprinting Service",571
Tunbridge Wells Borough Council,Central Services,102,BU,Business Transformation & Delivery,JOINT KENT CHANNEL MIGRATION,IT SOFTWARE,3590,-,-,16/12/2015,P09_92,24.99,Revenue,EASILY LTD,MANAGEMENT  CONSULTING AND PUBLIC RELATIONS SERVICES,572
Tunbridge Wells Borough Council,Central Services,102,CH,Chief Executive's Office,MAYORAL,MAYORAL EXPENSES,3690,MISC MAYORAL EXPEN,EV0123,28/01/2016,P11_60,5,Revenue,BURRSWOOD LTD,"Books, Periodicals and Newspapers",573
Tunbridge Wells Borough Council,Central Services,102,FI,Finance & Local Goverance,REVS & BENS ADMINISTRATION,COURT FEES,3263,-,-,29/01/2016,P11_50,100,Revenue,COUNTY COURT,Fines,574
Tunbridge Wells Borough Council,Central Services,102,FI,Finance & Local Goverance,REVS & BENS ADMINISTRATION,COURT FEES,3263,-,-,29/01/2016,P11_51,100,Revenue,COUNTY COURT,Fines,575
Tunbridge Wells Borough Council,Central Services,102,FI,Finance & Local Goverance,REVS & BENS ADMINISTRATION,COURT FEES,3263,-,-,29/01/2016,P11_52,100,Revenue,COUNTY COURT,Fines,576
Tunbridge Wells Borough Council,Central Services,102,CH,Chief Executive's Office,MAYORAL,FUEL & OIL,1010,-,-,30/01/2016,P11_59,19.05,Revenue,CO-OP GROUP PETROL,Service Stations,577
Tunbridge Wells Borough Council,Cultural and Related Services,104,LE,Leisure & Well-being,A-HALL MARKETING,PROMOTION,3450,-,-,31/01/2016,P11_37,19.99,Revenue,FACEBOOK XEQU4926Z2,Advertising Services,578
Tunbridge Wells Borough Council,Cultural and Related Services,104,LE,Leisure & Well-being,A-HALL COUNCIL SHOWS,PROMOTION,3450,160205 STEWART LEE,A16B05,31/01/2016,P11_39,29.62,Revenue,FACEBOOK XEQU4926Z2,Advertising Services,579
Tunbridge Wells Borough Council,Cultural and Related Services,104,LE,Leisure & Well-being,A-HALL MANAGEMENT,BOOKS & PUBLICATIONS,3190,-,-,01/02/2016,P11_31,155,Revenue,HPSL/CDS,Miscellaneous Publishing and Printing,580
Tunbridge Wells Borough Council,Cultural and Related Services,104,LE,Leisure & Well-being,A-HALL MANAGEMENT,SUBS TO ORGANISATIONS,3730,-,-,01/02/2016,P11_33,130,Revenue,THE ASSOCIATION OF BRI,Other Services,581
Tunbridge Wells Borough Council,Planning Services,110,PL,Planning Services,BUILDING CONTROL,WORKS IN DEFAULT - COSTS,3801,-,-,01/02/2016,P11_44,150,Revenue,WWW.LABC.UK.COM,Other Business Services,582
Tunbridge Wells Borough Council,Cultural and Related Services,104,LE,Leisure & Well-being,A-HALL MARKETING,PROMOTION,3450,-,-,02/02/2016,P11_36,3.3,Revenue,GOOGLE *SVCSAPPS_ASSEM,Direct Marketing Continuity Subscription Merchants,583
Tunbridge Wells Borough Council,Central Services,102,FI,Finance & Local Goverance,EXCHEQUER SERVICES,QUALIFICATIONS TRAINING,207,-,-,02/02/2016,P11_53,1194,Revenue,WWW.PAYROLLPROFESSION.,Professional Services,584
Tunbridge Wells Borough Council,Cultural and Related Services,104,LE,Leisure & Well-being,A-HALL MKTG & SALES,PROMOTION,3450,-,-,01/10/2015,P07_21,2.68,Revenue,FOREIGN EXCHANGE FEE,0,585
Tunbridge Wells Borough Council,Central Services,102,BU,Business Transformation & Delivery,JOINT KENT CHANNEL MIGRATION,IT SOFTWARE,3590,-,-,16/12/2015,P09_93,13.98,Revenue,EASILY LTD,MANAGEMENT  CONSULTING AND PUBLIC RELATIONS SERVICES,586
Tunbridge Wells Borough Council,Cultural and Related Services,104,LE,Leisure & Well-being,A-HALL FRONT OF HOUSE,COGS -FOOD,3090,-,-,11/09/2015,P06_63,50.75,Revenue,SAINSBURY'S S/MKT,GROCERY STORES  SUPERMARKETS,587
Tunbridge Wells Borough Council,Housing Services,108,HO,Housing Services & Health,HOUSING NEEDS SERVICE,HOMELESSNESS EXPENSES,3912,-,-,02/10/2015,P07_01,15.1,Revenue,LONDON & SOUTH EAS,PASSENGER RAILWAYS,588
Tunbridge Wells Borough Council,Housing Services,108,HO,Housing Services & Health,HOUSING NEEDS SERVICE,HOMELESSNESS EXPENSES,3912,-,-,26/10/2015,P08_06,130.9,Revenue,BBSC TONBRIDGE LTD,PUBLIC WAREHOUSING-FARM PROD REFRIGERATE,589
Tunbridge Wells Borough Council,Cultural and Related Services,104,LE,Leisure & Well-being,ASSEMBLY HALL IMPROVEMENTS,AQUISITION,8305,-,-,11/09/2015,P06_81,160,Capital,ASTROFLAME (FIRESEALS),BUSINESS SERVICES NOT ELSEWHERE CLASSIFIED,590
Tunbridge Wells Borough Council,Housing Services,108,HO,Housing Services & Health,HOUSING NEEDS SERVICE,HOMELESSNESS EXPENSES,3912,-,-,02/10/2015,P07_03,30.2,Revenue,LONDON & SOUTH EAS,PASSENGER RAILWAYS,591
Tunbridge Wells Borough Council,Housing Services,108,HO,Housing Services & Health,HOUSING NEEDS SERVICE,HOMELESSNESS EXPENSES,3912,-,-,26/10/2015,P08_09,73.78,Revenue,BBSC TONBRIDGE LTD,PUBLIC WAREHOUSING-FARM PROD REFRIGERATE,592
Tunbridge Wells Borough Council,Housing Services,108,HO,Housing Services & Health,TN2 COMMUNITY CENTRE,PROJECTS & INITIATIVES,3910,-,-,12/09/2015,P06_24,38.83,Revenue,99P STORES LTD,GROCERY STORES  SUPERMARKETS,593
Tunbridge Wells Borough Council,Central Services,102,FI,Finance & Local Goverance,REVS & BENS ADMINISTRATION,COURT FEES,3263,-,-,14/09/2015,P06_02,366,Revenue,HMCOURTS-SERVICE.G,FINES,594
Tunbridge Wells Borough Council,Housing Services,108,HO,Housing Services & Health,TN2 COMMUNITY CENTRE,PROJECTS & INITIATIVES,3910,-,-,14/09/2015,P06_28,47.49,Revenue,ARGOS LTD,DISCOUNT STORES,595
Tunbridge Wells Borough Council,Cultural and Related Services,104,LE,Leisure & Well-being,A-HALL MKTG & SALES,PROMOTION,3450,-,-,15/09/2015,P06_57,100.11,Revenue,MAILCHIMP,BUSINESS SERVICES NOT ELSEWHERE CLASSIFIED,596
Tunbridge Wells Borough Council,Central Services,102,GA,Gateway,GATEWAY,EQUIPMENT PURCHASE/MTCE,3000,GATEWAY IMPROVEMENTS,EV0345,16/09/2015,P06_74,143,Revenue,INSTITUTE OF CUSTOMER,PROFESSIONAL SERVICES NOT ELSEWHERE CLASSIFIED,597
Tunbridge Wells Borough Council,Environmental and regulatory services ,105,EN,Environment & Street Scene,CLEANER BOROUGH,EQUIPMENT PURCHASE/MTCE,3000,-,-,18/09/2015,P06_36,143.33,Revenue,CURRYS ONLINE,ELECTRONIC SALES,598
Tunbridge Wells Borough Council,Cultural and Related Services,104,LE,Leisure & Well-being,TW ICE RINK,PROMOTION,3450,-,-,21/09/2015,P06_37,66.27,Revenue,TINT - TINTUP.COM,COMPUTER AND DATA PROCESSING SERVICES,599
Tunbridge Wells Borough Council,Housing Services,108,HO,Housing Services & Health,TN2 COMMUNITY CENTRE,EQUIPMENT PURCHASE/MTCE,3000,-,-,22/09/2015,P06_17,309,Revenue,WWW.SPORTSEQUIP.CO.UK,SPORTING GOODS STORES,600
Tunbridge Wells Borough Council,Cultural and Related Services,104,LE,Leisure & Well-being,ASSEMBLY HALL IMPROVEMENTS,FURNITURE AND EQUIPMENT,8326,-,-,22/09/2015,P06_84,48.25,Capital,WWW.HIFI-TOWER.CO.UK,BUSINESS SERVICES NOT ELSEWHERE CLASSIFIED,601
Tunbridge Wells Borough Council,Cultural and Related Services,104,LE,Leisure & Well-being,ASSEMBLY HALL IMPROVEMENTS,FURNITURE AND EQUIPMENT,8326,-,-,22/09/2015,P06_85,44.25,Capital,WWW.DOTCOMGIFTSHOP,GIFT  CARD  NOVELTY  AND SOUVENIR SHOPS,602
Tunbridge Wells Borough Council,Housing Services,108,HO,Housing Services & Health,HOUSING NEEDS SERVICE,HOMELESSNESS EXPENSES,3912,-,-,23/09/2015,P06_07,204.33,Revenue,BIG YELLOW BOX & LOCK,PUBLIC WAREHOUSING-FARM PROD REFRIGERATE,603
Tunbridge Wells Borough Council,Cultural and Related Services,104,LE,Leisure & Well-being,A-HALL FRONT OF HOUSE,CONSUMABLES & MATERIALS,3060,-,-,23/09/2015,P06_62,8.25,Revenue,COLEMANS ABC LTD,WHOLESALE CLUBS,604
Tunbridge Wells Borough Council,Environmental and regulatory services ,105,EN,Environment & Street Scene,FOOD & COMMERCIAL,EQUIPMENT PURCHASE/MTCE,3000,-,-,24/09/2015,P06_34,17.5,Revenue,AMAZON UK RETAIL,ALL OTHER DIRECT MARKETERS,605
Tunbridge Wells Borough Council,Cultural and Related Services,104,CO,Community & Corporate Planning,MUSEUM & ART GALLERY,EQUIPMENT PURCHASE/MTCE,3000,-,-,24/09/2015,P06_38,40,Revenue,AMAZON UK RETAIL,ALL OTHER DIRECT MARKETERS,606
Tunbridge Wells Borough Council,Cultural and Related Services,104,LE,Leisure & Well-being,A-HALL MKTG & SALES,PROMOTION,3450,-,-,24/09/2015,P06_56,6.13,Revenue,AMAZON UK RETAIL,ALL OTHER DIRECT MARKETERS,607
Tunbridge Wells Borough Council,Central Services,102,HR,Human Resources,HUMAN RESOURCES,STAFF CONFERENCES,208,-,-,25/09/2015,P06_69,139.24,Revenue,WWW.ACORNE.CO.UK EXP,GIFT  CARD  NOVELTY  AND SOUVENIR SHOPS,608
Tunbridge Wells Borough Council,Cultural and Related Services,104,LE,Leisure & Well-being,A-HALL MANAGEMENT,SUBS TO ORGANISATIONS,3730,-,-,25/09/2015,P07_18,17.33,Revenue,TIMES NEWSPAPERS LTD,BOOKS PERIODICALS AND NEWSPAPERS,609
Tunbridge Wells Borough Council,Central Services,102,CU,Customer Access,TOWN HALL,FURNITURE COSTS,3020,PROPERTY RECEPTION,PH0601,24/08/2015,P05_63,86.67,Revenue,ARGOS RETAIL GROUP,DISCOUNT STORES,610
Tunbridge Wells Borough Council,Housing Services,108,HO,Housing Services & Health,TEMPORARY ACCOMMODATION,GAS,2120,-,-,17/12/2015,P09_25,14.29,Revenue,ONE STOP 1402,GROCERY STORES  SUPERMARKETS,611
Tunbridge Wells Borough Council,Housing Services,108,HO,Housing Services & Health,HOUSING NEEDS SERVICE,HOMELESSNESS EXPENSES,3912,-,-,26/09/2015,P06_06,37.5,Revenue,STREAMLINE A/C LEVY,TAXICABS/LIMOUSINES,612
Tunbridge Wells Borough Council,Central Services,102,CH,Chief Executive's Office,MAYORAL,MAYORAL EXPENSES,3690,MISC MAYORAL EXPEN,EV0123,26/09/2015,P06_70,24.99,Revenue,TIMPSON LTD,SHOE REPAIR SHOPS  SHOE SHINE PARLORS & HAT CLEANING SHOPS,613
Tunbridge Wells Borough Council,Central Services,102,BU,Business Transformation & Delivery,JOINT KENT CHANNEL MIGRATION,PROMOTION,3450,-,-,29/09/2015,P07_42,119,Revenue,WWW/REED.CO.UK,BUSINESS AND SECRETARIAL SCHOOLS,614
Tunbridge Wells Borough Council,Cultural and Related Services,104,LE,Leisure & Well-being,A-HALL TECH OPS,EQUIPMENT PURCHASE/MTCE,3000,-,-,30/09/2015,P07_20,393.36,Revenue,RATIONAL ACOUSTICS,COMPUTER AND DATA PROCESSING SERVICES,615
Tunbridge Wells Borough Council,Cultural and Related Services,104,LE,Leisure & Well-being,A-HALL COUNCIL SHOWS,PROMOTION,3450,150919 THANKYOU FOR THE MUSIC,A15J03,30/09/2015,P07_24,30,Revenue,FACEBOOK XL7TH8A6Z2,ADVERTISING SERVICES,616
Tunbridge Wells Borough Council,Cultural and Related Services,104,LE,Leisure & Well-being,A-HALL COUNCIL SHOWS,PROMOTION,3450,151001 MAGIC OF MOTOWN,A15K01,30/09/2015,P07_25,50,Revenue,FACEBOOK XL7TH8A6Z2,ADVERTISING SERVICES,617
Tunbridge Wells Borough Council,Cultural and Related Services,104,LE,Leisure & Well-being,A-HALL MKTG & SALES,PROMOTION,3450,-,-,02/10/2015,P07_22,3.3,Revenue,GOOGLE *SVCSAPPS_ASSEM,CONTINUITY/SUBSCRIPTION MERCHANTS,618
Tunbridge Wells Borough Council,Housing Services,108,HO,Housing Services & Health,TEMPORARY ACCOMMODATION,ELECTRICITY,2140,-,-,17/12/2015,P09_30,14.29,Revenue,ONE STOP 1402,GROCERY STORES  SUPERMARKETS,619
Tunbridge Wells Borough Council,Housing Services,108,HO,Housing Services & Health,HOUSING NEEDS SERVICE,HOMELESSNESS EXPENSES,3912,-,-,26/10/2015,P08_10,14.8,Revenue,ALLPAY.NET VISA AND MAST,CHARITABLE AND SOCIAL SERVICE ORGANIZATIONS,620
Tunbridge Wells Borough Council,Central Services,102,HR,Human Resources,HUMAN RESOURCES,STAFF CONFERENCES,208,-,-,02/10/2015,P07_30,72.2,Revenue,WWW.ACORNE.CO.UK EXP,GIFT  CARD  NOVELTY  AND SOUVENIR SHOPS,621
Tunbridge Wells Borough Council,Cultural and Related Services,104,LE,Leisure & Well-being,A-HALL MANAGEMENT,EXTERNAL TRAINING,204,-,-,17/12/2015,P09_54,600,Revenue,GUARDIAN NEWS & MEDIA,MISCELLANEOUS PUBLISHING & PRINTING,622
Tunbridge Wells Borough Council,Central Services,102,HR,Human Resources,HUMAN RESOURCES,HOSPITALITY,3720,-,-,28/10/2015,P08_63,45,Revenue,M&S E COMMERCE,GROCERY STORES  SUPERMARKETS,623
Tunbridge Wells Borough Council,Central Services,102,HR,Human Resources,HUMAN RESOURCES,STAFF CONFERENCES,208,-,-,02/10/2015,P07_31,90,Revenue,R H & D R,RAILROADS-FREIGHT,624
Tunbridge Wells Borough Council,Cultural and Related Services,104,LE,Leisure & Well-being,A-HALL MANAGEMENT,PROJECTS & INITIATIVES,3910,-,-,17/12/2015,P09_57,48,Revenue,WWW.STAGSEVENOAKS.CO.U,THEATRICAL PRODUCERS (EXCEPT MOTION PICTURES)  TICKET AGENCIES,625
Tunbridge Wells Borough Council,Central Services,102,CH,Chief Executive's Office,MAYORAL,MAYORAL EXPENSES,3690,MISC MAYORAL EXPEN,EV0123,28/10/2015,P08_65,2.87,Revenue,W M MORRISON PLC,GROCERY STORES  SUPERMARKETS,626
Tunbridge Wells Borough Council,Central Services,102,HR,Human Resources,STAFF WELFARE,OTHER FEES,3330,Social Society Club,EV1006,05/10/2015,P07_32,75,Revenue,WWW.YOURDESIGN.CO.UK,MISCELLANEOUS PUBLISHING & PRINTING,627
Tunbridge Wells Borough Council,Highways and Transport Services,107,EN,Environment & Street Scene,PARKING ADMIN & ENFORCEMENT,VEHICLE REPAIRS & SUNDRIES,1040,-,-,18/12/2015,P09_77,250,Revenue,NCRC,AUTOMOTIVE BODY REPAIR SHOPS,628
Tunbridge Wells Borough Council,Central Services,102,CH,Chief Executive's Office,MAYORAL,MAYORAL EXPENSES,3690,MISC MAYORAL EXPEN,EV0123,28/10/2015,P08_66,1.05,Revenue,W M MORRISON PLC,GROCERY STORES  SUPERMARKETS,629
Tunbridge Wells Borough Council,Central Services,102,HR,Human Resources,STAFF WELFARE,OTHER FEES,3330,Social Society Club,EV1006,05/10/2015,P07_33,137.5,Revenue,SNAPPY SNAPS TUNBRIDGE,PHOTOFINISHING LABORATORIES  PHOTO DEVELOPING,630
Tunbridge Wells Borough Council,Environmental and regulatory services ,105,EN,Environment & Street Scene,ENVIRONMENTAL PROTECTION,EQUIPMENT PURCHASE/MTCE,3000,-,-,06/10/2015,P07_11,3.07,Revenue,AMAZON SVCS EUROPE SAR,BOOK STORES,631
Tunbridge Wells Borough Council,Cultural and Related Services,104,LE,Leisure & Well-being,A-HALL COUNCIL SHOWS,PROMOTION,3450,151012-17 AND THEN THERE WERE,A15K11,06/10/2015,P07_26,39.03,Revenue,WM MORRISONS STORE,GROCERY STORES  SUPERMARKETS,632
Tunbridge Wells Borough Council,Central Services,102,CO,Communications,COMMUNICATIONS AND ENGAGEMENT,PROJECTS & INITIATIVES,3910,LOVE WHERE WE LIVE CAMPAIGN,EV0072,06/10/2015,P07_36,267.66,Revenue,WM MORRISONS STORE,GROCERY STORES  SUPERMARKETS,633
Tunbridge Wells Borough Council,Central Services,102,CO,Communications,COMMUNICATIONS AND ENGAGEMENT,PROJECTS & INITIATIVES,3910,LOVE WHERE WE LIVE CAMPAIGN,EV0072,06/10/2015,P07_38,140,Revenue,BOOTS,DRUG STORES  PHARMACIES,634
Tunbridge Wells Borough Council,Environmental and regulatory services ,105,EN,Environment & Street Scene,ENVIRONMENTAL PROTECTION,EQUIPMENT PURCHASE/MTCE,3000,-,-,07/10/2015,P07_10,5.24,Revenue,AMAZON UK MARKETPLACE,MISCELLANEOUS AND RETAIL STORES,635
Tunbridge Wells Borough Council,Central Services,102,HR,Human Resources,STAFF WELFARE,OTHER FEES,3330,Social Society Club,EV1006,07/10/2015,P07_34,6.74,Revenue,AMAZON UK MARKETPLACE,MISCELLANEOUS AND RETAIL STORES,636
Tunbridge Wells Borough Council,Central Services,102,HR,Human Resources,STAFF WELFARE,OTHER FEES,3330,Social Society Club,EV1006,07/10/2015,P07_35,22.48,Revenue,AMAZON UK MARKETPLACE,MISCELLANEOUS AND RETAIL STORES,637
Tunbridge Wells Borough Council,Central Services,102,CO,Communications,COMMUNICATIONS AND ENGAGEMENT,PROJECTS & INITIATIVES,3910,LOVE WHERE WE LIVE CAMPAIGN,EV0072,07/10/2015,P07_37,41.67,Revenue,MRS FLORIST LONDON (RE,FLORISTS,638
Tunbridge Wells Borough Council,Planning Services,110,CO,Communications,ACCESS TO INFORMATION,PROJECTS & INITIATIVES,3910,-,-,07/10/2015,P07_39,51.69,Revenue,AMAZON UK RETAIL,ALL OTHER DIRECT MARKETERS,639
Tunbridge Wells Borough Council,Central Services,102,GA,Gateway,GATEWAY,EQUIPMENT PURCHASE/MTCE,3000,GATEWAY,EV0340,07/10/2015,P07_43,18.16,Revenue,AMAZON UK MARKETPLACE,MISCELLANEOUS AND RETAIL STORES,640
Tunbridge Wells Borough Council,Central Services,102,GA,Gateway,GATEWAY,EQUIPMENT PURCHASE/MTCE,3000,CALL CENTRE,EV0341,07/10/2015,P07_44,20.82,Revenue,AMAZON UK MARKETPLACE,MISCELLANEOUS AND RETAIL STORES,641
Tunbridge Wells Borough Council,Central Services,102,GA,Gateway,GATEWAY,EQUIPMENT PURCHASE/MTCE,3000,CALL CENTRE,EV0341,07/10/2015,P07_45,4.16,Revenue,AMAZON UK MARKETPLACE,MISCELLANEOUS AND RETAIL STORES,642
Tunbridge Wells Borough Council,Central Services,102,GA,Gateway,GATEWAY,EQUIPMENT PURCHASE/MTCE,3000,CALL CENTRE,EV0341,07/10/2015,P07_46,43.32,Revenue,AMAZON UK MARKETPLACE,MISCELLANEOUS AND RETAIL STORES,643
Tunbridge Wells Borough Council,Central Services,102,GA,Gateway,GATEWAY,EQUIPMENT PURCHASE/MTCE,3000,CALL CENTRE,EV0341,07/10/2015,P07_47,220.26,Revenue,AMAZON UK RETAIL,ALL OTHER DIRECT MARKETERS,644
Tunbridge Wells Borough Council,Central Services,102,GA,Gateway,GATEWAY,EQUIPMENT PURCHASE/MTCE,3000,CALL CENTRE,EV0341,07/10/2015,P07_48,249.17,Revenue,AMAZON UK RETAIL,ALL OTHER DIRECT MARKETERS,645
Tunbridge Wells Borough Council,Central Services,102,CH,Chief Executive's Office,MAYORAL,ROOM HIRE,3960,MISC MAYORAL EXPEN,EV0123,10/10/2015,P07_40,11.43,Revenue,W M MORRISON PLC,GROCERY STORES  SUPERMARKETS,646
Tunbridge Wells Borough Council,Housing Services,108,HO,Housing Services & Health,TN2 COMMUNITY CENTRE,CLEANING SUPPLIES,2500,-,-,12/10/2015,P07_08,47.58,Revenue,BOOKERECOMM,CATERERS,647
Tunbridge Wells Borough Council,Housing Services,108,HO,Housing Services & Health,TN2 COMMUNITY CENTRE,CONSUMABLES & MATERIALS,3060,-,-,12/10/2015,P07_09,9.99,Revenue,BOOKERECOMM,CATERERS,648
Tunbridge Wells Borough Council,Central Services,102,CH,Chief Executive's Office,MAYORAL,ROOM HIRE,3960,MISC MAYORAL EXPEN,EV0123,12/10/2015,P07_41,21.8,Revenue,BOOKER LIMITED TUNBRIDGE,CATERERS,649
Tunbridge Wells Borough Council,Central Services,102,FI,Finance & Local Goverance,REVS & BENS ADMINISTRATION,COURT FEES,3263,-,-,12/10/2015,P07_52,720,Revenue,HMCOURTS-SERVICE.G,FINES,650
Tunbridge Wells Borough Council,Cultural and Related Services,104,LE,Leisure & Well-being,TW ICE RINK,EQUIPMENT PURCHASE/MTCE,3000,-,-,14/10/2015,P07_13,64.16,Revenue,WWW.THEGLOWCOMPANY.CO.UK,GIFT  CARD  NOVELTY  AND SOUVENIR SHOPS,651
Tunbridge Wells Borough Council,Cultural and Related Services,104,LE,Leisure & Well-being,A-HALL MANAGEMENT,HOSPITALITY,3720,-,-,14/10/2015,P07_53,67.82,Revenue,CAU,EATING PLACES  RESTAURANTS,652
Tunbridge Wells Borough Council,Cultural and Related Services,104,LE,Leisure & Well-being,TW ICE RINK,COGS - MERCHANDISE,3097,-,-,15/10/2015,P07_14,260.45,Revenue,A&K HOSIERY LTD,WOMEN'S READY TO WEAR STORES,653
Tunbridge Wells Borough Council,Cultural and Related Services,104,LE,Leisure & Well-being,TW ICE RINK,COGS - MERCHANDISE,3097,-,-,15/10/2015,P07_15,163.55,Revenue,A&K HOSIERY LTD,WOMEN'S READY TO WEAR STORES,654
Tunbridge Wells Borough Council,Cultural and Related Services,104,LE,Leisure & Well-being,A-HALL MKTG & SALES,PROMOTION,3450,-,-,15/10/2015,P07_23,97.42,Revenue,MAILCHIMP,BUSINESS SERVICES NOT ELSEWHERE CLASSIFIED,655
Tunbridge Wells Borough Council,Central Services,102,FI,Finance & Local Goverance,I T SERVICE,SUBS TO ORGANISATIONS,3730,-,-,15/10/2015,P07_49,35,Revenue,WWW.ICO.GOV.UK,GOVERNMENT SERVICES NOT ELSEWHERE CLASSIFIED,656
Tunbridge Wells Borough Council,Central Services,102,FI,Finance & Local Goverance,I T SERVICE,SUBS TO ORGANISATIONS,3730,-,-,15/10/2015,P07_50,500,Revenue,WWW.ICO.GOV.UK,GOVERNMENT SERVICES NOT ELSEWHERE CLASSIFIED,657
Tunbridge Wells Borough Council,Cultural and Related Services,104,LE,Leisure & Well-being,ASSEMBLY HALL IMPROVEMENTS,AQUISITION,8305,-,-,15/10/2015,P07_51,-570,Capital,WEALD WASTE,EQUIP RENTALS & LEASING SERVICES  TOOL RENTAL  FURNITURE RENTAL,658
Tunbridge Wells Borough Council,Central Services,102,FI,Finance & Local Goverance,REVS & BENS ADMINISTRATION,LEGAL FEES,3260,-,-,16/10/2015,P07_27,100,Revenue,COUNTY COURT,FINES,659
Tunbridge Wells Borough Council,Central Services,102,FI,Finance & Local Goverance,REVS & BENS ADMINISTRATION,LAND REGISTRY FEES,3264,-,-,16/10/2015,P07_28,100,Revenue,COUNTY COURT,FINES,660
Tunbridge Wells Borough Council,Cultural and Related Services,104,LE,Leisure & Well-being,TW ICE RINK,PROMOTION,3450,-,-,21/10/2015,P07_16,64.88,Revenue,TINT - TINTUP.COM,COMPUTER AND DATA PROCESSING SERVICES,661
Tunbridge Wells Borough Council,Central Services,102,CH,Chief Executive's Office,CHIEF EXECUTIVE,HOSPITALITY,3720,-,-,21/10/2015,P07_29,134.1,Revenue,GRANGE HOTELS,LODGING  HOTELS  MOTELS  RESORTS,662
Tunbridge Wells Borough Council,Housing Services,108,HO,Housing Services & Health,HOUSING NEEDS SERVICE,HOMELESSNESS EXPENSES,3912,-,-,22/10/2015,P07_04,8.33,Revenue,BIG YELLOW BOX & LOCK,PUBLIC WAREHOUSING-FARM PROD REFRIGERATE,663
Tunbridge Wells Borough Council,Housing Services,108,HO,Housing Services & Health,TEMPORARY ACCOMMODATION,ELECTRICITY,2140,-,-,22/10/2015,P07_07,11.43,Revenue,MARTIN MCCOLL,MISC FOOD STORES-SPECIALITY CONVENIENCE MARKETS VENDING MACHINES,664
Tunbridge Wells Borough Council,Cultural and Related Services,104,CO,Community & Corporate Planning,CAMDEN CENTRE,EQUIPMENT PURCHASE/MTCE,3000,-,-,22/10/2015,P07_12,65.79,Revenue,ARGOS RETAIL GROUP,DISCOUNT STORES,665
Tunbridge Wells Borough Council,Housing Services,108,HO,Housing Services & Health,HOUSING NEEDS SERVICE,HOMELESSNESS EXPENSES,3912,-,-,23/10/2015,P07_02,20.83,Revenue,BBSC TONBRIDGE LTD,PUBLIC WAREHOUSING-FARM PROD REFRIGERATE,666
Tunbridge Wells Borough Council,Cultural and Related Services,104,LE,Leisure & Well-being,A-HALL MANAGEMENT,SUBS TO ORGANISATIONS,3730,-,-,25/10/2015,P08_44,17.33,Revenue,TIMES NEWSPAPERS LTD,BOOKS PERIODICALS AND NEWSPAPERS,667
Tunbridge Wells Borough Council,Housing Services,108,HO,Housing Services & Health,HOUSING NEEDS SERVICE,HOMELESSNESS EXPENSES,3912,-,-,26/10/2015,P08_04,22.2,Revenue,BBSC TONBRIDGE LTD,PUBLIC WAREHOUSING-FARM PROD REFRIGERATE,668
Tunbridge Wells Borough Council,Central Services,102,GA,Gateway,GATEWAY,EQUIPMENT PURCHASE/MTCE,3000,GATEWAY IMPROVEMENTS,EV0345,24/08/2015,P05_78,369.16,Revenue,AO RETAIL LIMITED,HOUSEHOLD APPLIANCE STORES,669
Tunbridge Wells Borough Council,Cultural and Related Services,104,LE,Leisure & Well-being,TW ICE RINK,EQUIPMENT PURCHASE/MTCE,3000,-,-,29/10/2015,P08_25,21.64,Revenue,AMAZON UK RETAIL,ALL OTHER DIRECT MARKETERS,670
Tunbridge Wells Borough Council,Central Services,102,CO,Community & Corporate Planning,D OF CHANGE & COMMUNITIES,BOOKS & PUBLICATIONS,3190,-,-,29/10/2015,P08_67,16.99,Revenue,AMAZON UK RETAIL,ALL OTHER DIRECT MARKETERS,671
Tunbridge Wells Borough Council,Highways and Transport Services,107,EN,Environment & Street Scene,PARKING ADMIN & ENFORCEMENT,VEHICLE REPAIRS & SUNDRIES,1040,-,-,18/12/2015,P09_78,273.34,Revenue,NCRC,AUTOMOTIVE BODY REPAIR SHOPS,672
Tunbridge Wells Borough Council,Central Services,102,CU,Customer Access,TOWN HALL,EQUIPMENT PURCHASE/MTCE,3000,-,-,29/10/2015,P08_70,137.71,Revenue,WWW.ROYALMAIL.COM,POSTAGE STAMPS,673
Tunbridge Wells Borough Council,Housing Services,108,HO,Housing Services & Health,HOUSING NEEDS SERVICE,PROJECTS & INITIATIVES,3910,SYRIAN REFUGESS,EV0587,21/12/2015,P09_09,15.02,Revenue,SPORTSDIRECT 131,SPORTING GOODS STORES,674
Tunbridge Wells Borough Council,Central Services,102,GA,Gateway,GATEWAY,FURNITURE COSTS,3020,GATEWAY IMPROVEMENTS,EV0345,29/10/2015,P08_72,51.67,Revenue,AMAZON UK RETAIL,ALL OTHER DIRECT MARKETERS,675
Tunbridge Wells Borough Council,Cultural and Related Services,104,LE,Leisure & Well-being,TW ICE RINK,PROMOTION,3450,-,-,21/12/2015,P09_49,67.2,Revenue,TINT - TINTUP.COM,COMPUTER AND DATA PROCESSING SERVICES,676
Tunbridge Wells Borough Council,Cultural and Related Services,104,LE,Leisure & Well-being,TW ICE RINK,PROMOTION,3450,-,-,31/10/2015,P08_40,12.97,Revenue,FACEBOOK QWVUH8E5Z2,ADVERTISING SERVICES,677
Tunbridge Wells Borough Council,Central Services,102,CH,Chief Executive's Office,MAYORAL,MAYORAL EXPENSES,3690,MISC MAYORAL EXPEN,EV0123,21/12/2015,P09_89,3.73,Revenue,W M MORRISON PLC,GROCERY STORES  SUPERMARKETS,678
Tunbridge Wells Borough Council,Cultural and Related Services,104,LE,Leisure & Well-being,A-HALL COUNCIL SHOWS,PROMOTION,3450,151009 DIE FLEDERMAUS,A15K02,31/10/2015,P08_52,20,Revenue,FACEBOOK QWVUH8E5Z2,ADVERTISING SERVICES,679
Tunbridge Wells Borough Council,Central Services,102,CH,Chief Executive's Office,MAYORAL,MAYORAL EXPENSES,3690,MISC MAYORAL EXPEN,EV0123,21/12/2015,P09_90,1.5,Revenue,W M MORRISON PLC,GROCERY STORES  SUPERMARKETS,680
Tunbridge Wells Borough Council,Cultural and Related Services,104,LE,Leisure & Well-being,A-HALL COUNCIL SHOWS,PROMOTION,3450,151010 CARMEN,A15K03,31/10/2015,P08_53,20,Revenue,FACEBOOK QWVUH8E5Z2,ADVERTISING SERVICES,681
Tunbridge Wells Borough Council,Cultural and Related Services,104,LE,Leisure & Well-being,A-HALL MANAGEMENT,SUBS TO ORGANISATIONS,3730,-,-,25/12/2015,P10_24,17.33,Revenue,TIMES NEWSPAPERS LTD,"Books, Periodicals and Newspapers",682
Tunbridge Wells Borough Council,Cultural and Related Services,104,LE,Leisure & Well-being,A-HALL COUNCIL SHOWS,PROMOTION,3450,151031WHITNEY QUEEN,A15K12,31/10/2015,P08_54,30,Revenue,FACEBOOK QWVUH8E5Z2,ADVERTISING SERVICES,683
Tunbridge Wells Borough Council,Housing Services,108,HO,Housing Services & Health,HOUSING NEEDS SERVICE,HOMELESSNESS EXPENSES,3912,-,-,28/12/2015,P09_13,22.2,Revenue,BBSC TON LIMITED,PUBLIC WAREHOUSING-FARM PROD REFRIGERATE,684
Tunbridge Wells Borough Council,Housing Services,108,HO,Housing Services & Health,HOUSING NEEDS SERVICE,HOMELESSNESS EXPENSES,3912,-,-,28/12/2015,P09_16,130.9,Revenue,BBSC TON LIMITED,PUBLIC WAREHOUSING-FARM PROD REFRIGERATE,685
Tunbridge Wells Borough Council,Cultural and Related Services,104,LE,Leisure & Well-being,A-HALL TECHNICAL,EQUIPMENT PURCHASE/MTCE,3000,-,-,29/12/2015,P10_25,60.95,Revenue,ARGOS LTD,Discount Stores,686
Tunbridge Wells Borough Council,Cultural and Related Services,104,LE,Leisure & Well-being,A-HALL TECHNICAL,EQUIPMENT PURCHASE/MTCE,3000,-,-,29/12/2015,P10_26,67.28,Revenue,ARGOS LTD,Discount Stores,687
Tunbridge Wells Borough Council,Cultural and Related Services,104,CO,Community & Corporate Planning,MUSEUM & ART GALLERY,PROMOTION,3450,-,-,30/12/2015,P10_21,99.98,Revenue,EASILY LTD,"Consulting, Management, and PR Services",688
Tunbridge Wells Borough Council,Central Services,102,BU,Business Transformation & Delivery,JOINT KENT CHANNEL MIGRATION,IT SOFTWARE,3590,-,-,30/12/2015,P10_57,-13.98,Revenue,EASILY LTD,"Consulting, Management, and PR Services",689
Tunbridge Wells Borough Council,Cultural and Related Services,104,LE,Leisure & Well-being,TW ICE RINK,PROMOTION,3450,-,-,31/12/2015,P10_18,15,Revenue,FACEBOOK JVAPR8E5Z2,Advertising Services,690
Tunbridge Wells Borough Council,Cultural and Related Services,104,LE,Leisure & Well-being,A-HALL MARKETING,PROMOTION,3450,-,-,03/01/2016,P10_30,3.3,Revenue,GOOGLE *SVCSAPPS_ASSEM,Direct Marketing Continuity Subscription Merchants,691
Tunbridge Wells Borough Council,Housing Services,108,HO,Housing Services & Health,TEMPORARY ACCOMMODATION,FURNITURE COSTS,3020,-,-,04/01/2016,P10_14,119.98,Revenue,HOMEBASE LTD,Lumber & Building Materials Stores,692
Tunbridge Wells Borough Council,Cultural and Related Services,104,CO,Community & Corporate Planning,MUSEUM & ART GALLERY,EQUIPMENT PURCHASE/MTCE,3000,-,-,05/01/2016,P10_20,58.98,Revenue,PAPERSTONE,"Office, School Supply, and Stationery Stores",693
Tunbridge Wells Borough Council,Cultural and Related Services,104,LE,Leisure & Well-being,A-HALL COUNCIL SHOWS,EQUIPMENT PURCHASE/MTCE,3000,CINDERELLA 2015,A15M01,06/01/2016,P10_31,62.14,Revenue,WWW.UKPALLETDELIVERY.C,Courier Services,694
Tunbridge Wells Borough Council,Cultural and Related Services,104,LE,Leisure & Well-being,ASSEMBLY HALL IMPROVEMENTS,"CONSTRUCTION, RENOVATION, ETC",8311,-,-,06/01/2016,P10_62,55.55,Capital,WWW.UKPALLETDELIVERY.C,Courier Services,695
Tunbridge Wells Borough Council,Housing Services,108,HO,Housing Services & Health,TEMPORARY ACCOMMODATION,RESPONSIVE REPAIRS BUILDINGS,2020,-,-,07/01/2016,P10_11,4.74,Revenue,HOMEBASE LTD 071,Lumber & Building Materials Stores,696
Tunbridge Wells Borough Council,Housing Services,108,HO,Housing Services & Health,TEMPORARY ACCOMMODATION,RESPONSIVE REPAIRS BUILDINGS,2020,-,-,07/01/2016,P10_12,-1.26,Revenue,HOMEBASE LTD 071,Lumber & Building Materials Stores,697
Tunbridge Wells Borough Council,Housing Services,108,HO,Housing Services & Health,TEMPORARY ACCOMMODATION,RESPONSIVE REPAIRS BUILDINGS,2020,-,-,07/01/2016,P10_13,1.26,Revenue,HOMEBASE LTD 071,Lumber & Building Materials Stores,698
Tunbridge Wells Borough Council,Central Services,102,CH,Chief Executive's Office,CHIEF EXECUTIVE,CONFERENCES/SEMINARS,205,-,-,07/01/2016,P10_46,275,Revenue,WWW.SOLACE.ORG.UK,"Organizations, Membership",699
Tunbridge Wells Borough Council,Cultural and Related Services,104,CO,Community & Corporate Planning,MUSEUM & ART GALLERY,EQUIPMENT PURCHASE/MTCE,3000,-,-,08/01/2016,P10_19,6.58,Revenue,AMAZON UK MARKETPLACE,Miscellaneous and Specialty Retail Stores,700
Tunbridge Wells Borough Council,Cultural and Related Services,104,CO,Community & Corporate Planning,DUNORLAN PARK,GROUND MAINT.infrastructure,2063,-,-,08/01/2016,P10_22,149.93,Revenue,AMAZON UK MARKETPLACE,Miscellaneous and Specialty Retail Stores,701
Tunbridge Wells Borough Council,Planning Services,110,PL,Planning Services,PLANNING POLICY,EQUIPMENT PURCHASE/MTCE,3000,-,-,08/01/2016,P10_40,7.46,Revenue,AMAZON UK MARKETPLACE,Miscellaneous and Specialty Retail Stores,702
Tunbridge Wells Borough Council,Central Services,102,FI,Finance & Local Goverance,ACCOUNTANCY,MOBILE PHONE COSTS,3520,-,-,08/01/2016,P10_45,49.95,Revenue,AMAZON UK MARKETPLACE,Miscellaneous and Specialty Retail Stores,703
Tunbridge Wells Borough Council,Central Services,102,CO,Communications,COMMUNICATIONS AND ENGAGEMENT,PROMOTION,3450,-,-,08/01/2016,P10_49,41.99,Revenue,AMAZON UK MARKETPLACE,Miscellaneous and Specialty Retail Stores,704
Tunbridge Wells Borough Council,Central Services,102,CO,Communications,COMMUNICATIONS AND ENGAGEMENT,PROMOTION,3450,-,-,08/01/2016,P10_50,43.98,Revenue,AMAZON UK MARKETPLACE,Miscellaneous and Specialty Retail Stores,705
Tunbridge Wells Borough Council,Central Services,102,CO,Communications,COMMUNICATIONS AND ENGAGEMENT,PROMOTION,3450,-,-,08/01/2016,P10_51,10.48,Revenue,AMAZON UK MARKETPLACE,Miscellaneous and Specialty Retail Stores,706
Tunbridge Wells Borough Council,Central Services,102,CO,Communications,COMMUNICATIONS AND ENGAGEMENT,PROMOTION,3450,-,-,08/01/2016,P10_52,181.26,Revenue,AMAZON UK MARKETPLACE,Miscellaneous and Specialty Retail Stores,707
Tunbridge Wells Borough Council,Central Services,102,CO,Communications,COMMUNICATIONS AND ENGAGEMENT,PROMOTION,3450,-,-,08/01/2016,P10_53,33.41,Revenue,AMAZON UK MARKETPLACE,Miscellaneous and Specialty Retail Stores,708
Tunbridge Wells Borough Council,Central Services,102,FI,Finance & Local Goverance,I T SERVICE,COMPUTER HARDWARE,3580,HARDWARE REPLACEMENT,EV0324,08/01/2016,P10_59,5.5,Revenue,AMAZON UK MARKETPLACE,Miscellaneous and Specialty Retail Stores,709
Tunbridge Wells Borough Council,Cultural and Related Services,104,LE,Leisure & Well-being,GROSVENOR AND HILBERT PARK,"CONSTRUCTION, RENOVATION, ETC",8311,-,-,08/01/2016,P10_60,95.92,Capital,AMAZON UK MARKETPLACE,Miscellaneous and Specialty Retail Stores,710
Tunbridge Wells Borough Council,Central Services,102,FI,Finance & Local Goverance,DESKTOP UPGRADE,COMPUTER HARDWARE,8329,-,-,08/01/2016,P10_61,58.78,Capital,AMAZON UK MARKETPLACE,Miscellaneous and Specialty Retail Stores,711
Tunbridge Wells Borough Council,Housing Services,108,HO,Housing Services & Health,TN2 COMMUNITY CENTRE,CONSUMABLES & MATERIALS,3060,-,-,09/01/2016,P10_15,46.78,Revenue,CARTRIDGESAVE.CO.UK,"Office, School Supply, and Stationery Stores",712
Tunbridge Wells Borough Council,Housing Services,108,HO,Housing Services & Health,BED & BREAKFAST COSTS,RENTS/HIRE OF PREMISES,2200,-,-,11/01/2016,P10_09,2.74,Revenue,ERROLBANK GUEST HOUSE,"Hotels, Motels, Resorts",713
Tunbridge Wells Borough Council,Housing Services,108,HO,Housing Services & Health,BED & BREAKFAST COSTS,RENTS/HIRE OF PREMISES,2200,-,-,11/01/2016,P10_10,98,Revenue,ERROLBANK GUEST HOUSE,"Hotels, Motels, Resorts",714
Tunbridge Wells Borough Council,Central Services,102,FI,Finance & Local Goverance,REVS & BENS ADMINISTRATION,COURT FEES,3263,-,-,11/01/2016,P10_44,696,Revenue,HMCOURTS-SERVICE.G,Fines,715
Tunbridge Wells Borough Council,Planning Services,110,PL,Planning Services,PLANNING POLICY,EQUIPMENT PURCHASE/MTCE,3000,-,-,12/01/2016,P10_41,34.66,Revenue,CUTEPDF ACROSOFTWAR,Computer Software Stores,716
Tunbridge Wells Borough Council,Housing Services,108,HO,Housing Services & Health,HOUSING NEEDS SERVICE,HOMELESSNESS EXPENSES,3912,-,-,13/01/2016,P10_03,77.5,Revenue,NATIONAL EXPRESS LIMITED,Bus Lines,717
Tunbridge Wells Borough Council,Planning Services,110,PL,Planning Services,PLANNING POLICY,EQUIPMENT PURCHASE/MTCE,3000,-,-,13/01/2016,P10_42,0.95,Revenue,FOREIGN EXCHANGE FEE,0,718
Tunbridge Wells Borough Council,Cultural and Related Services,104,CO,Community & Corporate Planning,CAMDEN CENTRE,EQUIPMENT PURCHASE/MTCE,3000,-,-,14/01/2016,P10_16,276,Revenue,WWW.FURNITUREATWORK.CO,"Equipment, Furniture, and Home Furnishings Stores",719
Tunbridge Wells Borough Council,Central Services,102,CO,Communications,PUBLICATIONS,STATIONERY,3160,-,-,14/01/2016,P10_58,88.45,Revenue,MEDISAVE,Dental/Laboratory/Medical Equipment & Supplies,720
Tunbridge Wells Borough Council,Cultural and Related Services,104,LE,Leisure & Well-being,A-HALL TECH OPS,EQUIPMENT PURCHASE/MTCE,3000,-,-,25/08/2015,P05_41,16.66,Revenue,WH SMITH,NEWS DEALERS AND NEWSSTANDS,721
Tunbridge Wells Borough Council,Cultural and Related Services,104,LE,Leisure & Well-being,A-HALL COUNCIL SHOWS,PROMOTION,3450,"151105 LEROY JONES, JOE, STIL",A15L10,31/10/2015,P08_55,40,Revenue,FACEBOOK QWVUH8E5Z2,ADVERTISING SERVICES,722
Tunbridge Wells Borough Council,Housing Services,108,HO,Housing Services & Health,HOUSING NEEDS SERVICE,HOMELESSNESS EXPENSES,3912,TUNBRIDGE WELLS CAB,EV0550,02/11/2015,P08_02,274.99,Revenue,LEVETT & MARTIN LTD,HOUSEHOLD APPLIANCE STORES,723
Tunbridge Wells Borough Council,Housing Services,108,HO,Housing Services & Health,HOUSING NEEDS SERVICE,HOMELESSNESS EXPENSES,3912,-,-,02/11/2015,P08_03,11.7,Revenue,MARTIN & CO (TURNBRIDG,PROFESSIONAL SERVICES NOT ELSEWHERE CLASSIFIED,724
Tunbridge Wells Borough Council,Housing Services,108,HO,Housing Services & Health,HOUSING NEEDS SERVICE,HOMELESSNESS EXPENSES,3912,-,-,02/11/2015,P08_08,325,Revenue,MARTIN & CO (TURNBRIDG,PROFESSIONAL SERVICES NOT ELSEWHERE CLASSIFIED,725
Tunbridge Wells Borough Council,Highways and Transport Services,107,EN,Environment & Street Scene,PARKING ADMIN & ENFORCEMENT,EQUIPMENT PURCHASE/MTCE,3000,-,-,02/11/2015,P08_60,103.02,Revenue,WWW.ELITEINDUSTRIAL.CO,MISCELLANEOUS AND RETAIL STORES,726
Tunbridge Wells Borough Council,Housing Services,108,HO,Housing Services & Health,TEMPORARY ACCOMMODATION,GAS,2120,-,-,03/11/2015,P08_13,9.52,Revenue,MARTIN MCCOLL,MISC FOOD STORES-SPECIALITY CONVENIENCE MARKETS VENDING MACHINES,727
Tunbridge Wells Borough Council,Housing Services,108,HO,Housing Services & Health,TEMPORARY ACCOMMODATION,GAS,2120,-,-,03/11/2015,P08_14,14.29,Revenue,MARTIN MCCOLL,MISC FOOD STORES-SPECIALITY CONVENIENCE MARKETS VENDING MACHINES,728
Tunbridge Wells Borough Council,Housing Services,108,HO,Housing Services & Health,TEMPORARY ACCOMMODATION,ELECTRICITY,2140,-,-,03/11/2015,P08_16,9.52,Revenue,MARTIN MCCOLL,MISC FOOD STORES-SPECIALITY CONVENIENCE MARKETS VENDING MACHINES,729
Tunbridge Wells Borough Council,Housing Services,108,HO,Housing Services & Health,TEMPORARY ACCOMMODATION,ELECTRICITY,2140,-,-,03/11/2015,P08_17,14.29,Revenue,MARTIN MCCOLL,MISC FOOD STORES-SPECIALITY CONVENIENCE MARKETS VENDING MACHINES,730
Tunbridge Wells Borough Council,Housing Services,108,HO,Housing Services & Health,TEMPORARY ACCOMMODATION,ELECTRICITY,2140,-,-,03/11/2015,P08_18,9.52,Revenue,MARTIN MCCOLL,MISC FOOD STORES-SPECIALITY CONVENIENCE MARKETS VENDING MACHINES,731
Tunbridge Wells Borough Council,Cultural and Related Services,104,LE,Leisure & Well-being,TW ICE RINK,EQUIPMENT PURCHASE/MTCE,3000,-,-,03/11/2015,P08_34,44.15,Revenue,WWW.GALATENT.CO.UK/,TENT AND AWNING SHOPS,732
Tunbridge Wells Borough Council,Cultural and Related Services,104,LE,Leisure & Well-being,A-HALL MKTG & SALES,PROMOTION,3450,-,-,03/11/2015,P08_50,3.3,Revenue,GOOGLE *SVCSAPPS_ASSEM,CONTINUITY/SUBSCRIPTION MERCHANTS,733
Tunbridge Wells Borough Council,Central Services,102,OV,Overview & Scrutiny,ELECTORAL REGISTRATION,EQUIPMENT PURCHASE/MTCE,3000,-,-,03/11/2015,P08_68,8.28,Revenue,AMAZON UK MARKETPLACE,MISCELLANEOUS AND RETAIL STORES,734
Tunbridge Wells Borough Council,Central Services,102,CU,Customer Access,TOWN HALL,EQUIPMENT PURCHASE/MTCE,3000,PROPERTY ACCOMMODATION,PH0602,03/11/2015,P08_69,13.01,Revenue,AMAZON UK MARKETPLACE,MISCELLANEOUS AND RETAIL STORES,735
Tunbridge Wells Borough Council,Central Services,102,GA,Gateway,GATEWAY,FURNITURE COSTS,3020,GATEWAY IMPROVEMENTS,EV0345,03/11/2015,P08_71,69.95,Revenue,AMAZON UK MARKETPLACE,MISCELLANEOUS AND RETAIL STORES,736
Tunbridge Wells Borough Council,Central Services,102,GA,Gateway,GATEWAY,FURNITURE COSTS,3020,GATEWAY IMPROVEMENTS,EV0345,03/11/2015,P08_73,21.01,Revenue,AMAZON UK MARKETPLACE,MISCELLANEOUS AND RETAIL STORES,737
Tunbridge Wells Borough Council,Cultural and Related Services,104,LE,Leisure & Well-being,A-HALL TECH OPS,LICENCES (INC PRS/PPL),3390,-,-,04/11/2015,P08_47,319.73,Revenue,WWW.TUNBRIDGEWELLS.GOV.U,GOVERNMENT SERVICES NOT ELSEWHERE CLASSIFIED,738
Tunbridge Wells Borough Council,Housing Services,108,HO,Housing Services & Health,TN2 COMMUNITY CENTRE,PROJECTS & INITIATIVES,3910,-,-,06/11/2015,P08_22,55.83,Revenue,ASDA STORES 4776,GROCERY STORES  SUPERMARKETS,739
Tunbridge Wells Borough Council,Cultural and Related Services,104,CO,Community & Corporate Planning,MUSEUM & ART GALLERY,CONFERENCES/SEMINARS,205,-,-,06/11/2015,P08_42,66.67,Revenue,HOL INN BIRM CITY,LODGING  HOTELS  MOTELS  RESORTS,740
Tunbridge Wells Borough Council,Cultural and Related Services,104,CO,Community & Corporate Planning,MUSEUM & ART GALLERY,CONFERENCES/SEMINARS,205,-,-,06/11/2015,P08_43,66.67,Revenue,HOL INN BIRM CITY,LODGING  HOTELS  MOTELS  RESORTS,741
Tunbridge Wells Borough Council,Housing Services,108,HO,Housing Services & Health,HOUSING NEEDS SERVICE,HOMELESSNESS EXPENSES,3912,-,-,09/11/2015,P08_07,486.92,Revenue,BELVOIR LETTINGS TUNBR,REAL ESTATE AGENTS AND MANAGERS - RENTAL,742
Tunbridge Wells Borough Council,Housing Services,108,HO,Housing Services & Health,TEMPORARY ACCOMMODATION,FURNITURE COSTS,3020,-,-,09/11/2015,P08_21,15.81,Revenue,ARGOS RETAIL GROUP,DISCOUNT STORES,743
Tunbridge Wells Borough Council,Central Services,102,FI,Finance & Local Goverance,REVS & BENS ADMINISTRATION,LOCAL FILTER,3262,-,-,09/11/2015,P08_61,630,Revenue,HMCOURTS-SERVICE.G,FINES,744
Tunbridge Wells Borough Council,Housing Services,108,HO,Housing Services & Health,TN2 COMMUNITY CENTRE,PROJECTS & INITIATIVES,3910,-,-,11/11/2015,P08_24,-4.1,Revenue,WWW.PEEKS.CO.UK,GIFT  CARD  NOVELTY  AND SOUVENIR SHOPS,745
Tunbridge Wells Borough Council,Cultural and Related Services,104,LE,Leisure & Well-being,A-HALL FRONT OF HOUSE,EQUIPMENT PURCHASE/MTCE,3000,-,-,12/11/2015,P08_57,62.62,Revenue,MICHAEL LINNELL &,STATIONARY  OFFICE AND SCHOOL SUPPLY STORES,746
Tunbridge Wells Borough Council,Cultural and Related Services,104,LE,Leisure & Well-being,TW ICE RINK,EQUIPMENT PURCHASE/MTCE,3000,-,-,13/11/2015,P08_35,9.56,Revenue,BOOKER LIMITED TUNBRIDGE,CATERERS,747
Tunbridge Wells Borough Council,Cultural and Related Services,104,LE,Leisure & Well-being,TW ICE RINK,PROMOTION,3450,-,-,13/11/2015,P08_38,37.48,Revenue,WWW.DRINKSTUFF.COM,MISCELLANEOUS AND RETAIL STORES,748
Tunbridge Wells Borough Council,Cultural and Related Services,104,LE,Leisure & Well-being,A-HALL COUNCIL SHOWS,PROMOTION,3450,CINDERELLA 2015,A15M01,13/11/2015,P08_56,11.9,Revenue,BOOKER LIMITED TUNBRIDGE,CATERERS,749
Tunbridge Wells Borough Council,Cultural and Related Services,104,LE,Leisure & Well-being,A-HALL FRONT OF HOUSE,COGS - DRINK,3091,-,-,13/11/2015,P08_58,329.3,Revenue,BOOKER LIMITED TUNBRIDGE,CATERERS,750
Tunbridge Wells Borough Council,Central Services,102,CH,Chief Executive's Office,MAYORAL,MAYORAL EXPENSES,3690,REMEMBRANCE SUNDAY,EV0102,13/11/2015,P08_64,110.37,Revenue,BOOKER LIMITED TUNBRIDGE,CATERERS,751
Tunbridge Wells Borough Council,Cultural and Related Services,104,LE,Leisure & Well-being,A-HALL MKTG & SALES,PROMOTION,3450,-,-,15/11/2015,P08_49,92.25,Revenue,MAILCHIMP,BUSINESS SERVICES NOT ELSEWHERE CLASSIFIED,752
Tunbridge Wells Borough Council,Housing Services,108,HO,Housing Services & Health,HOUSING NEEDS SERVICE,HOMELESSNESS EXPENSES,3912,TUNBRIDGE WELLS CAB,EV0550,16/11/2015,P08_01,39.58,Revenue,ARGOS LTD,DISCOUNT STORES,753
Tunbridge Wells Borough Council,Housing Services,108,HO,Housing Services & Health,TN2 COMMUNITY CENTRE,PROJECTS & INITIATIVES,3910,-,-,16/11/2015,P08_23,51.79,Revenue,GREGSWOOD CHEMIST,DRUG STORES  PHARMACIES,754
Tunbridge Wells Borough Council,Cultural and Related Services,104,LE,Leisure & Well-being,TW ICE RINK,EQUIPMENT PURCHASE/MTCE,3000,-,-,16/11/2015,P08_27,11.65,Revenue,RYMAN 1206,STATIONARY  OFFICE AND SCHOOL SUPPLY STORES,755
Tunbridge Wells Borough Council,Cultural and Related Services,104,LE,Leisure & Well-being,TW ICE RINK,EQUIPMENT PURCHASE/MTCE,3000,-,-,16/11/2015,P08_32,18.29,Revenue,RYMAN 1206,STATIONARY  OFFICE AND SCHOOL SUPPLY STORES,756
Tunbridge Wells Borough Council,Housing Services,108,HO,Housing Services & Health,HOUSING NEEDS SERVICE,PROJECTS & INITIATIVES,3910,RELOCATION OF AFGHAN FAMILIES,EV0585,25/08/2015,P05_51,34,Revenue,DVLA DRIVER ONLINE,GOVERNMENT SERVICES NOT ELSEWHERE CLASSIFIED,757
Tunbridge Wells Borough Council,Central Services,102,CU,Customer Access,TOWN HALL,FURNITURE COSTS,3020,PROPERTY RECEPTION,PH0601,25/08/2015,P05_68,116.66,Revenue,SIMPLYBARSTOOLS.CO,HOUSEHOLD APPLIANCE STORES,758
Tunbridge Wells Borough Council,Central Services,102,HR,Human Resources,HUMAN RESOURCES,EXTERNAL TRAINING,204,-,-,25/08/2015,P05_81,600,Revenue,WWW.CIPD.CO.UK,PROFESSIONAL SERVICES NOT ELSEWHERE CLASSIFIED,759
Tunbridge Wells Borough Council,Cultural and Related Services,104,LE,Leisure & Well-being,A-HALL MANAGEMENT,SUBS TO ORGANISATIONS,3730,-,-,25/08/2015,P06_51,17.33,Revenue,TIMES NEWSPAPERS LTD,BOOKS PERIODICALS AND NEWSPAPERS,760
Tunbridge Wells Borough Council,Housing Services,108,HO,Housing Services & Health,TN2 COMMUNITY CENTRE,CLEANING SUPPLIES,2500,-,-,26/08/2015,P06_16,10.82,Revenue,ASDA STORES 4776,GROCERY STORES  SUPERMARKETS,761
Tunbridge Wells Borough Council,Housing Services,108,HO,Housing Services & Health,TN2 COMMUNITY CENTRE,COGS -FOOD,3090,-,-,26/08/2015,P06_22,1.78,Revenue,ASDA STORES 4776,GROCERY STORES  SUPERMARKETS,762
Tunbridge Wells Borough Council,Housing Services,108,HO,Housing Services & Health,TN2 COMMUNITY CENTRE,PROJECTS & INITIATIVES,3910,-,-,26/08/2015,P06_25,38.9,Revenue,ASDA STORES 4776,GROCERY STORES  SUPERMARKETS,763
Tunbridge Wells Borough Council,Housing Services,108,HO,Housing Services & Health,TN2 COMMUNITY CENTRE,PROJECTS & INITIATIVES,3910,-,-,26/08/2015,P06_31,50,Revenue,ASDA STORES 4776,GROCERY STORES  SUPERMARKETS,764
Tunbridge Wells Borough Council,Housing Services,108,HO,Housing Services & Health,TN2 COMMUNITY CENTRE,PROJECTS & INITIATIVES,3910,-,-,26/08/2015,P06_32,37.22,Revenue,ASDA STORES 4776,GROCERY STORES  SUPERMARKETS,765
Tunbridge Wells Borough Council,Cultural and Related Services,104,LE,Leisure & Well-being,A-HALL TECH OPS,EQUIPMENT PURCHASE/MTCE,3000,-,-,27/08/2015,P06_53,16.66,Revenue,MAPLIN TUNBRWELLS TN1,ELECTRONIC SALES,766
Tunbridge Wells Borough Council,Housing Services,108,HO,Housing Services & Health,TEMPORARY ACCOMMODATION,GAS,2120,-,-,28/08/2015,P06_12,14.29,Revenue,MARTIN MCCOLL,MISC FOOD STORES-SPECIALITY CONVENIENCE MARKETS VENDING MACHINES,767
Tunbridge Wells Borough Council,Housing Services,108,HO,Housing Services & Health,TEMPORARY ACCOMMODATION,ELECTRICITY,2140,-,-,28/08/2015,P06_14,14.29,Revenue,MARTIN MCCOLL,MISC FOOD STORES-SPECIALITY CONVENIENCE MARKETS VENDING MACHINES,768
Tunbridge Wells Borough Council,Cultural and Related Services,104,LE,Leisure & Well-being,A-HALL COUNCIL SHOWS,PROMOTION,3450,CINDERELLA 2015,A15M01,28/08/2015,P06_59,2.82,Revenue,AMAZON UK MARKETPLACE,BOOK STORES,769
Tunbridge Wells Borough Council,Central Services,102,HR,Human Resources,HUMAN RESOURCES,STAFF CONFERENCES,208,-,-,28/08/2015,P06_66,11.83,Revenue,AMAZON UK MARKETPLACE,BOOK STORES,770
Tunbridge Wells Borough Council,Central Services,102,HR,Human Resources,HUMAN RESOURCES,STAFF CONFERENCES,208,-,-,28/08/2015,P06_67,1.68,Revenue,AMAZON UK MARKETPLACE,BOOK STORES,771
Tunbridge Wells Borough Council,Central Services,102,HR,Human Resources,HUMAN RESOURCES,STAFF CONFERENCES,208,-,-,28/08/2015,P06_68,6.36,Revenue,AMAZON UK MARKETPLACE,BOOK STORES,772
Tunbridge Wells Borough Council,Central Services,102,CU,Customer Access,TOWN HALL,RESPONSIVE REPAIRS BUILDINGS,2020,-,-,28/08/2015,P06_72,45.81,Revenue,AMAZON UK MARKETPLACE,BOOK STORES,773
Tunbridge Wells Borough Council,Cultural and Related Services,104,LE,Leisure & Well-being,ASSEMBLY HALL IMPROVEMENTS,AQUISITION,8305,-,-,28/08/2015,P06_77,265,Capital,WEALD WASTE,EQUIP RENTALS & LEASING SERVICES  TOOL RENTAL  FURNITURE RENTAL,774
Tunbridge Wells Borough Council,Cultural and Related Services,104,LE,Leisure & Well-being,ASSEMBLY HALL IMPROVEMENTS,AQUISITION,8305,-,-,28/08/2015,P06_78,1162.6,Capital,WEALD WASTE,EQUIP RENTALS & LEASING SERVICES  TOOL RENTAL  FURNITURE RENTAL,775
Tunbridge Wells Borough Council,Cultural and Related Services,104,LE,Leisure & Well-being,ASSEMBLY HALL IMPROVEMENTS,AQUISITION,8305,-,-,28/08/2015,P06_82,30,Capital,WEALD WASTE,EQUIP RENTALS & LEASING SERVICES  TOOL RENTAL  FURNITURE RENTAL,776
Tunbridge Wells Borough Council,Housing Services,108,HO,Housing Services & Health,TN2 COMMUNITY CENTRE,PROJECTS & INITIATIVES,3910,-,-,30/08/2015,P06_30,136.15,Revenue,WWW.PEEKS.CO.UK,GIFT  CARD  NOVELTY  AND SOUVENIR SHOPS,777
Tunbridge Wells Borough Council,Housing Services,108,HO,Housing Services & Health,TN2 COMMUNITY CENTRE,PROJECTS & INITIATIVES,3910,-,-,30/08/2015,P06_33,69.61,Revenue,WWW.PEEKS.CO.UK,GIFT  CARD  NOVELTY  AND SOUVENIR SHOPS,778
Tunbridge Wells Borough Council,Housing Services,108,HO,Housing Services & Health,HOUSING NEEDS SERVICE,RENT GUARANTEE SCHEME,3911,-,-,01/09/2015,P06_03,347.04,Revenue,ANCHOR TRUST V/T,REAL ESTATE AGENTS AND MANAGERS - RENTAL,779
Tunbridge Wells Borough Council,Housing Services,108,HO,Housing Services & Health,HOUSING NEEDS SERVICE,RENT GUARANTEE SCHEME,3911,-,-,01/09/2015,P06_04,200,Revenue,ANCHOR TRUST V/T,REAL ESTATE AGENTS AND MANAGERS - RENTAL,780
Tunbridge Wells Borough Council,Housing Services,108,HO,Housing Services & Health,TEMPORARY ACCOMMODATION,GAS,2120,-,-,01/09/2015,P06_11,9.52,Revenue,CO-OP GROUP 540071,GROCERY STORES  SUPERMARKETS,781
Tunbridge Wells Borough Council,Housing Services,108,HO,Housing Services & Health,TEMPORARY ACCOMMODATION,ELECTRICITY,2140,-,-,01/09/2015,P06_13,14.29,Revenue,CO-OP GROUP 540071,GROCERY STORES  SUPERMARKETS,782
Tunbridge Wells Borough Council,Cultural and Related Services,104,LE,Leisure & Well-being,A-HALL MANAGEMENT,VEHICLE REPAIRS & SUNDRIES,1040,-,-,01/09/2015,P06_40,162,Revenue,WWW.DVLA.GOV.UK,GOVERNMENT SERVICES NOT ELSEWHERE CLASSIFIED,783
Tunbridge Wells Borough Council,Cultural and Related Services,104,LE,Leisure & Well-being,A-HALL MANAGEMENT,EXTERNAL TRAINING,204,-,-,02/09/2015,P06_39,78.96,Revenue,PREMIER INN44521940,PREMIER INN,784
Tunbridge Wells Borough Council,Cultural and Related Services,104,LE,Leisure & Well-being,A-HALL MKTG & SALES,PROMOTION,3450,-,-,02/09/2015,P06_55,3.3,Revenue,GOOGLE *SVCSAPPS_ASSEM,CONTINUITY/SUBSCRIPTION MERCHANTS,785
Tunbridge Wells Borough Council,Central Services,102,CH,Chief Executive's Office,MAYORAL,MAYORAL EXPENSES,3690,MISC MAYORAL EXPEN,EV0123,02/09/2015,P06_71,7,Revenue,REDBOXCAMERAS,CAMERA AND PHOTOGRAPHIC SUPPLY STORES,786
Tunbridge Wells Borough Council,Housing Services,108,HO,Housing Services & Health,HOUSING NEEDS SERVICE,HOMELESSNESS EXPENSES,3912,-,-,03/09/2015,P06_08,12.4,Revenue,LONDON & SOUTH EAS,PASSENGER RAILWAYS,787
Tunbridge Wells Borough Council,Housing Services,108,HO,Housing Services & Health,HOUSING NEEDS SERVICE,HOMELESSNESS EXPENSES,3912,-,-,03/09/2015,P06_09,15.1,Revenue,LONDON & SOUTH EAS,PASSENGER RAILWAYS,788
Tunbridge Wells Borough Council,Housing Services,108,HO,Housing Services & Health,TN2 COMMUNITY CENTRE,PROJECTS & INITIATIVES,3910,-,-,03/09/2015,P06_29,32.47,Revenue,HOMESENSE,VARIETY STORES,789
Tunbridge Wells Borough Council,Cultural and Related Services,104,LE,Leisure & Well-being,A-HALL FRONT OF HOUSE,CONSUMABLES & MATERIALS,3060,-,-,03/09/2015,P06_61,328.35,Revenue,WWW.RICHARDHAWORTH.CO.,MISCELLANEOUS HOUSE FURNISHING SPECIALITY STORES,790
Tunbridge Wells Borough Council,Cultural and Related Services,104,LE,Leisure & Well-being,A-HALL FRONT OF HOUSE,COGS - CONFECTIONERY,3094,-,-,03/09/2015,P06_64,168.31,Revenue,UK SWEETS LTD,CANDY  NUT CONFECTIONERY STORES,791
Tunbridge Wells Borough Council,Cultural and Related Services,104,LE,Leisure & Well-being,A-HALL COUNCIL SHOWS,PROMOTION,3450,CINDERELLA 2015,A15M01,04/09/2015,P06_58,9.1,Revenue,AMAZON SVCS EUROPE SAR,BOOK STORES,792
Tunbridge Wells Borough Council,Cultural and Related Services,104,LE,Leisure & Well-being,A-HALL COUNCIL SHOWS,PROMOTION,3450,CINDERELLA 2015,A15M01,04/09/2015,P06_60,15.4,Revenue,AMAZON SVCS EUROPE SAR,BOOK STORES,793
Tunbridge Wells Borough Council,Central Services,102,CU,Customer Access,TOWN HALL,EQUIPMENT PURCHASE/MTCE,3000,-,-,04/09/2015,P06_73,93.23,Revenue,AMAZON SVCS EUROPE SAR,BOOK STORES,794
Tunbridge Wells Borough Council,Cultural and Related Services,104,LE,Leisure & Well-being,ASSEMBLY HALL IMPROVEMENTS,FURNITURE AND EQUIPMENT,8326,-,-,04/09/2015,P06_86,128.17,Capital,WWW.NOBLEXP.CO.UK,INDUSTRIAL SUPPLIES NOT ELSEWHERE CLASSI,795
Tunbridge Wells Borough Council,Housing Services,108,HO,Housing Services & Health,HOUSING NEEDS SERVICE,RENT GUARANTEE SCHEME,3911,-,-,07/09/2015,P06_05,153,Revenue,ALASTAIR STUART (CRANB,PROFESSIONAL SERVICES NOT ELSEWHERE CLASSIFIED,796
Tunbridge Wells Borough Council,Housing Services,108,HO,Housing Services & Health,BED & BREAKFAST COSTS,RENTS/HIRE OF PREMISES,2200,-,-,07/09/2015,P06_10,61.67,Revenue,HAND AND SCEPTRE,EATING PLACES  RESTAURANTS,797
Tunbridge Wells Borough Council,Housing Services,108,HO,Housing Services & Health,TN2 COMMUNITY CENTRE,CONSUMABLES & MATERIALS,3060,-,-,07/09/2015,P06_18,31.98,Revenue,BOOKERECOMM,CATERERS,798
Tunbridge Wells Borough Council,Housing Services,108,HO,Housing Services & Health,TN2 COMMUNITY CENTRE,COGS -FOOD,3090,-,-,07/09/2015,P06_19,105.78,Revenue,BOOKERECOMM,CATERERS,799
Tunbridge Wells Borough Council,Housing Services,108,HO,Housing Services & Health,TN2 COMMUNITY CENTRE,COGS -FOOD,3090,-,-,07/09/2015,P06_21,69.88,Revenue,BOOKERECOMM,CATERERS,800
Tunbridge Wells Borough Council,Environmental and regulatory services ,105,EN,Environment & Street Scene,ENVIRONMENTAL PROTECTION,EQUIPMENT PURCHASE/MTCE,3000,-,-,29/02/2016,P12_24,14.14,Revenue,AMAZON UK MARKETPLACE,Book Stores,801
Tunbridge Wells Borough Council,Cultural and Related Services,104,LE,Leisure & Well-being,A-HALL COUNCIL SHOWS,PROMOTION,3450,160226 SENSATIONAL 60's EXPERI,A16B01,29/02/2016,P12_37,20,Revenue,FACEBOOK VLP799N5Z2,Advertising Services,802
Tunbridge Wells Borough Council,Cultural and Related Services,104,LE,Leisure & Well-being,A-HALL COUNCIL SHOWS,PROMOTION,3450,160311 ELO AGAIN,A16C02,29/02/2016,P12_38,48.43,Revenue,FACEBOOK VLP799N5Z2,Advertising Services,803
Tunbridge Wells Borough Council,Cultural and Related Services,104,LE,Leisure & Well-being,A-HALL COUNCIL SHOWS,PROMOTION,3450,160301-05 ANNIE,A16C03,29/02/2016,P12_39,3.17,Revenue,FACEBOOK WLP799N5Z2,Advertising Services,804
Tunbridge Wells Borough Council,Cultural and Related Services,104,LE,Leisure & Well-being,A-HALL COUNCIL SHOWS,PROMOTION,3450,160301-05 ANNIE,A16C03,29/02/2016,P12_40,47.9,Revenue,FACEBOOK VLP799N5Z2,Advertising Services,805
Tunbridge Wells Borough Council,Planning Services,110,PL,Planning Services,BUILDING CONTROL,WORKS IN DEFAULT - COSTS,3801,-,-,29/02/2016,P12_47,11.13,Revenue,AMAZON UK MARKETPLACE,Book Stores,806
Tunbridge Wells Borough Council,Central Services,102,BU,Business Transformation & Delivery,JOINT KENT CHANNEL MIGRATION,IT SOFTWARE,3590,-,-,29/02/2016,P12_62,24.99,Revenue,EASILY LTD,"Consulting, Management, and PR Services",807
Tunbridge Wells Borough Council,Central Services,102,BU,Business Transformation & Delivery,JOINT KENT CHANNEL MIGRATION,IT SOFTWARE,3590,-,-,29/02/2016,P12_63,43.86,Revenue,BLUEBERRY SOFTWARE LTD,"Computers, Computer Peripheral Equipment, Software",808
Tunbridge Wells Borough Council,Central Services,102,FI,Finance & Local Goverance,I T SERVICE,COMPUTER HARDWARE,3580,HARDWARE REPLACEMENT,EV0324,29/02/2016,P12_64,24.03,Revenue,AMAZON UK MARKETPLACE,Book Stores,809
Tunbridge Wells Borough Council,Environmental and regulatory services ,105,EN,Environment & Street Scene,CLEANER BOROUGH,VEHICLE REPAIRS & SUNDRIES,1040,-,-,01/03/2016,P12_25,227.5,Revenue,POST OFFICE COUNTER,Postal Services - Government Only,810
Tunbridge Wells Borough Council,Cultural and Related Services,104,LE,Leisure & Well-being,A-HALL MANAGEMENT,CONFERENCES/SEMINARS,205,-,-,01/03/2016,P12_27,207,Revenue,TRAINLINE,Passenger Railways,811
Tunbridge Wells Borough Council,Cultural and Related Services,104,LE,Leisure & Well-being,A-HALL MANAGEMENT,CONFERENCES/SEMINARS,205,-,-,01/03/2016,P12_30,3.83,Revenue,TRAINLINE,Passenger Railways,812
Tunbridge Wells Borough Council,Cultural and Related Services,104,LE,Leisure & Well-being,A-HALL MANAGEMENT,CONFERENCES/SEMINARS,205,-,-,01/03/2016,P12_31,115,Revenue,TRAINLINE,Passenger Railways,813
Tunbridge Wells Borough Council,Cultural and Related Services,104,LE,Leisure & Well-being,A-HALL MANAGEMENT,CONFERENCES/SEMINARS,205,-,-,01/03/2016,P12_32,5.67,Revenue,TRAINLINE,Passenger Railways,814
Tunbridge Wells Borough Council,Cultural and Related Services,104,LE,Leisure & Well-being,A-HALL FRONT OF HOUSE,EQUIPMENT PURCHASE/MTCE,3000,-,-,01/03/2016,P12_41,62.48,Revenue,LAKELAND LIMITED,Miscellaneous General Merchandise,815
Tunbridge Wells Borough Council,Cultural and Related Services,104,LE,Leisure & Well-being,A-HALL FRONT OF HOUSE,CONSUMABLES & MATERIALS,3060,-,-,01/03/2016,P12_43,12.98,Revenue,BOOKER LIMITED TUNBRIDGE,Caterers,816
Tunbridge Wells Borough Council,Cultural and Related Services,104,LE,Leisure & Well-being,A-HALL FRONT OF HOUSE,COGS - DRINK,3091,-,-,01/03/2016,P12_44,42.83,Revenue,BOOKER LIMITED TUNBRIDGE,Caterers,817
Tunbridge Wells Borough Council,Cultural and Related Services,104,LE,Leisure & Well-being,A-HALL FRONT OF HOUSE,COGS - CONFECTIONERY,3094,-,-,01/03/2016,P12_45,133.89,Revenue,BOOKER LIMITED TUNBRIDGE,Caterers,818
Tunbridge Wells Borough Council,Cultural and Related Services,104,LE,Leisure & Well-being,A-HALL MARKETING,PROMOTION,3450,-,-,03/03/2016,P12_36,3.3,Revenue,GOOGLE *SVCSAPPS_ASSEM,Direct Marketing Continuity Subscription Merchants,819
Tunbridge Wells Borough Council,Central Services,102,CH,Chief Executive's Office,MAYORAL,MAYORAL EXPENSES,3690,MISC MAYORAL EXPEN,EV0123,03/03/2016,P12_60,135.93,Revenue,OHSOCHERISH,"Card, Gift, Novelty, and Souvenir Shops",820
Tunbridge Wells Borough Council,Environmental and regulatory services ,105,EN,Environment & Street Scene,ENVIRONMENTAL PROTECTION,EQUIPMENT PURCHASE/MTCE,3000,-,-,04/03/2016,P12_19,7.5,Revenue,WWW.LQM.CO.UK,Other Direct Marketing-Other Direct Marketers,821
Tunbridge Wells Borough Council,Environmental and regulatory services ,105,EN,Environment & Street Scene,ENVIRONMENTAL PROTECTION,EQUIPMENT PURCHASE/MTCE,3000,-,-,04/03/2016,P12_23,240,Revenue,WWW.LQM.CO.UK,Other Direct Marketing-Other Direct Marketers,822
Tunbridge Wells Borough Council,Environmental and regulatory services ,105,EN,Environment & Street Scene,STREET SWEEPING,EQUIPMENT PURCHASE/MTCE,3000,-,-,04/03/2016,P12_26,80.97,Revenue,PAYPAL *PACKAGINGES,Miscellaneous and Specialty Retail Stores,823
Tunbridge Wells Borough Council,Housing Services,108,HO,Housing Services & Health,TN2 COMMUNITY CENTRE,PROJECTS & INITIATIVES,3910,-,-,06/03/2016,P12_16,174.16,Revenue,WWW.PEEKS.CO.UK,"Card, Gift, Novelty, and Souvenir Shops",824
Tunbridge Wells Borough Council,Housing Services,108,HO,Housing Services & Health,TN2 COMMUNITY CENTRE,PROJECTS & INITIATIVES,3910,-,-,06/03/2016,P12_17,75.14,Revenue,SPORTSDIRECT.COM,Sporting Goods Stores,825
Tunbridge Wells Borough Council,Housing Services,108,HO,Housing Services & Health,HOUSING NEEDS SERVICE,HOSPITALITY,3720,-,-,09/03/2016,P12_01,31.2,Revenue,HOTEL DU VIN BRIGH,"Hotels, Motels, Resorts",826
Tunbridge Wells Borough Council,Housing Services,108,HO,Housing Services & Health,HOUSING NEEDS SERVICE,HOSPITALITY,3720,-,-,09/03/2016,P12_06,158.33,Revenue,QUEENS HOTEL,"Hotels, Motels, Resorts",827
Tunbridge Wells Borough Council,Housing Services,108,HO,Housing Services & Health,HOUSING NEEDS SERVICE,HOSPITALITY,3720,-,-,09/03/2016,P12_07,82.5,Revenue,QUEENS HOTEL,"Hotels, Motels, Resorts",828
Tunbridge Wells Borough Council,Housing Services,108,HO,Housing Services & Health,HOUSING NEEDS SERVICE,HOMELESSNESS EXPENSES,3912,-,-,09/03/2016,P12_08,130.9,Revenue,BBSC TON LIMITED,"Public Warehousing, Farm, & Household Goods",829
Tunbridge Wells Borough Council,Housing Services,108,HO,Housing Services & Health,HOUSING NEEDS SERVICE,HOMELESSNESS EXPENSES,3912,-,-,09/03/2016,P12_09,22.2,Revenue,BBSC TON LIMITED,"Public Warehousing, Farm, & Household Goods",830
Tunbridge Wells Borough Council,Housing Services,108,HO,Housing Services & Health,HOUSING NEEDS SERVICE,HOMELESSNESS EXPENSES,3912,-,-,09/03/2016,P12_10,10,Revenue,BBSC TON LIMITED,"Public Warehousing, Farm, & Household Goods",831
Tunbridge Wells Borough Council,Housing Services,108,HO,Housing Services & Health,HOUSING NEEDS SERVICE,HOMELESSNESS EXPENSES,3912,-,-,09/03/2016,P12_11,81.2,Revenue,BBSC TON LIMITED,"Public Warehousing, Farm, & Household Goods",832
Tunbridge Wells Borough Council,Cultural and Related Services,104,LE,Leisure & Well-being,A-HALL MANAGEMENT,CONFERENCES/SEMINARS,205,-,-,09/03/2016,P12_29,25.17,Revenue,HARKERS,"Eating Places, Restaurants",833
Tunbridge Wells Borough Council,Cultural and Related Services,104,LE,Leisure & Well-being,A-HALL TECHNICAL,EQUIPMENT PURCHASE/MTCE,3000,-,-,09/03/2016,P12_34,33.33,Revenue,ITUNES.COM/BILL,Record Shops,834
Tunbridge Wells Borough Council,Housing Services,108,HO,Housing Services & Health,TN2 COMMUNITY CENTRE,COGS -FOOD,3090,-,-,10/03/2016,P12_13,52,Revenue,ASDA STORES 4776,Grocery Stores and Supermarkets,835
Tunbridge Wells Borough Council,Housing Services,108,HO,Housing Services & Health,TN2 COMMUNITY CENTRE,COGS -FOOD,3090,-,-,10/03/2016,P12_14,18.36,Revenue,ASDA STORES 4776,Grocery Stores and Supermarkets,836
Tunbridge Wells Borough Council,Housing Services,108,HO,Housing Services & Health,TN2 COMMUNITY CENTRE,COGS -FOOD,3090,-,-,10/03/2016,P12_15,18.04,Revenue,ASDA STORES 4776,Grocery Stores and Supermarkets,837
Tunbridge Wells Borough Council,Cultural and Related Services,104,LE,Leisure & Well-being,A-HALL MANAGEMENT,CONFERENCES/SEMINARS,205,-,-,10/03/2016,P12_28,165.75,Revenue,Lady Anne Middeltons Htl,"Hotels, Motels, Resorts",838
Tunbridge Wells Borough Council,Housing Services,108,HO,Housing Services & Health,HOUSING NEEDS SERVICE,HOSPITALITY,3720,-,-,12/03/2016,P12_04,91.5,Revenue,M&S E COMMERCE,Grocery Stores and Supermarkets,839
Tunbridge Wells Borough Council,Housing Services,108,HO,Housing Services & Health,HOUSING NEEDS SERVICE,HOSPITALITY,3720,-,-,14/03/2016,P12_02,0.1,Revenue,MARKS&SPENCER PLC SACA,Grocery Stores and Supermarkets,840
Tunbridge Wells Borough Council,Housing Services,108,HO,Housing Services & Health,HOUSING NEEDS SERVICE,HOSPITALITY,3720,-,-,14/03/2016,P12_03,6.67,Revenue,MARKS&SPENCER PLC SACA,Grocery Stores and Supermarkets,841
Tunbridge Wells Borough Council,Housing Services,108,HO,Housing Services & Health,HOUSING NEEDS SERVICE,HOSPITALITY,3720,-,-,14/03/2016,P12_05,23.5,Revenue,MARKS&SPENCER PLC SACA,Grocery Stores and Supermarkets,842
Tunbridge Wells Borough Council,Central Services,102,FI,Finance & Local Goverance,REVS & BENS ADMINISTRATION,COURT FEES,3263,-,-,14/03/2016,P12_48,942,Revenue,HMCOURTS-SERVICE.G,Fines,843
Tunbridge Wells Borough Council,Central Services,102,CH,Chief Executive's Office,MAYORAL,MAYORAL EXPENSES,3690,MISC MAYORAL EXPEN,EV0123,14/03/2016,P12_59,10,Revenue,SAINSBURYS S/MKT,Grocery Stores and Supermarkets,844
Tunbridge Wells Borough Council,Cultural and Related Services,104,LE,Leisure & Well-being,A-HALL MARKETING,PROMOTION,3450,-,-,15/03/2016,P12_35,67.15,Revenue,MAILCHIMP,Other Business Services,845
Tunbridge Wells Borough Council,Central Services,102,CH,Chief Executive's Office,MAYORAL,MAYORAL EXPENSES,3690,MISC MAYORAL EXPEN,EV0123,16/03/2016,P12_57,63.8,Revenue,NEW SOUTHERN RAILW,Passenger Railways,846
Tunbridge Wells Borough Council,Central Services,102,CH,Chief Executive's Office,MAYORAL,MAYORAL EXPENSES,3690,MISC MAYORAL EXPEN,EV0123,16/03/2016,P12_58,52.6,Revenue,NEW SOUTHERN RAILW,Passenger Railways,847
Tunbridge Wells Borough Council,Central Services,102,CH,Chief Executive's Office,MAYORAL,MAYORAL EXPENSES,3690,MISC MAYORAL EXPEN,EV0123,16/03/2016,P12_61,-52.6,Revenue,NEW SOUTHERN RAILW,Passenger Railways,848
Tunbridge Wells Borough Council,Cultural and Related Services,104,LE,Leisure & Well-being,A-HALL FRONT OF HOUSE,COGS - CONFECTIONERY,3094,-,-,17/03/2016,P12_46,107.4,Revenue,UK SWEETS LTD,"Candy, Nut and Confectionery Stores",849
Tunbridge Wells Borough Council,Central Services,102,FI,Finance & Local Goverance,REVS & BENS ADMINISTRATION,COURT FEES,3263,-,-,18/03/2016,P12_49,100,Revenue,COUNTY COURT,Fines,850
Tunbridge Wells Borough Council,Central Services,102,CH,Chief Executive's Office,MAYORAL,EQUIPMENT PURCHASE/MTCE,3000,-,-,22/03/2016,P12_56,47,Revenue,The Framing Centre,Art Dealers and Galleries,851
Tunbridge Wells Borough Council,Central Services,102,FI,Finance & Local Goverance,CORPORATE COSTS,BANK CHARGES,3860,-,-,29/03/2016,P12_50,40,Revenue,This data has been redacted under the Data Protection Act,0,852
Tunbridge Wells Borough Council,Central Services,102,FI,Finance & Local Goverance,CORPORATE COSTS,BANK CHARGES,3860,-,-,29/03/2016,P12_51,40,Revenue,This data has been redacted under the Data Protection Act,0,853
Tunbridge Wells Borough Council,Central Services,102,FI,Finance & Local Goverance,CORPORATE COSTS,BANK CHARGES,3860,-,-,29/03/2016,P12_52,40,Revenue,This data has been redacted under the Data Protection Act,0,854
Tunbridge Wells Borough Council,Central Services,102,FI,Finance & Local Goverance,CORPORATE COSTS,BANK CHARGES,3860,-,-,29/03/2016,P12_53,40,Revenue,This data has been redacted under the Data Protection Act,0,855
Tunbridge Wells Borough Council,Central Services,102,FI,Finance & Local Goverance,CORPORATE COSTS,BANK CHARGES,3860,-,-,29/03/2016,P12_54,40,Revenue,This data has been redacted under the Data Protection Act,0,856
Tunbridge Wells Borough Council,Central Services,102,FI,Finance & Local Goverance,CORPORATE COSTS,BANK CHARGES,3860,-,-,29/03/2016,P12_55,40,Revenue,This data has been redacted under the Data Protection Act,0,857
Tunbridge Wells Borough Council,Planning Services,110,PL,Planning Services,DEVELOPMENT MANAGEMENT,EQUIPMENT PURCHASE/MTCE,3000,-,-,03/02/2016,P11_41,109.92,Revenue,WWW.TOOLED-UP.COM,Hardware Stores,858
Tunbridge Wells Borough Council,Central Services,102,CH,Chief Executive's Office,MAYORAL,MAYORAL EXPENSES,3690,MISC MAYORAL EXPEN,EV0123,04/02/2016,P11_62,7.5,Revenue,W M MORRISON PLC,Grocery Stores and Supermarkets,859
Tunbridge Wells Borough Council,Central Services,102,CO,Community & Corporate Planning,D OF CHANGE & COMMUNITIES,CONFERENCES/SEMINARS,205,-,-,04/02/2016,P11_66,299,Revenue,WWW.SOLACE.ORG.UK,"Organizations, Membership",860
Tunbridge Wells Borough Council,Housing Services,108,HO,Housing Services & Health,HOUSING NEEDS SERVICE,HOMELESSNESS EXPENSES,3912,-,-,05/02/2016,P11_04,162.6,Revenue,INTUMESCENT SYSTEM,Miscellaneous and Specialty Retail Stores,861
Tunbridge Wells Borough Council,Central Services,102,FI,Finance & Local Goverance,REVS & BENS ADMINISTRATION,COURT FEES,3263,-,-,08/02/2016,P11_48,735,Revenue,HMCOURTS-SERVICE.G,Fines,862
Tunbridge Wells Borough Council,Central Services,102,FI,Finance & Local Goverance,REVS & BENS ADMINISTRATION,COURT FEES,3263,-,-,08/02/2016,P11_49,12,Revenue,HMCOURTS-SERVICE.G,Fines,863
Tunbridge Wells Borough Council,Cultural and Related Services,104,LE,Leisure & Well-being,A-HALL MARKETING,PROMOTION,3450,-,-,09/02/2016,P11_35,250,Revenue,SURVEYMONKEY.COM,Computer Network/Information Services,864
Tunbridge Wells Borough Council,Environmental and regulatory services ,105,HO,Housing Services & Health,CHOOSING HEALTH,PROMOTION,3450,CHSG HEALTH HEALTHY LIVING,EV0950,09/02/2016,P11_56,249.17,Revenue,SURVEYMONKEY.COM,Computer Network/Information Services,865
Tunbridge Wells Borough Council,Housing Services,108,HO,Housing Services & Health,HOUSING NEEDS SERVICE,HOMELESSNESS EXPENSES,3912,-,-,10/02/2016,P11_05,81.2,Revenue,BBSC TON LIMITED,"Public Warehousing, Farm, & Household Goods",866
Tunbridge Wells Borough Council,Housing Services,108,HO,Housing Services & Health,HOUSING NEEDS SERVICE,HOMELESSNESS EXPENSES,3912,-,-,10/02/2016,P11_06,10,Revenue,BBSC TON LIMITED,"Public Warehousing, Farm, & Household Goods",867
Tunbridge Wells Borough Council,Housing Services,108,HO,Housing Services & Health,HOUSING NEEDS SERVICE,HOMELESSNESS EXPENSES,3912,-,-,10/02/2016,P11_12,130.9,Revenue,BBSC TON LIMITED,"Public Warehousing, Farm, & Household Goods",868
Tunbridge Wells Borough Council,Housing Services,108,HO,Housing Services & Health,HOUSING NEEDS SERVICE,HOMELESSNESS EXPENSES,3912,-,-,10/02/2016,P11_13,22.2,Revenue,BBSC TON LIMITED,"Public Warehousing, Farm, & Household Goods",869
Tunbridge Wells Borough Council,Cultural and Related Services,104,LE,Leisure & Well-being,A-HALL MANAGEMENT,PROMOTION,3450,-,-,10/02/2016,P11_32,7.95,Revenue,WWW.PEOPLETRACER.CO.UK,Information Retrieval Services,870
Tunbridge Wells Borough Council,Cultural and Related Services,104,LE,Leisure & Well-being,A-HALL TECHNICAL,EQUIPMENT PURCHASE/MTCE,3000,-,-,10/02/2016,P11_34,19.16,Revenue,SCREWFIX DIRECT LT,Lumber & Building Materials Stores,871
Tunbridge Wells Borough Council,Highways and Transport Services,107,EN,Environment & Street Scene,PARKING ADMIN & ENFORCEMENT,VEHICLE REPAIRS & SUNDRIES,1040,-,-,10/02/2016,P11_45,260,Revenue,WWW.DVLA.GOV.UK,Government Services,872
Tunbridge Wells Borough Council,Environmental and regulatory services ,105,EN,Environment & Street Scene,ENVIRONMENTAL PROTECTION,EQUIPMENT PURCHASE/MTCE,3000,-,-,11/02/2016,P11_19,251,Revenue,WWW.BROWNFIELDBREIFING,Miscellaneous Publishing and Printing,873
Tunbridge Wells Borough Council,Cultural and Related Services,104,LE,Leisure & Well-being,A-HALL MARKETING,PROMOTION,3450,-,-,15/02/2016,P11_38,104.91,Revenue,MAILCHIMP,Other Business Services,874
Tunbridge Wells Borough Council,Central Services,102,GA,Gateway,GATEWAY,UNIFORMS & PROTECTIVE CLOTHING,3100,CALL CENTRE,EV0341,15/02/2016,P11_68,313.28,Revenue,WWW.CLOTHES2ORDER.COM,Mens and Womens Clothing Stores,875
Tunbridge Wells Borough Council,Central Services,102,HR,Human Resources,STAFF WELFARE,OTHER FEES,3330,Social Society Club,EV1006,15/02/2016,P11_71,140,Revenue,WWW.ULEARNATHLETICS.CO,Sporting Goods Stores,876
Tunbridge Wells Borough Council,Central Services,102,HR,Human Resources,STAFF WELFARE,OTHER FEES,3330,Social Society Club,EV1006,15/02/2016,P11_72,300,Revenue,WWW.ULEARNATHLETICS.CO,Sporting Goods Stores,877
Tunbridge Wells Borough Council,Central Services,102,HR,Human Resources,STAFF WELFARE,OTHER FEES,3330,Social Society Club,EV1006,15/02/2016,P11_73,160,Revenue,WWW.ULEARNATHLETICS.CO,Sporting Goods Stores,878
Tunbridge Wells Borough Council,Central Services,102,CH,Chief Executive's Office,MAYORAL,MAYORAL EXPENSES,3690,MISC MAYORAL EXPEN,EV0123,16/02/2016,P11_63,95,Revenue,M&S E COMMERCE,Grocery Stores and Supermarkets,879
Tunbridge Wells Borough Council,Central Services,102,PL,Planning Services,EMERGENCY PLANNING,PROJECTS & INITIATIVES,3910,-,-,17/02/2016,P11_54,1194.8,Revenue,M C PRODUCTS,Direct Marketing Catalog Merchants,880
Tunbridge Wells Borough Council,Environmental and regulatory services ,105,EN,Environment & Street Scene,CLEANER BOROUGH,COUNSEL FEES,3261,-,-,19/02/2016,P11_26,125,Revenue,WWW.MONEYCLAIM.GOV,Government Services,881
Tunbridge Wells Borough Council,Housing Services,108,HO,Housing Services & Health,HOUSING NEEDS SERVICE,STATIONERY,3160,-,-,21/02/2016,P11_01,3.12,Revenue,AMAZON UK MARKETPLACE,Miscellaneous and Specialty Retail Stores,882
Tunbridge Wells Borough Council,Housing Services,108,HO,Housing Services & Health,HOUSING NEEDS SERVICE,STATIONERY,3160,-,-,21/02/2016,P11_02,25,Revenue,AMAZON UK MARKETPLACE,Miscellaneous and Specialty Retail Stores,883
Tunbridge Wells Borough Council,Housing Services,108,HO,Housing Services & Health,TN2 COMMUNITY CENTRE,CONSUMABLES & MATERIALS,3060,-,-,21/02/2016,P11_17,22.32,Revenue,BOOKER LIMITED TUNBRIDGE,Caterers,884
Tunbridge Wells Borough Council,Housing Services,108,HO,Housing Services & Health,TN2 COMMUNITY CENTRE,COGS -FOOD,3090,-,-,21/02/2016,P11_18,33.96,Revenue,ASDA STORES 4776,Grocery Stores and Supermarkets,885
Tunbridge Wells Borough Council,Environmental and regulatory services ,105,EN,Environment & Street Scene,FOOD & COMMERCIAL,EQUIPMENT PURCHASE/MTCE,3000,-,-,21/02/2016,P11_20,20.97,Revenue,AMAZON UK MARKETPLACE,Miscellaneous and Specialty Retail Stores,886
Tunbridge Wells Borough Council,Environmental and regulatory services ,105,EN,Environment & Street Scene,FOOD & COMMERCIAL,EQUIPMENT PURCHASE/MTCE,3000,-,-,21/02/2016,P11_21,173.66,Revenue,AMAZON UK MARKETPLACE,Miscellaneous and Specialty Retail Stores,887
Tunbridge Wells Borough Council,Environmental and regulatory services ,105,EN,Environment & Street Scene,CLEANER BOROUGH,EQUIPMENT PURCHASE/MTCE,3000,-,-,21/02/2016,P11_24,12.48,Revenue,AMAZON UK MARKETPLACE,Miscellaneous and Specialty Retail Stores,888
Tunbridge Wells Borough Council,Environmental and regulatory services ,105,EN,Environment & Street Scene,CLEANER BOROUGH,UNIFORMS & PROTECTIVE CLOTHING,3100,-,-,21/02/2016,P11_25,24.95,Revenue,AMAZON UK MARKETPLACE,Miscellaneous and Specialty Retail Stores,889
Tunbridge Wells Borough Council,Cultural and Related Services,104,LE,Leisure & Well-being,A-HALL MANAGEMENT,VEHICLE REPAIRS & SUNDRIES,1040,-,-,21/02/2016,P11_27,59.97,Revenue,AMAZON UK MARKETPLACE,Miscellaneous and Specialty Retail Stores,890
Tunbridge Wells Borough Council,Cultural and Related Services,104,LE,Leisure & Well-being,A-HALL MANAGEMENT,CONSUMABLES & MATERIALS,3060,-,-,21/02/2016,P11_28,33.99,Revenue,BOOKER LIMITED TUNBRIDGE,Caterers,891
Tunbridge Wells Borough Council,Cultural and Related Services,104,LE,Leisure & Well-being,A-HALL MANAGEMENT,COGS -FOOD,3090,-,-,21/02/2016,P11_29,22.67,Revenue,BOOKER LIMITED TUNBRIDGE,Caterers,892
Tunbridge Wells Borough Council,Cultural and Related Services,104,LE,Leisure & Well-being,A-HALL MANAGEMENT,COGS - DRINK,3091,-,-,21/02/2016,P11_30,47.53,Revenue,BOOKER LIMITED TUNBRIDGE,Caterers,893
Tunbridge Wells Borough Council,Planning Services,110,PL,Planning Services,SHERWOOD COMMUNITY PILOT,COGS -FOOD,3090,-,-,21/02/2016,P11_42,64.79,Revenue,BOOKER LIMITED TUNBRIDGE,Caterers,894
Tunbridge Wells Borough Council,Planning Services,110,PL,Planning Services,SHERWOOD COMMUNITY PILOT,COGS - DRINK,3091,-,-,21/02/2016,P11_43,19.75,Revenue,BOOKER LIMITED TUNBRIDGE,Caterers,895
Tunbridge Wells Borough Council,Central Services,102,FI,Finance & Local Goverance,D OF FINANCE & CORP SERVICES,FURNITURE COSTS,3020,-,-,21/02/2016,P11_46,86.08,Revenue,AMAZON UK MARKETPLACE,Miscellaneous and Specialty Retail Stores,896
Tunbridge Wells Borough Council,Central Services,102,FI,Finance & Local Goverance,D OF FINANCE & CORP SERVICES,FURNITURE COSTS,3020,-,-,21/02/2016,P11_47,-30,Revenue,AMAZON UK MARKETPLACE,Miscellaneous and Specialty Retail Stores,897
Tunbridge Wells Borough Council,Central Services,102,HR,Human Resources,HUMAN RESOURCES,EQUIPMENT PURCHASE/MTCE,3000,-,-,21/02/2016,P11_58,149.75,Revenue,AMAZON UK MARKETPLACE,Miscellaneous and Specialty Retail Stores,898
Tunbridge Wells Borough Council,Cultural and Related Services,104,LE,Leisure & Well-being,GROSVENOR AND HILBERT PARK,"CONSTRUCTION, RENOVATION, ETC",8311,-,-,21/02/2016,P11_69,2.74,Capital,AMAZON UK MARKETPLACE,Miscellaneous and Specialty Retail Stores,899
Tunbridge Wells Borough Council,Cultural and Related Services,104,LE,Leisure & Well-being,GROSVENOR AND HILBERT PARK,"CONSTRUCTION, RENOVATION, ETC",8311,-,-,21/02/2016,P11_70,100.31,Capital,AMAZON UK MARKETPLACE,Miscellaneous and Specialty Retail Stores,900
Tunbridge Wells Borough Council,Central Services,102,CH,Chief Executive's Office,MAYORAL,MAYORAL EXPENSES,3690,MISC MAYORAL EXPEN,EV0123,23/02/2016,P11_64,26.67,Revenue,MILLENNIUM MARK,"Card, Gift, Novelty, and Souvenir Shops",901
Tunbridge Wells Borough Council,Central Services,102,CH,Chief Executive's Office,MAYORAL,MAYORAL EXPENSES,3690,MISC MAYORAL EXPEN,EV0123,23/02/2016,P11_65,2,Revenue,MILLENNIUM MARK,"Card, Gift, Novelty, and Souvenir Shops",902
Tunbridge Wells Borough Council,Housing Services,108,HO,Housing Services & Health,HOUSING NEEDS SERVICE,HOMELESSNESS EXPENSES,3912,-,-,24/02/2016,P11_11,2.98,Revenue,WM MORRISONS STORE,Grocery Stores and Supermarkets,903
Tunbridge Wells Borough Council,Housing Services,108,HO,Housing Services & Health,HOUSING NEEDS SERVICE,HOMELESSNESS EXPENSES,3912,-,-,24/02/2016,P11_14,13.6,Revenue,LONDON & SOUTH EAS,Passenger Railways,904
Tunbridge Wells Borough Council,Housing Services,108,HO,Housing Services & Health,HOUSING NEEDS SERVICE,HOMELESSNESS EXPENSES,3912,-,-,24/02/2016,P11_15,1.45,Revenue,WM MORRISONS STORE,Grocery Stores and Supermarkets,905
Tunbridge Wells Borough Council,Housing Services,108,HO,Housing Services & Health,HOUSING NEEDS SERVICE,HOMELESSNESS EXPENSES,3912,-,-,25/02/2016,P11_09,16,Revenue,NATIONAL EXPRESS LIMITED,Bus Lines,906
Tunbridge Wells Borough Council,Housing Services,108,HO,Housing Services & Health,HOUSING NEEDS SERVICE,HOMELESSNESS EXPENSES,3912,-,-,25/02/2016,P11_10,1,Revenue,NATIONAL EXPRESS LIMITED,Bus Lines,907
Tunbridge Wells Borough Council,Central Services,102,FI,Finance & Local Goverance,CORPORATE COSTS,BANK CHARGES,3860,-,-,26/02/2016,P11_55,40,Revenue,This data has been redacted under the Data Protection Act,-,908
Tunbridge Wells Borough Council,Cultural and Related Services,104,LE,Leisure & Well-being,A-HALL MANAGEMENT,VEHICLE REPAIRS & SUNDRIES,1040,-,-,26/02/2016,P12_33,292.5,Revenue,WWW.DVLA.GOV.UK,Government Services,909
Tunbridge Wells Borough Council,Cultural and Related Services,104,LE,Leisure & Well-being,A-HALL FRONT OF HOUSE,CONSUMABLES & MATERIALS,3060,-,-,26/02/2016,P12_42,58,Revenue,PAYPAL *WANG QIANG,Camera and Photographic Supply Stores,910
Tunbridge Wells Borough Council,Housing Services,108,HO,Housing Services & Health,HOUSING NEEDS SERVICE,HOMELESSNESS EXPENSES,3912,-,-,29/02/2016,P12_12,237,Revenue,BIG YELLOW S S TUNBRIDGE,"Public Warehousing, Farm, & Household Goods",911
Tunbridge Wells Borough Council,Environmental and regulatory services ,105,EN,Environment & Street Scene,ENVIRONMENTAL PROTECTION,EQUIPMENT PURCHASE/MTCE,3000,-,-,29/02/2016,P12_18,3.99,Revenue,AMAZON UK MARKETPLACE,Book Stores,912
Tunbridge Wells Borough Council,Environmental and regulatory services ,105,EN,Environment & Street Scene,ENVIRONMENTAL PROTECTION,EQUIPMENT PURCHASE/MTCE,3000,-,-,29/02/2016,P12_20,208.73,Revenue,AMAZON UK MARKETPLACE,Book Stores,913
Tunbridge Wells Borough Council,Environmental and regulatory services ,105,EN,Environment & Street Scene,ENVIRONMENTAL PROTECTION,EQUIPMENT PURCHASE/MTCE,3000,-,-,29/02/2016,P12_21,3.99,Revenue,AMAZON UK MARKETPLACE,Book Stores,914
Tunbridge Wells Borough Council,Environmental and regulatory services ,105,EN,Environment & Street Scene,ENVIRONMENTAL PROTECTION,EQUIPMENT PURCHASE/MTCE,3000,-,-,29/02/2016,P12_22,18.32,Revenue,AMAZON UK MARKETPLACE,Book Stores,915
